Body Name,Body,Service Label,Service Code,Service Division ,Service Division Code,Organisational Unit,Expenditure Category - SeRCOP,Expenditure Code - SeRCOP,Expenditure Category - ProClass,Expenditure Code - ProClass,SeRCOP Detailed Expenditure Type,SeRCOP Detailed Expenditure Code,Date,Transaction Number,Amount,Capital and Revenue,Supplier Name,Supplier ID,
Fareham Borough Council,http://statistics.data.gov.uk/id/local-authority/24UE,CAPITAL PROGRAMME - OTHER SERVICES,CP,APPROVED PROGRAMME,CP24,CAPITAL - APPROVED PROGRAMME,SUPPLIES & SERVICES,4,"Works - Construction, Repair & Maintenance",39,MISCELLANEOUS EXPENDITURE,4970,22/05/2015,521105,3022.78 ,Capital,NETWORK RAIL,2904587,
Fareham Borough Council,http://statistics.data.gov.uk/id/local-authority/24UE,HIGHWAYS ROADS AND TRANSPORT,BV12,PARKING SERVICES,BV12D,DEPT STREETSCENE,SUPPLIES & SERVICES,4,Street & Traffic Management,35,TICKET MACHINE - MAINTENANCE,4037,08/05/2015,522156,735.00 ,Revenue,BEMROSEBOOTH,03978232,
Fareham Borough Council,http://statistics.data.gov.uk/id/local-authority/24UE,OTHER REVENUE ACCOUNTS,RV,CONTRACT SERVICES D.S.O.,RV14,DEPT STREETSCENE,EMPLOYEES RELATED EXPENDITURE,1,Human Resources,26,AGENCY WORKERS,1050,15/05/2015,522881,813.03 ,Revenue,BUILDING RECRUITMENT COMPANY LTD,3750125,
Fareham Borough Council,http://statistics.data.gov.uk/id/local-authority/24UE,GENERAL FUND HOUSING,BV05,HOUSING BENEFIT ADMINISTRATION,BV05H,DEPT of COMMUNITY and STREETSCENE,SUPPLIES & SERVICES,4,Financial Services,20,SOFTWARE LICENCES,4530,22/05/2015,522897,1000.00 ,Revenue,CALL CREDIT LIMITED,3961870,
Fareham Borough Council,http://statistics.data.gov.uk/id/local-authority/24UE,GENERAL FUND HOUSING,BV05,HOMELESSNESS,BV05F,DEPT of COMMUNITY and STREETSCENE,SUPPLIES & SERVICES,4,Financial Services,20,SOFTWARE LICENCES,4530,22/05/2015,522897,630.00 ,Revenue,CALL CREDIT LIMITED,3961870,
Fareham Borough Council,http://statistics.data.gov.uk/id/local-authority/24UE,CENTRAL SERVICES,BV07,CENTRAL SERVICES TO THE PUBLIC,BV07B,DEPT of COMMUNITY and STREETSCENE,SUPPLIES & SERVICES,4,Financial Services,20,OTHER DEBT COLLECTION COSTS,4404,22/05/2015,522897,650.00 ,Revenue,CALL CREDIT LIMITED,3961870,
Fareham Borough Council,http://statistics.data.gov.uk/id/local-authority/24UE,OTHER REVENUE ACCOUNTS,RV,NON WORK GROUP HOLDING ACCOUNT,RV18,DEPT of FINANCE and RESOURCES,SUPPLIES & SERVICES,4,Financial Services,20,OTHER DEBT COLLECTION COSTS,4404,22/05/2015,522897,400.00 ,Revenue,CALL CREDIT LIMITED,3961870,
Fareham Borough Council,http://statistics.data.gov.uk/id/local-authority/24UE,OTHER REVENUE ACCOUNTS,RV,NON WORK GROUP HOLDING ACCOUNT,RV18,DEPT of FINANCE and RESOURCES,SUPPLIES & SERVICES,4,Financial Services,20,SOFTWARE LICENCES,4530,22/05/2015,522897,20.00 ,Revenue,CALL CREDIT LIMITED,3961870,
Fareham Borough Council,http://statistics.data.gov.uk/id/local-authority/24UE,GENERAL FUND HOUSING,BV05,OTHER COUNCIL PROPERTY,BV05K,DEPT of COMMUNITY and STREETSCENE,PREMISES RELATED EXPENDITURE,2,Cleaning & Janitorial,13,R & M OF LEASED PROPERTIES,2001,08/05/2015,522948,170.80 ,Revenue,FOUNTAINS ENVIRONMENTAL LIMITED,1581254,
Fareham Borough Council,http://statistics.data.gov.uk/id/local-authority/24UE,CULTURAL AND RELATED SERVICES,BV09,CULTURE AND HERITAGE,BV09A,DEPT STREETSCENE,PREMISES RELATED EXPENDITURE,2,Cleaning & Janitorial,13,CONTRACT CLEANING - GENERAL,2700,08/05/2015,522948,2790.95 ,Revenue,FOUNTAINS ENVIRONMENTAL LIMITED,1581254,
Fareham Borough Council,http://statistics.data.gov.uk/id/local-authority/24UE,PLANNING SERVICES,BV13,ECONOMIC DEVELOPMENT,BV13E,DEPT of COMMUNITY and STREETSCENE,PREMISES RELATED EXPENDITURE,2,Cleaning & Janitorial,13,CONTRACT CLEANING - GENERAL,2700,08/05/2015,522948,2511.84 ,Revenue,FOUNTAINS ENVIRONMENTAL LIMITED,1581254,
Fareham Borough Council,http://statistics.data.gov.uk/id/local-authority/24UE,CULTURAL AND RELATED SERVICES,BV09,RECREATION AND SPORT,BV09B,DEPT of COMMUNITY and STREETSCENE,PREMISES RELATED EXPENDITURE,2,Cleaning & Janitorial,13,CONTRACT CLEANING - GENERAL,2700,08/05/2015,522948,301.72 ,Revenue,FOUNTAINS ENVIRONMENTAL LIMITED,1581254,
Fareham Borough Council,http://statistics.data.gov.uk/id/local-authority/24UE,CULTURAL AND RELATED SERVICES,BV09,RECREATION AND SPORT,BV09B,DEPT of COMMUNITY and STREETSCENE,PREMISES RELATED EXPENDITURE,2,Cleaning & Janitorial,13,CONTRACT CLEANING - GENERAL,2700,08/05/2015,522948,91.08 ,Revenue,FOUNTAINS ENVIRONMENTAL LIMITED,1581254,
Fareham Borough Council,http://statistics.data.gov.uk/id/local-authority/24UE,CULTURAL AND RELATED SERVICES,BV09,RECREATION AND SPORT,BV09B,DEPT of COMMUNITY and STREETSCENE,PREMISES RELATED EXPENDITURE,2,Cleaning & Janitorial,13,CONTRACT CLEANING - GENERAL,2700,08/05/2015,522948,22.77 ,Revenue,FOUNTAINS ENVIRONMENTAL LIMITED,1581254,
Fareham Borough Council,http://statistics.data.gov.uk/id/local-authority/24UE,CULTURAL AND RELATED SERVICES,BV09,RECREATION AND SPORT,BV09B,DEPT of COMMUNITY and STREETSCENE,PREMISES RELATED EXPENDITURE,2,Cleaning & Janitorial,13,CONTRACT CLEANING - GENERAL,2700,08/05/2015,522948,710.98 ,Revenue,FOUNTAINS ENVIRONMENTAL LIMITED,1581254,
Fareham Borough Council,http://statistics.data.gov.uk/id/local-authority/24UE,CULTURAL AND RELATED SERVICES,BV09,CULTURE AND HERITAGE,BV09A,DEPT of COMMUNITY and STREETSCENE,PREMISES RELATED EXPENDITURE,2,Cleaning & Janitorial,13,CONTRACT CLEANING - GENERAL,2700,08/05/2015,522948,830.70 ,Revenue,FOUNTAINS ENVIRONMENTAL LIMITED,1581254,
Fareham Borough Council,http://statistics.data.gov.uk/id/local-authority/24UE,HIGHWAYS ROADS AND TRANSPORT,BV12,PARKING SERVICES,BV12D,DEPT STREETSCENE,PREMISES RELATED EXPENDITURE,2,Cleaning & Janitorial,13,CONTRACT CLEANING - GENERAL,2700,08/05/2015,522948,128.10 ,Revenue,FOUNTAINS ENVIRONMENTAL LIMITED,1581254,
Fareham Borough Council,http://statistics.data.gov.uk/id/local-authority/24UE,HIGHWAYS ROADS AND TRANSPORT,BV12,PARKING SERVICES,BV12D,DEPT STREETSCENE,PREMISES RELATED EXPENDITURE,2,Cleaning & Janitorial,13,CONTRACT CLEANING - GENERAL,2700,08/05/2015,522948,631.78 ,Revenue,FOUNTAINS ENVIRONMENTAL LIMITED,1581254,
Fareham Borough Council,http://statistics.data.gov.uk/id/local-authority/24UE,ENVIRONMENT AND REGULATORY SER,BV03,ENVIRONMENTAL HEALTH,BV03C,DEPT STREETSCENE,PREMISES RELATED EXPENDITURE,2,Cleaning & Janitorial,13,CONTRACT CLEANING - GENERAL,2700,08/05/2015,522948,37.95 ,Revenue,FOUNTAINS ENVIRONMENTAL LIMITED,1581254,
Fareham Borough Council,http://statistics.data.gov.uk/id/local-authority/24UE,ENVIRONMENT AND REGULATORY SER,BV03,ENVIRONMENTAL HEALTH,BV03C,DEPT STREETSCENE,PREMISES RELATED EXPENDITURE,2,Cleaning & Janitorial,13,CONTRACT CLEANING - GENERAL,2700,08/05/2015,522948,5271.67 ,Revenue,FOUNTAINS ENVIRONMENTAL LIMITED,1581254,
Fareham Borough Council,http://statistics.data.gov.uk/id/local-authority/24UE,HOUSING REVENUE ACCOUNT,BV06,COMMUNAL CARETAKING & CLEANING,5027,DEPT of COMMUNITY and STREETSCENE,PREMISES RELATED EXPENDITURE,2,Cleaning & Janitorial,13,CONTRACT CLEANING - GENERAL,2700,08/05/2015,522948,113.88 ,Revenue,FOUNTAINS ENVIRONMENTAL LIMITED,1581254,
Fareham Borough Council,http://statistics.data.gov.uk/id/local-authority/24UE,HOUSING REVENUE ACCOUNT,BV06,COMMUNAL CARETAKING & CLEANING,5027,DEPT of COMMUNITY and STREETSCENE,PREMISES RELATED EXPENDITURE,2,Cleaning & Janitorial,13,CONTRACT CLEANING - GENERAL,2700,08/05/2015,522948,15.18 ,Revenue,FOUNTAINS ENVIRONMENTAL LIMITED,1581254,
Fareham Borough Council,http://statistics.data.gov.uk/id/local-authority/24UE,HOUSING REVENUE ACCOUNT,BV06,COMMUNAL CARETAKING & CLEANING,5027,DEPT of COMMUNITY and STREETSCENE,PREMISES RELATED EXPENDITURE,2,Cleaning & Janitorial,13,CONTRACT CLEANING - GENERAL,2700,08/05/2015,522948,7554.98 ,Revenue,FOUNTAINS ENVIRONMENTAL LIMITED,1581254,
Fareham Borough Council,http://statistics.data.gov.uk/id/local-authority/24UE,HOUSING REVENUE ACCOUNT,BV06,RESPONSIVE & VOID MAINTENANCE,5901,DEPT STREETSCENE,PREMISES RELATED EXPENDITURE,2,Cleaning & Janitorial,13,GENERAL REPAIRS,2018,08/05/2015,522948,113.88 ,Revenue,FOUNTAINS ENVIRONMENTAL LIMITED,1581254,
Fareham Borough Council,http://statistics.data.gov.uk/id/local-authority/24UE,HOUSING REVENUE ACCOUNT,BV06,RESPONSIVE & VOID MAINTENANCE,5901,DEPT STREETSCENE,PREMISES RELATED EXPENDITURE,2,Cleaning & Janitorial,13,GENERAL REPAIRS,2018,08/05/2015,522948,273.28 ,Revenue,FOUNTAINS ENVIRONMENTAL LIMITED,1581254,
Fareham Borough Council,http://statistics.data.gov.uk/id/local-authority/24UE,HOUSING REVENUE ACCOUNT,BV06,RESPONSIVE & VOID MAINTENANCE,5901,DEPT STREETSCENE,PREMISES RELATED EXPENDITURE,2,Cleaning & Janitorial,13,GENERAL REPAIRS,2018,08/05/2015,522948,270.42 ,Revenue,FOUNTAINS ENVIRONMENTAL LIMITED,1581254,
Fareham Borough Council,http://statistics.data.gov.uk/id/local-authority/24UE,HOUSING REVENUE ACCOUNT,BV06,RESPONSIVE & VOID MAINTENANCE,5901,DEPT STREETSCENE,PREMISES RELATED EXPENDITURE,2,Cleaning & Janitorial,13,GENERAL REPAIRS,2018,08/05/2015,522948,166.06 ,Revenue,FOUNTAINS ENVIRONMENTAL LIMITED,1581254,
Fareham Borough Council,http://statistics.data.gov.uk/id/local-authority/24UE,HOUSING REVENUE ACCOUNT,BV06,RESPONSIVE & VOID MAINTENANCE,5901,DEPT STREETSCENE,PREMISES RELATED EXPENDITURE,2,Cleaning & Janitorial,13,GENERAL REPAIRS,2018,08/05/2015,522948,277.08 ,Revenue,FOUNTAINS ENVIRONMENTAL LIMITED,1581254,
Fareham Borough Council,http://statistics.data.gov.uk/id/local-authority/24UE,OTHER REVENUE ACCOUNTS,RV,CONTRACT SERVICES D.S.O.,RV14,DEPT STREETSCENE,PREMISES RELATED EXPENDITURE,2,Cleaning & Janitorial,13,CONTRACT CLEANING - GENERAL,2700,08/05/2015,522948,161.97 ,Revenue,FOUNTAINS ENVIRONMENTAL LIMITED,1581254,
Fareham Borough Council,http://statistics.data.gov.uk/id/local-authority/24UE,OTHER REVENUE ACCOUNTS,RV,CONTRACT SERVICES D.S.O.,RV14,DEPT of STRATEGIC PLANNING and ENVIRONMENT,PREMISES RELATED EXPENDITURE,2,Cleaning & Janitorial,13,CONTRACT CLEANING - GENERAL,2700,08/05/2015,522948,112.31 ,Revenue,FOUNTAINS ENVIRONMENTAL LIMITED,1581254,
Fareham Borough Council,http://statistics.data.gov.uk/id/local-authority/24UE,OTHER REVENUE ACCOUNTS,RV,NON WORK GROUP HOLDING ACCOUNT,RV18,DEPT of FINANCE and RESOURCES,PREMISES RELATED EXPENDITURE,2,Cleaning & Janitorial,13,WINDOW CLEANING,2760,08/05/2015,522948,55.47 ,Revenue,FOUNTAINS ENVIRONMENTAL LIMITED,1581254,
Fareham Borough Council,http://statistics.data.gov.uk/id/local-authority/24UE,OTHER REVENUE ACCOUNTS,RV,NON WORK GROUP HOLDING ACCOUNT,RV18,DEPT of FINANCE and RESOURCES,PREMISES RELATED EXPENDITURE,2,Cleaning & Janitorial,13,CONTRACT CLEANING - GENERAL,2700,08/05/2015,522948,536.87 ,Revenue,FOUNTAINS ENVIRONMENTAL LIMITED,1581254,
Fareham Borough Council,http://statistics.data.gov.uk/id/local-authority/24UE,OTHER REVENUE ACCOUNTS,RV,NON WORK GROUP HOLDING ACCOUNT,RV18,DEPT of FINANCE and RESOURCES,PREMISES RELATED EXPENDITURE,2,Cleaning & Janitorial,13,CONTRACT CLEANING - GENERAL,2700,08/05/2015,522948,94.90 ,Revenue,FOUNTAINS ENVIRONMENTAL LIMITED,1581254,
Fareham Borough Council,http://statistics.data.gov.uk/id/local-authority/24UE,CULTURAL AND RELATED SERVICES,BV09,CULTURE AND HERITAGE,BV09A,DEPT of COMMUNITY and STREETSCENE,SUPPLIES & SERVICES,4,Building Construction Materials,10,EQUIPMENT PURCHASES - TECH'L,4011,15/05/2015,524204,517.44 ,Revenue,A C ENTERTAINMENT TECHNOLOGIES LTD,1626564,
Fareham Borough Council,http://statistics.data.gov.uk/id/local-authority/24UE,OTHER REVENUE ACCOUNTS,RV,CONTRACT SERVICES D.S.O.,RV14,DEPT STREETSCENE,EMPLOYEES RELATED EXPENDITURE,1,Human Resources,26,AGENCY WORKERS,1050,15/05/2015,524233,655.20 ,Revenue,BUILDING RECRUITMENT COMPANY LTD,3750125,
Fareham Borough Council,http://statistics.data.gov.uk/id/local-authority/24UE,OTHER REVENUE ACCOUNTS,RV,CONTRACT SERVICES D.S.O.,RV14,DEPT STREETSCENE,EMPLOYEES RELATED EXPENDITURE,1,Human Resources,26,AGENCY WORKERS,1050,15/05/2015,524234,811.23 ,Revenue,BUILDING RECRUITMENT COMPANY LTD,3750125,
Fareham Borough Council,http://statistics.data.gov.uk/id/local-authority/24UE,OTHER REVENUE ACCOUNTS,RV,CONTRACT SERVICES D.S.O.,RV14,DEPT STREETSCENE,EMPLOYEES RELATED EXPENDITURE,1,Human Resources,26,AGENCY WORKERS,1050,15/05/2015,524235,813.03 ,Revenue,BUILDING RECRUITMENT COMPANY LTD,3750125,
Fareham Borough Council,http://statistics.data.gov.uk/id/local-authority/24UE,CENTRAL SERVICES,BV07,CENTRAL SERVICES TO THE PUBLIC,BV07B,DEPT of COMMUNITY and STREETSCENE,SUPPLIES & SERVICES,4,Mail Services?,30,POSTAGES,4500,08/05/2015,524375,6.12 ,Revenue,ROYAL MAIL,04138203,
Fareham Borough Council,http://statistics.data.gov.uk/id/local-authority/24UE,CENTRAL SERVICES,BV07,CENTRAL SERVICES TO THE PUBLIC,BV07B,DEPT of COMMUNITY and STREETSCENE,SUPPLIES & SERVICES,4,Mail Services?,30,POSTAGES,4500,08/05/2015,524375,97.92 ,Revenue,ROYAL MAIL,04138203,
Fareham Borough Council,http://statistics.data.gov.uk/id/local-authority/24UE,OTHER REVENUE ACCOUNTS,RV,NON WORK GROUP HOLDING ACCOUNT,RV18,DEPT of FINANCE and RESOURCES,SUPPLIES & SERVICES,4,Mail Services?,30,POSTAGES,4500,08/05/2015,524375,7666.25 ,Revenue,ROYAL MAIL,04138203,
Fareham Borough Council,http://statistics.data.gov.uk/id/local-authority/24UE,BALANCE SHEET,BS,BAL. SHEET - D.S.O.,BS1,BAL. SHEET - D.S.O.,TOTAL ASSETS LESS LIABILITIES,BS100,Vehicle Management,38,MATERIALS SUSPENSE ACCOUNT (VE,A016,15/05/2015,524390,15742.00 ,Balance Sheet,WESSEX PETROLEUM LTD,01024472,
Fareham Borough Council,http://statistics.data.gov.uk/id/local-authority/24UE,GENERAL FUND HOUSING,BV05,HOMELESSNESS,BV05F,DEPT of COMMUNITY and STREETSCENE,SUPPLIES & SERVICES,4,Information Communication Technology,27,CONSULTANTS FEES,4401,08/05/2015,524851,2850.00 ,Revenue,PETER LALLY ASSOCIATES,,
Fareham Borough Council,http://statistics.data.gov.uk/id/local-authority/24UE,OTHER REVENUE ACCOUNTS,RV,CONTRACT SERVICES D.S.O.,RV14,DEPT STREETSCENE,SUPPLIES & SERVICES,4,Horticultural,24,MATERIALS (OPERATIONAL),4007,15/05/2015,524862,5005.00 ,Revenue,SHERRIFF AMENITY SERVICES,03525529,
Fareham Borough Council,http://statistics.data.gov.uk/id/local-authority/24UE,OTHER REVENUE ACCOUNTS,RV,CONTRACT SERVICES D.S.O.,RV14,DEPT STREETSCENE,TRANSPORT RELATED EXPENDITURE,3,Highway Equipment & Materials?,23,ROUTINE REPAIRS VEHICLES/PLANT,3010,29/05/2015,524868,396.00 ,Revenue,ALLSPEED SIGNS & GRAPHICS LTD,02998509,
Fareham Borough Council,http://statistics.data.gov.uk/id/local-authority/24UE,OTHER REVENUE ACCOUNTS,RV,CONTRACT SERVICES D.S.O.,RV14,DEPT STREETSCENE,TRANSPORT RELATED EXPENDITURE,3,Highway Equipment & Materials?,23,ROUTINE REPAIRS VEHICLES/PLANT,3010,29/05/2015,524868,396.00 ,Revenue,ALLSPEED SIGNS & GRAPHICS LTD,02998509,
Fareham Borough Council,http://statistics.data.gov.uk/id/local-authority/24UE,OTHER REVENUE ACCOUNTS,RV,CONTRACT SERVICES D.S.O.,RV14,DEPT STREETSCENE,TRANSPORT RELATED EXPENDITURE,3,Vehicle Management,38,ROUTINE REPAIRS VEHICLES/PLANT,3010,22/05/2015,524869,40.01 ,Revenue,CARTERS OF SWANWICK LTD,00387507,
Fareham Borough Council,http://statistics.data.gov.uk/id/local-authority/24UE,OTHER REVENUE ACCOUNTS,RV,CONTRACT SERVICES D.S.O.,RV14,DEPT STREETSCENE,TRANSPORT RELATED EXPENDITURE,3,Vehicle Management,38,ROUTINE REPAIRS VEHICLES/PLANT,3010,22/05/2015,524869,1.65 ,Revenue,CARTERS OF SWANWICK LTD,00387507,
Fareham Borough Council,http://statistics.data.gov.uk/id/local-authority/24UE,OTHER REVENUE ACCOUNTS,RV,CONTRACT SERVICES D.S.O.,RV14,DEPT STREETSCENE,TRANSPORT RELATED EXPENDITURE,3,Vehicle Management,38,ROUTINE REPAIRS VEHICLES/PLANT,3010,22/05/2015,524869,2.27 ,Revenue,CARTERS OF SWANWICK LTD,00387507,
Fareham Borough Council,http://statistics.data.gov.uk/id/local-authority/24UE,OTHER REVENUE ACCOUNTS,RV,CONTRACT SERVICES D.S.O.,RV14,DEPT STREETSCENE,TRANSPORT RELATED EXPENDITURE,3,Vehicle Management,38,ROUTINE REPAIRS VEHICLES/PLANT,3010,22/05/2015,524869,236.75 ,Revenue,CARTERS OF SWANWICK LTD,00387507,
Fareham Borough Council,http://statistics.data.gov.uk/id/local-authority/24UE,OTHER REVENUE ACCOUNTS,RV,CONTRACT SERVICES D.S.O.,RV14,DEPT STREETSCENE,TRANSPORT RELATED EXPENDITURE,3,Vehicle Management,38,ROUTINE REPAIRS VEHICLES/PLANT,3010,22/05/2015,524869,331.25 ,Revenue,CARTERS OF SWANWICK LTD,00387507,
Fareham Borough Council,http://statistics.data.gov.uk/id/local-authority/24UE,OTHER REVENUE ACCOUNTS,RV,CONTRACT SERVICES D.S.O.,RV14,DEPT STREETSCENE,TRANSPORT RELATED EXPENDITURE,3,Vehicle Management,38,ROUTINE REPAIRS VEHICLES/PLANT,3010,22/05/2015,524869,14.23 ,Revenue,CARTERS OF SWANWICK LTD,00387507,
Fareham Borough Council,http://statistics.data.gov.uk/id/local-authority/24UE,OTHER REVENUE ACCOUNTS,RV,CONTRACT SERVICES D.S.O.,RV14,DEPT STREETSCENE,TRANSPORT RELATED EXPENDITURE,3,Vehicle Management,38,ROUTINE REPAIRS VEHICLES/PLANT,3010,22/05/2015,524869,4.29 ,Revenue,CARTERS OF SWANWICK LTD,00387507,
Fareham Borough Council,http://statistics.data.gov.uk/id/local-authority/24UE,OTHER REVENUE ACCOUNTS,RV,CONTRACT SERVICES D.S.O.,RV14,DEPT STREETSCENE,TRANSPORT RELATED EXPENDITURE,3,Vehicle Management,38,ROUTINE REPAIRS VEHICLES/PLANT,3010,22/05/2015,524869,40.29 ,Revenue,CARTERS OF SWANWICK LTD,00387507,
Fareham Borough Council,http://statistics.data.gov.uk/id/local-authority/24UE,PLANNING SERVICES,BV13,PLANNING POLICY,BV13C,DEPT of STRATEGIC PLANNING and ENVIRONMENT,SUPPLIES & SERVICES,4,Facilities & Management Services,19,ADVERTISING,4910,15/05/2015,524873,17202.00 ,Revenue,LAWTON COMMUNICATIONS GROUP LIMITED,05610929,
Fareham Borough Council,http://statistics.data.gov.uk/id/local-authority/24UE,PLANNING SERVICES,BV13,PLANNING POLICY,BV13C,DEPT of STRATEGIC PLANNING and ENVIRONMENT,SUPPLIES & SERVICES,4,Facilities & Management Services,19,ADVERTISING,4910,15/05/2015,524873,15.34 ,Revenue,LAWTON COMMUNICATIONS GROUP LIMITED,05610929,
Fareham Borough Council,http://statistics.data.gov.uk/id/local-authority/24UE,PLANNING SERVICES,BV13,PLANNING POLICY,BV13C,DEPT of STRATEGIC PLANNING and ENVIRONMENT,SUPPLIES & SERVICES,4,Facilities & Management Services,19,ADVERTISING,4910,08/05/2015,524874,5500.00 ,Revenue,LAWTON COMMUNICATIONS GROUP LIMITED,05610929,
Fareham Borough Council,http://statistics.data.gov.uk/id/local-authority/24UE,HIGHWAYS ROADS AND TRANSPORT,BV12,HIGHWAYS ROADS ROUTINE,BV12B,DEPT STREETSCENE,SUPPLIES & SERVICES,4,Highway Equipment & Materials?,23,FURNITURE & EQUIPT. MAINT.,4030,08/05/2015,524875,3269.50 ,Revenue,SIGNWAY SUPPLIES,01450039,
Fareham Borough Council,http://statistics.data.gov.uk/id/local-authority/24UE,OTHER REVENUE ACCOUNTS,RV,NON WORK GROUP HOLDING ACCOUNT,RV18,DEPT of FINANCE and RESOURCES,SUPPLIES & SERVICES,4,Information Communication Technology,27,MOBILE TELEPHONES,4514,15/05/2015,524972,6.48 ,Revenue,VODAFONE LIMITED,01471587,
Fareham Borough Council,http://statistics.data.gov.uk/id/local-authority/24UE,OTHER REVENUE ACCOUNTS,RV,NON WORK GROUP HOLDING ACCOUNT,RV18,DEPT of FINANCE and RESOURCES,SUPPLIES & SERVICES,4,Information Communication Technology,27,MOBILE TELEPHONES,4514,15/05/2015,524972,2024.06 ,Revenue,VODAFONE LIMITED,01471587,
Fareham Borough Council,http://statistics.data.gov.uk/id/local-authority/24UE,OTHER REVENUE ACCOUNTS,RV,NON WORK GROUP HOLDING ACCOUNT,RV18,DEPT of FINANCE and RESOURCES,SUPPLIES & SERVICES,4,Information Communication Technology,27,MOBILE TELEPHONES,4514,15/05/2015,524972,0.40 ,Revenue,VODAFONE LIMITED,01471587,
Fareham Borough Council,http://statistics.data.gov.uk/id/local-authority/24UE,ENVIRONMENT AND REGULATORY SER,BV03,WASTE COLLECTION,BV03G,DEPT STREETSCENE,SUPPLIES & SERVICES,4,Environmental Services,18,FURNITURE & EQUIPT. PURCHASES,4000,08/05/2015,525029,2515.50 ,Revenue,ENVIRONMENTAL SOLUTIONS EUROPE (ESE),02327763,
Fareham Borough Council,http://statistics.data.gov.uk/id/local-authority/24UE,ENVIRONMENT AND REGULATORY SER,BV03,WASTE COLLECTION,BV03G,DEPT STREETSCENE,SUPPLIES & SERVICES,4,Environmental Services,18,FURNITURE & EQUIPT. PURCHASES,4000,08/05/2015,525029,3521.70 ,Revenue,ENVIRONMENTAL SOLUTIONS EUROPE (ESE),02327763,
Fareham Borough Council,http://statistics.data.gov.uk/id/local-authority/24UE,ENVIRONMENT AND REGULATORY SER,BV03,WASTE COLLECTION,BV03G,DEPT STREETSCENE,SUPPLIES & SERVICES,4,Environmental Services,18,FURNITURE & EQUIPT. PURCHASES,4000,08/05/2015,525030,5106.00 ,Revenue,ENVIRONMENTAL SOLUTIONS EUROPE (ESE),02327763,
Fareham Borough Council,http://statistics.data.gov.uk/id/local-authority/24UE,ENVIRONMENT AND REGULATORY SER,BV03,WASTE COLLECTION,BV03G,DEPT STREETSCENE,SUPPLIES & SERVICES,4,Environmental Services,18,FURNITURE & EQUIPT. PURCHASES,4000,08/05/2015,525030,5106.00 ,Revenue,ENVIRONMENTAL SOLUTIONS EUROPE (ESE),02327763,
Fareham Borough Council,http://statistics.data.gov.uk/id/local-authority/24UE,BALANCE SHEET,BS,BAL. SHEET - D.S.O.,BS1,BAL. SHEET - D.S.O.,TOTAL ASSETS LESS LIABILITIES,BS100,Vehicle Management,38,MATERIALS SUSPENSE ACCOUNT (VE,A016,15/05/2015,525032,6651.20 ,Balance Sheet,WESSEX PETROLEUM LTD,01024472,
Fareham Borough Council,http://statistics.data.gov.uk/id/local-authority/24UE,ENVIRONMENT AND REGULATORY SER,BV03,STREET CLEANSING,BV03F,DEPT STREETSCENE,TRANSPORT RELATED EXPENDITURE,3,Consultancy,15,ROUTINE REPAIRS VEHICLES/PLANT,3010,22/05/2015,525041,20.66 ,Revenue,PIRTEK (PORTSMOUTH),02301810,
Fareham Borough Council,http://statistics.data.gov.uk/id/local-authority/24UE,ENVIRONMENT AND REGULATORY SER,BV03,STREET CLEANSING,BV03F,DEPT STREETSCENE,TRANSPORT RELATED EXPENDITURE,3,Consultancy,15,ROUTINE REPAIRS VEHICLES/PLANT,3010,22/05/2015,525041,115.35 ,Revenue,PIRTEK (PORTSMOUTH),02301810,
Fareham Borough Council,http://statistics.data.gov.uk/id/local-authority/24UE,ENVIRONMENT AND REGULATORY SER,BV03,STREET CLEANSING,BV03F,DEPT STREETSCENE,TRANSPORT RELATED EXPENDITURE,3,Consultancy,15,ROUTINE REPAIRS VEHICLES/PLANT,3010,22/05/2015,525041,64.76 ,Revenue,PIRTEK (PORTSMOUTH),02301810,
Fareham Borough Council,http://statistics.data.gov.uk/id/local-authority/24UE,ENVIRONMENT AND REGULATORY SER,BV03,STREET CLEANSING,BV03F,DEPT STREETSCENE,TRANSPORT RELATED EXPENDITURE,3,Consultancy,15,ROUTINE REPAIRS VEHICLES/PLANT,3010,22/05/2015,525041,76.23 ,Revenue,PIRTEK (PORTSMOUTH),02301810,
Fareham Borough Council,http://statistics.data.gov.uk/id/local-authority/24UE,ENVIRONMENT AND REGULATORY SER,BV03,STREET CLEANSING,BV03F,DEPT STREETSCENE,TRANSPORT RELATED EXPENDITURE,3,Consultancy,15,ROUTINE REPAIRS VEHICLES/PLANT,3010,22/05/2015,525041,95.96 ,Revenue,PIRTEK (PORTSMOUTH),02301810,
Fareham Borough Council,http://statistics.data.gov.uk/id/local-authority/24UE,ENVIRONMENT AND REGULATORY SER,BV03,STREET CLEANSING,BV03F,DEPT STREETSCENE,TRANSPORT RELATED EXPENDITURE,3,Consultancy,15,ROUTINE REPAIRS VEHICLES/PLANT,3010,22/05/2015,525041,91.50 ,Revenue,PIRTEK (PORTSMOUTH),02301810,
Fareham Borough Council,http://statistics.data.gov.uk/id/local-authority/24UE,ENVIRONMENT AND REGULATORY SER,BV03,STREET CLEANSING,BV03F,DEPT STREETSCENE,TRANSPORT RELATED EXPENDITURE,3,Consultancy,15,ROUTINE REPAIRS VEHICLES/PLANT,3010,22/05/2015,525041,2.18 ,Revenue,PIRTEK (PORTSMOUTH),02301810,
Fareham Borough Council,http://statistics.data.gov.uk/id/local-authority/24UE,ENVIRONMENT AND REGULATORY SER,BV03,STREET CLEANSING,BV03F,DEPT STREETSCENE,TRANSPORT RELATED EXPENDITURE,3,Consultancy,15,ROUTINE REPAIRS VEHICLES/PLANT,3010,22/05/2015,525041,43.25 ,Revenue,PIRTEK (PORTSMOUTH),02301810,
Fareham Borough Council,http://statistics.data.gov.uk/id/local-authority/24UE,BALANCE SHEET,BS,BAL. SHEET - GENERAL FUND,BS1,BAL. SHEET - GENERAL FUND,TOTAL ASSETS LESS LIABILITIES,BS100,Financial Services,20,INSURANCE SUSPENSE ACCOUNT,E608,08/05/2015,525054,18645.00 ,Balance Sheet,ZURICH MUNICIPAL,NF000080,
Fareham Borough Council,http://statistics.data.gov.uk/id/local-authority/24UE,BALANCE SHEET,BS,BAL. SHEET - GENERAL FUND,BS1,BAL. SHEET - GENERAL FUND,TOTAL ASSETS LESS LIABILITIES,BS100,Financial Services,20,INSURANCE SUSPENSE ACCOUNT,E608,08/05/2015,525056,14867.80 ,Balance Sheet,ZURICH MUNICIPAL,NF000080,
Fareham Borough Council,http://statistics.data.gov.uk/id/local-authority/24UE,GENERAL FUND HOUSING,BV05,OTHER COUNCIL PROPERTY,BV05K,DEPT of COMMUNITY and STREETSCENE,PREMISES RELATED EXPENDITURE,2,Cleaning & Janitorial,13,R & M OF LEASED PROPERTIES,2001,29/05/2015,525366,106.26 ,Revenue,FOUNTAINS ENVIRONMENTAL LIMITED,1581254,
Fareham Borough Council,http://statistics.data.gov.uk/id/local-authority/24UE,CULTURAL AND RELATED SERVICES,BV09,RECREATION AND SPORT,BV09B,DEPT of COMMUNITY and STREETSCENE,PREMISES RELATED EXPENDITURE,2,Cleaning & Janitorial,13,CONTRACT CLEANING - GENERAL,2700,29/05/2015,525366,1094.05 ,Revenue,FOUNTAINS ENVIRONMENTAL LIMITED,1581254,
Fareham Borough Council,http://statistics.data.gov.uk/id/local-authority/24UE,CULTURAL AND RELATED SERVICES,BV09,CULTURE AND HERITAGE,BV09A,DEPT of COMMUNITY and STREETSCENE,PREMISES RELATED EXPENDITURE,2,Cleaning & Janitorial,13,CONTRACT CLEANING - GENERAL,2700,29/05/2015,525366,797.48 ,Revenue,FOUNTAINS ENVIRONMENTAL LIMITED,1581254,
Fareham Borough Council,http://statistics.data.gov.uk/id/local-authority/24UE,HIGHWAYS ROADS AND TRANSPORT,BV12,PARKING SERVICES,BV12D,DEPT STREETSCENE,PREMISES RELATED EXPENDITURE,2,Cleaning & Janitorial,13,CONTRACT CLEANING - GENERAL,2700,29/05/2015,525366,606.51 ,Revenue,FOUNTAINS ENVIRONMENTAL LIMITED,1581254,
Fareham Borough Council,http://statistics.data.gov.uk/id/local-authority/24UE,ENVIRONMENT AND REGULATORY SER,BV03,ENVIRONMENTAL HEALTH,BV03C,DEPT STREETSCENE,PREMISES RELATED EXPENDITURE,2,Cleaning & Janitorial,13,CONTRACT CLEANING - GENERAL,2700,29/05/2015,525366,5060.80 ,Revenue,FOUNTAINS ENVIRONMENTAL LIMITED,1581254,
Fareham Borough Council,http://statistics.data.gov.uk/id/local-authority/24UE,HOUSING REVENUE ACCOUNT,BV06,COMMUNAL CARETAKING & CLEANING,5027,DEPT of COMMUNITY and STREETSCENE,PREMISES RELATED EXPENDITURE,2,Cleaning & Janitorial,13,CONTRACT CLEANING - GENERAL,2700,29/05/2015,525366,7186.60 ,Revenue,FOUNTAINS ENVIRONMENTAL LIMITED,1581254,
Fareham Borough Council,http://statistics.data.gov.uk/id/local-authority/24UE,HOUSING REVENUE ACCOUNT,BV06,RESPONSIVE & VOID MAINTENANCE,5901,DEPT STREETSCENE,PREMISES RELATED EXPENDITURE,2,Cleaning & Janitorial,13,GENERAL REPAIRS,2018,29/05/2015,525366,37.95 ,Revenue,FOUNTAINS ENVIRONMENTAL LIMITED,1581254,
Fareham Borough Council,http://statistics.data.gov.uk/id/local-authority/24UE,OTHER REVENUE ACCOUNTS,RV,CONTRACT SERVICES D.S.O.,RV14,DEPT STREETSCENE,PREMISES RELATED EXPENDITURE,2,Cleaning & Janitorial,13,CONTRACT CLEANING - GENERAL,2700,29/05/2015,525366,155.50 ,Revenue,FOUNTAINS ENVIRONMENTAL LIMITED,1581254,
Fareham Borough Council,http://statistics.data.gov.uk/id/local-authority/24UE,OTHER REVENUE ACCOUNTS,RV,CONTRACT SERVICES D.S.O.,RV14,DEPT of STRATEGIC PLANNING and ENVIRONMENT,PREMISES RELATED EXPENDITURE,2,Cleaning & Janitorial,13,CONTRACT CLEANING - GENERAL,2700,29/05/2015,525366,107.81 ,Revenue,FOUNTAINS ENVIRONMENTAL LIMITED,1581254,
Fareham Borough Council,http://statistics.data.gov.uk/id/local-authority/24UE,OTHER REVENUE ACCOUNTS,RV,NON WORK GROUP HOLDING ACCOUNT,RV18,DEPT of FINANCE and RESOURCES,SUPPLIES & SERVICES,4,Cleaning & Janitorial,13,FURNITURE & EQUIPT. MAINT.,4030,29/05/2015,525366,68.31 ,Revenue,FOUNTAINS ENVIRONMENTAL LIMITED,1581254,
Fareham Borough Council,http://statistics.data.gov.uk/id/local-authority/24UE,OTHER REVENUE ACCOUNTS,RV,NON WORK GROUP HOLDING ACCOUNT,RV18,DEPT of FINANCE and RESOURCES,PREMISES RELATED EXPENDITURE,2,Cleaning & Janitorial,13,CONTRACT CLEANING - GENERAL,2700,29/05/2015,525366,151.84 ,Revenue,FOUNTAINS ENVIRONMENTAL LIMITED,1581254,
Fareham Borough Council,http://statistics.data.gov.uk/id/local-authority/24UE,OTHER REVENUE ACCOUNTS,RV,NON WORK GROUP HOLDING ACCOUNT,RV18,DEPT of FINANCE and RESOURCES,PREMISES RELATED EXPENDITURE,2,Cleaning & Janitorial,13,CONTRACT CLEANING - GENERAL,2700,29/05/2015,525366,649.98 ,Revenue,FOUNTAINS ENVIRONMENTAL LIMITED,1581254,
Fareham Borough Council,http://statistics.data.gov.uk/id/local-authority/24UE,CENTRAL SERVICES,BV07,CENTRAL SERVICES TO THE PUBLIC,BV07B,DEPT of COMMUNITY and STREETSCENE,SUPPLIES & SERVICES,4,Local/Central Government,98,LEGAL FEES,4400,15/05/2015,525369,2312.60 ,Revenue,HAMPSHIRE COUNTY COUNCIL,,
Fareham Borough Council,http://statistics.data.gov.uk/id/local-authority/24UE,ENVIRONMENT AND REGULATORY SER,BV03,CEMETERIES CREM & MORTUARY,BV03A,DEPT STREETSCENE,PREMISES RELATED EXPENDITURE,2,Horticultural,24,R&M OF TREE PRESERVATION,2063,08/05/2015,525370,240.00 ,Revenue,GRISTWOOD AND TOMS LIMITED,2665293,
Fareham Borough Council,http://statistics.data.gov.uk/id/local-authority/24UE,CULTURAL AND RELATED SERVICES,BV09,RECREATION AND SPORT,BV09B,DEPT STREETSCENE,PREMISES RELATED EXPENDITURE,2,Horticultural,24,R&M OF TREE PRESERVATION,2063,08/05/2015,525370,1200.00 ,Revenue,GRISTWOOD AND TOMS LIMITED,2665293,
Fareham Borough Council,http://statistics.data.gov.uk/id/local-authority/24UE,CULTURAL AND RELATED SERVICES,BV09,RECREATION AND SPORT,BV09B,DEPT STREETSCENE,PREMISES RELATED EXPENDITURE,2,Horticultural,24,R&M OF TREE PRESERVATION,2063,08/05/2015,525370,750.00 ,Revenue,GRISTWOOD AND TOMS LIMITED,2665293,
Fareham Borough Council,http://statistics.data.gov.uk/id/local-authority/24UE,CULTURAL AND RELATED SERVICES,BV09,RECREATION AND SPORT,BV09B,DEPT of COMMUNITY and STREETSCENE,PREMISES RELATED EXPENDITURE,2,Horticultural,24,R&M OF TREE PRESERVATION,2063,08/05/2015,525370,1200.00 ,Revenue,GRISTWOOD AND TOMS LIMITED,2665293,
Fareham Borough Council,http://statistics.data.gov.uk/id/local-authority/24UE,OTHER REVENUE ACCOUNTS,RV,CONTRACT SERVICES D.S.O.,RV14,DEPT STREETSCENE,EMPLOYEES RELATED EXPENDITURE,1,Human Resources,26,AGENCY WORKERS,1050,22/05/2015,525375,1006.97 ,Revenue,BUZZ PEOPLE RECRUITMENT LTD,07908887,
Fareham Borough Council,http://statistics.data.gov.uk/id/local-authority/24UE,ENVIRONMENT AND REGULATORY SER,BV03,STREET CLEANSING,BV03F,DEPT STREETSCENE,EMPLOYEES RELATED EXPENDITURE,1,Human Resources,26,AGENCY WORKERS,1050,22/05/2015,525378,1536.34 ,Revenue,BUZZ PEOPLE RECRUITMENT LTD,07908887,
Fareham Borough Council,http://statistics.data.gov.uk/id/local-authority/24UE,OTHER REVENUE ACCOUNTS,RV,CONTRACT SERVICES D.S.O.,RV14,DEPT STREETSCENE,EMPLOYEES RELATED EXPENDITURE,1,Human Resources,26,AGENCY WORKERS,1050,22/05/2015,525378,2325.01 ,Revenue,BUZZ PEOPLE RECRUITMENT LTD,07908887,
Fareham Borough Council,http://statistics.data.gov.uk/id/local-authority/24UE,OTHER REVENUE ACCOUNTS,RV,NON WORK GROUP HOLDING ACCOUNT,RV18,DEPT of FINANCE and RESOURCES,SUPPLIES & SERVICES,4,Information Communication Technology,27,STATIONERY,4320,15/05/2015,525386,277.00 ,Revenue,COMCEN COMPUTER SUPPLIES,01626451,
Fareham Borough Council,http://statistics.data.gov.uk/id/local-authority/24UE,OTHER REVENUE ACCOUNTS,RV,NON WORK GROUP HOLDING ACCOUNT,RV18,DEPT of FINANCE and RESOURCES,SUPPLIES & SERVICES,4,Information Communication Technology,27,STATIONERY,4320,15/05/2015,525386,190.00 ,Revenue,COMCEN COMPUTER SUPPLIES,01626451,
Fareham Borough Council,http://statistics.data.gov.uk/id/local-authority/24UE,OTHER REVENUE ACCOUNTS,RV,NON WORK GROUP HOLDING ACCOUNT,RV18,DEPT of FINANCE and RESOURCES,SUPPLIES & SERVICES,4,Information Communication Technology,27,STATIONERY,4320,15/05/2015,525386,79.00 ,Revenue,COMCEN COMPUTER SUPPLIES,01626451,
Fareham Borough Council,http://statistics.data.gov.uk/id/local-authority/24UE,OTHER REVENUE ACCOUNTS,RV,NON WORK GROUP HOLDING ACCOUNT,RV18,DEPT of FINANCE and RESOURCES,SUPPLIES & SERVICES,4,Information Communication Technology,27,SOFTWARE LICENCES,4530,08/05/2015,525400,958.42 ,Revenue,NORTHGATE INFORMATION SOLUTIONS UK LTD,02762332,
Fareham Borough Council,http://statistics.data.gov.uk/id/local-authority/24UE,OTHER REVENUE ACCOUNTS,RV,NON WORK GROUP HOLDING ACCOUNT,RV18,DEPT of FINANCE and RESOURCES,PREMISES RELATED EXPENDITURE,2,Building Construction Materials,10,R & M OF FIXED PLANT,2040,15/05/2015,525401,533.41 ,Revenue,GEA HEAT EXCHANGERS LTD,04057753,
Fareham Borough Council,http://statistics.data.gov.uk/id/local-authority/24UE,OTHER REVENUE ACCOUNTS,RV,NON WORK GROUP HOLDING ACCOUNT,RV18,DEPT of FINANCE and RESOURCES,PREMISES RELATED EXPENDITURE,2,Building Construction Materials,10,R & M OF FIXED PLANT,2040,15/05/2015,525401,26.39 ,Revenue,GEA HEAT EXCHANGERS LTD,04057753,
Fareham Borough Council,http://statistics.data.gov.uk/id/local-authority/24UE,OTHER REVENUE ACCOUNTS,RV,NON WORK GROUP HOLDING ACCOUNT,RV18,DEPT of FINANCE and RESOURCES,PREMISES RELATED EXPENDITURE,2,Building Construction Materials,10,R & M OF FIXED PLANT,2040,15/05/2015,525401,20.00 ,Revenue,GEA HEAT EXCHANGERS LTD,04057753,
Fareham Borough Council,http://statistics.data.gov.uk/id/local-authority/24UE,OTHER REVENUE ACCOUNTS,RV,NON WORK GROUP HOLDING ACCOUNT,RV18,DEPT of FINANCE and RESOURCES,PREMISES RELATED EXPENDITURE,2,Building Construction Materials,10,R & M OF FIXED PLANT,2040,15/05/2015,525401,33.00 ,Revenue,GEA HEAT EXCHANGERS LTD,04057753,
Fareham Borough Council,http://statistics.data.gov.uk/id/local-authority/24UE,OTHER REVENUE ACCOUNTS,RV,NON WORK GROUP HOLDING ACCOUNT,RV18,DEPT of FINANCE and RESOURCES,PREMISES RELATED EXPENDITURE,2,Building Construction Materials,10,R & M OF FIXED PLANT,2040,15/05/2015,525401,50.00 ,Revenue,GEA HEAT EXCHANGERS LTD,04057753,
Fareham Borough Council,http://statistics.data.gov.uk/id/local-authority/24UE,CENTRAL SERVICES,BV07,CENTRAL SERVICES TO THE PUBLIC,BV07B,DEPT of COMMUNITY and STREETSCENE,SUPPLIES & SERVICES,4,Information Communication Technology,27,SOFTWARE LICENCES,4530,15/05/2015,525402,1250.00 ,Revenue,OCELLA,02837294,
Fareham Borough Council,http://statistics.data.gov.uk/id/local-authority/24UE,CULTURAL AND RELATED SERVICES,BV09,RECREATION AND SPORT,BV09B,DEPT STREETSCENE,PREMISES RELATED EXPENDITURE,2,Street & Traffic Management,35,R&M OF GROUNDS,2060,08/05/2015,525408,540.00 ,Revenue,FOREST TRAFFIC SERVICES,01664145,
Fareham Borough Council,http://statistics.data.gov.uk/id/local-authority/24UE,OTHER REVENUE ACCOUNTS,RV,CONTRACT SERVICES D.S.O.,RV14,DEPT STREETSCENE,TRANSPORT RELATED EXPENDITURE,3,Vehicle Management,38,ROUTINE REPAIRS VEHICLES/PLANT,3010,22/05/2015,525417,1.74 ,Revenue,CARTERS OF SWANWICK LTD,00387507,
Fareham Borough Council,http://statistics.data.gov.uk/id/local-authority/24UE,OTHER REVENUE ACCOUNTS,RV,CONTRACT SERVICES D.S.O.,RV14,DEPT STREETSCENE,TRANSPORT RELATED EXPENDITURE,3,Vehicle Management,38,ROUTINE REPAIRS VEHICLES/PLANT,3010,22/05/2015,525417,11.67 ,Revenue,CARTERS OF SWANWICK LTD,00387507,
Fareham Borough Council,http://statistics.data.gov.uk/id/local-authority/24UE,OTHER REVENUE ACCOUNTS,RV,CONTRACT SERVICES D.S.O.,RV14,DEPT STREETSCENE,TRANSPORT RELATED EXPENDITURE,3,Vehicle Management,38,ROUTINE REPAIRS VEHICLES/PLANT,3010,22/05/2015,525417,11.67 ,Revenue,CARTERS OF SWANWICK LTD,00387507,
Fareham Borough Council,http://statistics.data.gov.uk/id/local-authority/24UE,OTHER REVENUE ACCOUNTS,RV,CONTRACT SERVICES D.S.O.,RV14,DEPT STREETSCENE,TRANSPORT RELATED EXPENDITURE,3,Vehicle Management,38,ROUTINE REPAIRS VEHICLES/PLANT,3010,22/05/2015,525417,176.84 ,Revenue,CARTERS OF SWANWICK LTD,00387507,
Fareham Borough Council,http://statistics.data.gov.uk/id/local-authority/24UE,OTHER REVENUE ACCOUNTS,RV,CONTRACT SERVICES D.S.O.,RV14,DEPT STREETSCENE,TRANSPORT RELATED EXPENDITURE,3,Vehicle Management,38,ROUTINE REPAIRS VEHICLES/PLANT,3010,22/05/2015,525417,183.77 ,Revenue,CARTERS OF SWANWICK LTD,00387507,
Fareham Borough Council,http://statistics.data.gov.uk/id/local-authority/24UE,OTHER REVENUE ACCOUNTS,RV,CONTRACT SERVICES D.S.O.,RV14,DEPT STREETSCENE,TRANSPORT RELATED EXPENDITURE,3,Vehicle Management,38,ROUTINE REPAIRS VEHICLES/PLANT,3010,22/05/2015,525417,12.50 ,Revenue,CARTERS OF SWANWICK LTD,00387507,
Fareham Borough Council,http://statistics.data.gov.uk/id/local-authority/24UE,OTHER REVENUE ACCOUNTS,RV,CONTRACT SERVICES D.S.O.,RV14,DEPT STREETSCENE,TRANSPORT RELATED EXPENDITURE,3,Vehicle Management,38,ROUTINE REPAIRS VEHICLES/PLANT,3010,22/05/2015,525417,16.46 ,Revenue,CARTERS OF SWANWICK LTD,00387507,
Fareham Borough Council,http://statistics.data.gov.uk/id/local-authority/24UE,OTHER REVENUE ACCOUNTS,RV,CONTRACT SERVICES D.S.O.,RV14,DEPT STREETSCENE,TRANSPORT RELATED EXPENDITURE,3,Vehicle Management,38,ROUTINE REPAIRS VEHICLES/PLANT,3010,22/05/2015,525417,120.46 ,Revenue,CARTERS OF SWANWICK LTD,00387507,
Fareham Borough Council,http://statistics.data.gov.uk/id/local-authority/24UE,OTHER REVENUE ACCOUNTS,RV,CONTRACT SERVICES D.S.O.,RV14,DEPT STREETSCENE,TRANSPORT RELATED EXPENDITURE,3,Vehicle Management,38,ROUTINE REPAIRS VEHICLES/PLANT,3010,22/05/2015,525417,19.48 ,Revenue,CARTERS OF SWANWICK LTD,00387507,
Fareham Borough Council,http://statistics.data.gov.uk/id/local-authority/24UE,OTHER REVENUE ACCOUNTS,RV,CONTRACT SERVICES D.S.O.,RV14,DEPT STREETSCENE,TRANSPORT RELATED EXPENDITURE,3,Vehicle Management,38,ROUTINE REPAIRS VEHICLES/PLANT,3010,22/05/2015,525417,3.56 ,Revenue,CARTERS OF SWANWICK LTD,00387507,
Fareham Borough Council,http://statistics.data.gov.uk/id/local-authority/24UE,OTHER REVENUE ACCOUNTS,RV,CONTRACT SERVICES D.S.O.,RV14,DEPT STREETSCENE,TRANSPORT RELATED EXPENDITURE,3,Vehicle Management,38,ROUTINE REPAIRS VEHICLES/PLANT,3010,22/05/2015,525417,21.69 ,Revenue,CARTERS OF SWANWICK LTD,00387507,
Fareham Borough Council,http://statistics.data.gov.uk/id/local-authority/24UE,OTHER REVENUE ACCOUNTS,RV,CONTRACT SERVICES D.S.O.,RV14,DEPT STREETSCENE,TRANSPORT RELATED EXPENDITURE,3,Vehicle Management,38,ROUTINE REPAIRS VEHICLES/PLANT,3010,22/05/2015,525417,52.42 ,Revenue,CARTERS OF SWANWICK LTD,00387507,
Fareham Borough Council,http://statistics.data.gov.uk/id/local-authority/24UE,OTHER REVENUE ACCOUNTS,RV,CONTRACT SERVICES D.S.O.,RV14,DEPT STREETSCENE,TRANSPORT RELATED EXPENDITURE,3,Vehicle Management,38,ROUTINE REPAIRS VEHICLES/PLANT,3010,22/05/2015,525417,19.71 ,Revenue,CARTERS OF SWANWICK LTD,00387507,
Fareham Borough Council,http://statistics.data.gov.uk/id/local-authority/24UE,OTHER REVENUE ACCOUNTS,RV,CONTRACT SERVICES D.S.O.,RV14,DEPT STREETSCENE,TRANSPORT RELATED EXPENDITURE,3,Vehicle Management,38,ROUTINE REPAIRS VEHICLES/PLANT,3010,22/05/2015,525417,17.33 ,Revenue,CARTERS OF SWANWICK LTD,00387507,
Fareham Borough Council,http://statistics.data.gov.uk/id/local-authority/24UE,OTHER REVENUE ACCOUNTS,RV,CONTRACT SERVICES D.S.O.,RV14,DEPT STREETSCENE,TRANSPORT RELATED EXPENDITURE,3,Vehicle Management,38,ROUTINE REPAIRS VEHICLES/PLANT,3010,22/05/2015,525417,26.28 ,Revenue,CARTERS OF SWANWICK LTD,00387507,
Fareham Borough Council,http://statistics.data.gov.uk/id/local-authority/24UE,OTHER REVENUE ACCOUNTS,RV,CONTRACT SERVICES D.S.O.,RV14,DEPT STREETSCENE,TRANSPORT RELATED EXPENDITURE,3,Vehicle Management,38,ROUTINE REPAIRS VEHICLES/PLANT,3010,22/05/2015,525417,18.86 ,Revenue,CARTERS OF SWANWICK LTD,00387507,
Fareham Borough Council,http://statistics.data.gov.uk/id/local-authority/24UE,OTHER REVENUE ACCOUNTS,RV,CONTRACT SERVICES D.S.O.,RV14,DEPT STREETSCENE,TRANSPORT RELATED EXPENDITURE,3,Vehicle Management,38,ROUTINE REPAIRS VEHICLES/PLANT,3010,22/05/2015,525417,16.35 ,Revenue,CARTERS OF SWANWICK LTD,00387507,
Fareham Borough Council,http://statistics.data.gov.uk/id/local-authority/24UE,OTHER REVENUE ACCOUNTS,RV,CONTRACT SERVICES D.S.O.,RV14,DEPT STREETSCENE,TRANSPORT RELATED EXPENDITURE,3,Vehicle Management,38,ROUTINE REPAIRS VEHICLES/PLANT,3010,22/05/2015,525417,20.10 ,Revenue,CARTERS OF SWANWICK LTD,00387507,
Fareham Borough Council,http://statistics.data.gov.uk/id/local-authority/24UE,CAPITAL PROGRAMME - HOUSING SERVICES,CP,RENOVATION OF L.A. DWELLINGS,CP10,CAPITAL - ENERGY CONSERVATION,PREMISES RELATED EXPENDITURE,2,"Works - Construction, Repair & Maintenance",39,R & M OF BUILDINGS,2000,08/05/2015,525422,1714.77 ,Capital,LIBERTY GAS GROUP LTD,04242416,
Fareham Borough Council,http://statistics.data.gov.uk/id/local-authority/24UE,CAPITAL PROGRAMME - HOUSING SERVICES,CP,RENOVATION OF L.A. DWELLINGS,CP10,CAPITAL - ENERGY CONSERVATION,PREMISES RELATED EXPENDITURE,2,"Works - Construction, Repair & Maintenance",39,R & M OF BUILDINGS,2000,08/05/2015,525423,2112.93 ,Capital,LIBERTY GAS GROUP LTD,04242416,
Fareham Borough Council,http://statistics.data.gov.uk/id/local-authority/24UE,CAPITAL PROGRAMME - HOUSING SERVICES,CP,RENOVATION OF L.A. DWELLINGS,CP10,CAPITAL - ENERGY CONSERVATION,PREMISES RELATED EXPENDITURE,2,"Works - Construction, Repair & Maintenance",39,R & M OF BUILDINGS,2000,08/05/2015,525424,2182.89 ,Capital,LIBERTY GAS GROUP LTD,04242416,
Fareham Borough Council,http://statistics.data.gov.uk/id/local-authority/24UE,HOUSING REVENUE ACCOUNT,BV06,CATCH UP REPAIRS,5902,DEPT STREETSCENE,PREMISES RELATED EXPENDITURE,2,"Works - Construction, Repair & Maintenance",39,R & M OF BUILDINGS,2000,08/05/2015,525425,2898.01 ,Revenue,TOPMARX LTD,03207600,
Fareham Borough Council,http://statistics.data.gov.uk/id/local-authority/24UE,OTHER REVENUE ACCOUNTS,RV,CONTRACT SERVICES D.S.O.,RV14,DEPT STREETSCENE,PREMISES RELATED EXPENDITURE,2,Building Construction Materials,10,R & M OF BUILDINGS,2000,08/05/2015,525440,775.48 ,Revenue,AKZONOBEL,02881641,
Fareham Borough Council,http://statistics.data.gov.uk/id/local-authority/24UE,FINANCING & INVESTMENT I&E,BVB02,INVESTMENT PROPERTIES,BVB170,DEPT of FINANCE and RESOURCES,PREMISES RELATED EXPENDITURE,2,Facilities & Management Services,19,SERVICE CHARGES,2260,15/05/2015,525451,4334.75 ,Revenue,HALL & WOODHOUSE LTD,00057696,
Fareham Borough Council,http://statistics.data.gov.uk/id/local-authority/24UE,CENTRAL SERVICES,BV07,CENTRAL SERVICES TO THE PUBLIC,BV07B,DEPT of COMMUNITY and STREETSCENE,SUPPLIES & SERVICES,4,Financial Services,20,BANK CHARGES,4954,08/05/2015,525457,55.50 ,Revenue,ALLPAY LIMITED,02933191,
Fareham Borough Council,http://statistics.data.gov.uk/id/local-authority/24UE,CENTRAL SERVICES,BV07,CENTRAL SERVICES TO THE PUBLIC,BV07B,DEPT of COMMUNITY and STREETSCENE,SUPPLIES & SERVICES,4,Financial Services,20,SPECIAL EXPENDITURE,4999,08/05/2015,525457,16.83 ,Revenue,ALLPAY LIMITED,02933191,
Fareham Borough Council,http://statistics.data.gov.uk/id/local-authority/24UE,CENTRAL SERVICES,BV07,CENTRAL SERVICES TO THE PUBLIC,BV07B,DEPT of COMMUNITY and STREETSCENE,SUPPLIES & SERVICES,4,Financial Services,20,BANK CHARGES,4954,08/05/2015,525457,2.35 ,Revenue,ALLPAY LIMITED,02933191,
Fareham Borough Council,http://statistics.data.gov.uk/id/local-authority/24UE,CENTRAL SERVICES,BV07,CENTRAL SERVICES TO THE PUBLIC,BV07B,DEPT of COMMUNITY and STREETSCENE,SUPPLIES & SERVICES,4,Financial Services,20,BANK CHARGES,4954,08/05/2015,525457,1054.56 ,Revenue,ALLPAY LIMITED,02933191,
Fareham Borough Council,http://statistics.data.gov.uk/id/local-authority/24UE,CENTRAL SERVICES,BV07,CENTRAL SERVICES TO THE PUBLIC,BV07B,DEPT of COMMUNITY and STREETSCENE,SUPPLIES & SERVICES,4,Financial Services,20,SPECIAL EXPENDITURE,4999,08/05/2015,525457,319.79 ,Revenue,ALLPAY LIMITED,02933191,
Fareham Borough Council,http://statistics.data.gov.uk/id/local-authority/24UE,CENTRAL SERVICES,BV07,CENTRAL SERVICES TO THE PUBLIC,BV07B,DEPT of COMMUNITY and STREETSCENE,SUPPLIES & SERVICES,4,Financial Services,20,BANK CHARGES,4954,08/05/2015,525457,44.57 ,Revenue,ALLPAY LIMITED,02933191,
Fareham Borough Council,http://statistics.data.gov.uk/id/local-authority/24UE,HOUSING REVENUE ACCOUNT,BV06,GENERAL ADMINISTRATION EXPENSE,5021,DEPT of COMMUNITY and STREETSCENE,SUPPLIES & SERVICES,4,Financial Services,20,PAYMENT CARD CHARGES,4411,22/05/2015,525461,662.45 ,Revenue,ALLPAY LIMITED,02933191,
Fareham Borough Council,http://statistics.data.gov.uk/id/local-authority/24UE,HOUSING REVENUE ACCOUNT,BV06,GENERAL ADMINISTRATION EXPENSE,5021,DEPT of COMMUNITY and STREETSCENE,SUPPLIES & SERVICES,4,Financial Services,20,PAYMENT CARD CHARGES,4411,22/05/2015,525461,68.04 ,Revenue,ALLPAY LIMITED,02933191,
Fareham Borough Council,http://statistics.data.gov.uk/id/local-authority/24UE,GENERAL FUND HOUSING,BV05,HOUSING BENEFIT ADMINISTRATION,BV05H,DEPT of COMMUNITY and STREETSCENE,EMPLOYEES RELATED EXPENDITURE,1,Human Resources,26,AGENCY WORKERS,1050,08/05/2015,525463,7728.27 ,Revenue,HBHC SYNERGY LTD,07637706,
Fareham Borough Council,http://statistics.data.gov.uk/id/local-authority/24UE,CENTRAL SERVICES,BV07,CENTRAL SERVICES TO THE PUBLIC,BV07B,DEPT of COMMUNITY and STREETSCENE,EMPLOYEES RELATED EXPENDITURE,1,Human Resources,26,AGENCY WORKERS,1050,08/05/2015,525463,152.16 ,Revenue,HBHC SYNERGY LTD,07637706,
Fareham Borough Council,http://statistics.data.gov.uk/id/local-authority/24UE,CENTRAL SERVICES,BV07,CENTRAL SERVICES TO THE PUBLIC,BV07B,DEPT of COMMUNITY and STREETSCENE,EMPLOYEES RELATED EXPENDITURE,1,Human Resources,26,AGENCY WORKERS,1050,08/05/2015,525463,3864.13 ,Revenue,HBHC SYNERGY LTD,07637706,
Fareham Borough Council,http://statistics.data.gov.uk/id/local-authority/24UE,CENTRAL SERVICES,BV07,CENTRAL SERVICES TO THE PUBLIC,BV07B,DEPT of COMMUNITY and STREETSCENE,EMPLOYEES RELATED EXPENDITURE,1,Human Resources,26,AGENCY WORKERS,1050,08/05/2015,525463,2891.09 ,Revenue,HBHC SYNERGY LTD,07637706,
Fareham Borough Council,http://statistics.data.gov.uk/id/local-authority/24UE,CAPITAL PROGRAMME - HOUSING SERVICES,CP,RENOVATION OF L.A. DWELLINGS,CP10,CAPITAL - IMPROVEMENTS WORK/MODERNIS'N,PREMISES RELATED EXPENDITURE,2,"Works - Construction, Repair & Maintenance",39,R & M OF BUILDINGS,2000,08/05/2015,525468,15333.57 ,Capital,A PURKISS BUILDING & DECORATING LTD,3561215,
Fareham Borough Council,http://statistics.data.gov.uk/id/local-authority/24UE,CAPITAL PROGRAMME - HOUSING SERVICES,CP,RENOVATION OF L.A. DWELLINGS,CP10,CAPITAL - IMPROVEMENTS WORK/MODERNIS'N,PREMISES RELATED EXPENDITURE,2,Building Construction Materials,10,R & M OF BUILDINGS,2000,22/05/2015,525469,26798.56 ,Capital,SOVEREIGN GROUP LTD,1089940,
Fareham Borough Council,http://statistics.data.gov.uk/id/local-authority/24UE,HOUSING REVENUE ACCOUNT,BV06,RESPONSIVE & VOID MAINTENANCE,5901,DEPT STREETSCENE,SUPPLIES & SERVICES,4,Unclassified,,INSURANCES - EXCESS(ARPL),4902,08/05/2015,525470,750.00 ,Revenue,redacted personal data,,
Fareham Borough Council,http://statistics.data.gov.uk/id/local-authority/24UE,CORPORATE & DEMOCRATIC CORE,BV07A,DEMOCRATIC REP.& MANAGEMENT,BV07AA,DEPT of FINANCE and RESOURCES,SUPPLIES & SERVICES,4,Information Communication Technology,27,SOFTWARE LICENCES,4530,22/05/2015,525472,7010.00 ,Revenue,MODERN MINDSET LTD,02208130,
Fareham Borough Council,http://statistics.data.gov.uk/id/local-authority/24UE,OTHER REVENUE ACCOUNTS,RV,HCC TRANSPORTATION (REVENUE),RV11,DEPT STREETSCENE,THIRD PARTY PAYMENTS,5,"Works - Construction, Repair & Maintenance",39,PRIVATE CONTRACTORS,5610,29/05/2015,525474,1600.00 ,Revenue,COUPE LINE (SOUTHERN),07232512,
Fareham Borough Council,http://statistics.data.gov.uk/id/local-authority/24UE,OTHER REVENUE ACCOUNTS,RV,HCC TRANSPORTATION (REVENUE),RV11,DEPT STREETSCENE,THIRD PARTY PAYMENTS,5,"Works - Construction, Repair & Maintenance",39,PRIVATE CONTRACTORS,5610,29/05/2015,525476,870.00 ,Revenue,COUPE LINE (SOUTHERN),07232512,
Fareham Borough Council,http://statistics.data.gov.uk/id/local-authority/24UE,ENVIRONMENT AND REGULATORY SER,BV03,ENVIRONMENTAL HEALTH,BV03C,DEPT STREETSCENE,PREMISES RELATED EXPENDITURE,2,"Works - Construction, Repair & Maintenance",39,R & M OF BUILDINGS,2000,29/05/2015,525477,150.00 ,Revenue,COUPE LINE (SOUTHERN),07232512,
Fareham Borough Council,http://statistics.data.gov.uk/id/local-authority/24UE,OTHER REVENUE ACCOUNTS,RV,HCC TRANSPORTATION (REVENUE),RV11,DEPT STREETSCENE,THIRD PARTY PAYMENTS,5,"Works - Construction, Repair & Maintenance",39,PRIVATE CONTRACTORS,5610,29/05/2015,525477,645.00 ,Revenue,COUPE LINE (SOUTHERN),07232512,
Fareham Borough Council,http://statistics.data.gov.uk/id/local-authority/24UE,ENVIRONMENT AND REGULATORY SER,BV03,CEMETERIES CREM & MORTUARY,BV03A,DEPT STREETSCENE,SUPPLIES & SERVICES,4,Unclassified,,CONSULTANTS FEES,4401,08/05/2015,525483,873.00 ,Revenue,M COGHLAN LIMITED,,
Fareham Borough Council,http://statistics.data.gov.uk/id/local-authority/24UE,CULTURAL AND RELATED SERVICES,BV09,CULTURE AND HERITAGE,BV09A,DEPT of FINANCE and RESOURCES,PREMISES RELATED EXPENDITURE,2,Utilities,37,ELECTRICITY,2120,08/05/2015,525491,33.62 ,Revenue,EDF ENERGY,02366852,
Fareham Borough Council,http://statistics.data.gov.uk/id/local-authority/24UE,ENVIRONMENT AND REGULATORY SER,BV03,ENVIRONMENTAL HEALTH,BV03C,DEPT STREETSCENE,PREMISES RELATED EXPENDITURE,2,Utilities,37,ELECTRICITY,2120,08/05/2015,525491,139.34 ,Revenue,EDF ENERGY,02366852,
Fareham Borough Council,http://statistics.data.gov.uk/id/local-authority/24UE,HIGHWAYS ROADS AND TRANSPORT,BV12,PARKING SERVICES,BV12D,DEPT STREETSCENE,PREMISES RELATED EXPENDITURE,2,Utilities,37,ELECTRICITY,2120,08/05/2015,525491,55.10 ,Revenue,EDF ENERGY,02366852,
Fareham Borough Council,http://statistics.data.gov.uk/id/local-authority/24UE,HOUSING REVENUE ACCOUNT,BV06,COMMUNAL LIGHTING,5026,DEPT of COMMUNITY and STREETSCENE,PREMISES RELATED EXPENDITURE,2,Utilities,37,ELECTRICITY,2120,08/05/2015,525491,404.84 ,Revenue,EDF ENERGY,02366852,
Fareham Borough Council,http://statistics.data.gov.uk/id/local-authority/24UE,GENERAL FUND HOUSING,BV05,HOUSING BENEFIT ADMINISTRATION,BV05H,DEPT of COMMUNITY and STREETSCENE,TRANSPORT RELATED EXPENDITURE,3,Human Resources,26,PUBLIC TRANSPORT-CONF/SEMINAR,3310,08/05/2015,525492,76.80 ,Revenue,RSP RAIL TRAVEL ACCOUNT,03069042,
Fareham Borough Council,http://statistics.data.gov.uk/id/local-authority/24UE,CORPORATE & DEMOCRATIC CORE,BV07A,DEMOCRATIC REP.& MANAGEMENT,BV07AA,DEPT of FINANCE and RESOURCES,TRANSPORT RELATED EXPENDITURE,3,Human Resources,26,PUBLIC TRANSPORT-MEMBERS,3320,08/05/2015,525492,15.00 ,Revenue,RSP RAIL TRAVEL ACCOUNT,03069042,
Fareham Borough Council,http://statistics.data.gov.uk/id/local-authority/24UE,CORPORATE & DEMOCRATIC CORE,BV07A,DEMOCRATIC REP.& MANAGEMENT,BV07AA,DEPT of FINANCE and RESOURCES,TRANSPORT RELATED EXPENDITURE,3,Human Resources,26,PUBLIC TRANSPORT-CONF/SEMINAR,3310,08/05/2015,525492,69.90 ,Revenue,RSP RAIL TRAVEL ACCOUNT,03069042,
Fareham Borough Council,http://statistics.data.gov.uk/id/local-authority/24UE,CORPORATE & DEMOCRATIC CORE,BV07A,CORPORATE MANAGEMENT,BV07AB,DEPT of FINANCE and RESOURCES,TRANSPORT RELATED EXPENDITURE,3,Human Resources,26,PUBLIC TRANSPORT-CONF/SEMINAR,3310,08/05/2015,525492,76.80 ,Revenue,RSP RAIL TRAVEL ACCOUNT,03069042,
Fareham Borough Council,http://statistics.data.gov.uk/id/local-authority/24UE,CORPORATE & DEMOCRATIC CORE,BV07A,CORPORATE MANAGEMENT,BV07AB,DEPT of FINANCE and RESOURCES,TRANSPORT RELATED EXPENDITURE,3,Human Resources,26,PUBLIC TRANSPORT-ROUTINE,3300,08/05/2015,525492,69.90 ,Revenue,RSP RAIL TRAVEL ACCOUNT,03069042,
Fareham Borough Council,http://statistics.data.gov.uk/id/local-authority/24UE,CENTRAL SERVICES,BV07,CENTRAL SERVICES TO THE PUBLIC,BV07B,DEPT of COMMUNITY and STREETSCENE,SUPPLIES & SERVICES,4,Human Resources,26,PUBLIC TRANSPORT-CONF/SEMINAR,3310,08/05/2015,525492,58.10 ,Revenue,RSP RAIL TRAVEL ACCOUNT,03069042,Actioned KW 26.06.15
Fareham Borough Council,http://statistics.data.gov.uk/id/local-authority/24UE,PLANNING SERVICES,BV13,DEVELOPMENT CONTROL,BV13B,DEPT of STRATEGIC PLANNING and ENVIRONMENT,TRANSPORT RELATED EXPENDITURE,3,Human Resources,26,PUBLIC TRANSPORT-CONF/SEMINAR,3310,08/05/2015,525492,8.80 ,Revenue,RSP RAIL TRAVEL ACCOUNT,03069042,
Fareham Borough Council,http://statistics.data.gov.uk/id/local-authority/24UE,PLANNING SERVICES,BV13,PLANNING POLICY,BV13C,DEPT of STRATEGIC PLANNING and ENVIRONMENT,TRANSPORT RELATED EXPENDITURE,3,Human Resources,26,PUBLIC TRANSPORT-ROUTINE,3300,08/05/2015,525492,34.60 ,Revenue,RSP RAIL TRAVEL ACCOUNT,03069042,
Fareham Borough Council,http://statistics.data.gov.uk/id/local-authority/24UE,PLANNING SERVICES,BV13,PLANNING POLICY,BV13C,DEPT of STRATEGIC PLANNING and ENVIRONMENT,TRANSPORT RELATED EXPENDITURE,3,Human Resources,26,PUBLIC TRANSPORT-CONF/SEMINAR,3310,08/05/2015,525492,66.80 ,Revenue,RSP RAIL TRAVEL ACCOUNT,03069042,
Fareham Borough Council,http://statistics.data.gov.uk/id/local-authority/24UE,HOUSING REVENUE ACCOUNT,BV06,GENERAL ADMINISTRATION EXPENSE,5021,DEPT of COMMUNITY and STREETSCENE,TRANSPORT RELATED EXPENDITURE,3,Human Resources,26,PUBLIC TRANSPORT-CONF/SEMINAR,3310,08/05/2015,525492,26.60 ,Revenue,RSP RAIL TRAVEL ACCOUNT,03069042,
Fareham Borough Council,http://statistics.data.gov.uk/id/local-authority/24UE,OTHER REVENUE ACCOUNTS,RV,NON WORK GROUP HOLDING ACCOUNT,RV18,DEPT of FINANCE and RESOURCES,TRANSPORT RELATED EXPENDITURE,3,Human Resources,26,PUBLIC TRANSPORT-CONF/SEMINAR,3310,08/05/2015,525492,10.50 ,Revenue,RSP RAIL TRAVEL ACCOUNT,03069042,
Fareham Borough Council,http://statistics.data.gov.uk/id/local-authority/24UE,OTHER REVENUE ACCOUNTS,RV,NON WORK GROUP HOLDING ACCOUNT,RV18,DEPT of FINANCE and RESOURCES,TRANSPORT RELATED EXPENDITURE,3,Human Resources,26,PUBLIC TRANSPORT-CONF/SEMINAR,3310,08/05/2015,525492,76.80 ,Revenue,RSP RAIL TRAVEL ACCOUNT,03069042,
Fareham Borough Council,http://statistics.data.gov.uk/id/local-authority/24UE,CORPORATE & DEMOCRATIC CORE,BV07A,DEMOCRATIC REP.& MANAGEMENT,BV07AA,DEPT of FINANCE and RESOURCES,SUPPLIES & SERVICES,4,Information Communication Technology,27,INTERNET RENTAL ALLOWANCE,4627,08/05/2015,525497,171.99 ,Revenue,BT PLC,1800000,
Fareham Borough Council,http://statistics.data.gov.uk/id/local-authority/24UE,ENVIRONMENT AND REGULATORY SER,BV03,ENVIRONMENTAL HEALTH,BV03C,DEPT STREETSCENE,SUPPLIES & SERVICES,4,Information Communication Technology,27,FURNITURE & EQUIPT. MAINT.,4030,08/05/2015,525497,19.99 ,Revenue,BT PLC,1800000,
Fareham Borough Council,http://statistics.data.gov.uk/id/local-authority/24UE,CENTRAL SERVICES,BV07,CENTRAL SERVICES TO THE PUBLIC,BV07B,DEPT STREETSCENE,SUPPLIES & SERVICES,4,Information Communication Technology,27,TELEPHONES,4510,08/05/2015,525497,60.33 ,Revenue,BT PLC,1800000,
Fareham Borough Council,http://statistics.data.gov.uk/id/local-authority/24UE,PLANNING SERVICES,BV13,ECONOMIC DEVELOPMENT,BV13E,DEPT of STRATEGIC PLANNING and ENVIRONMENT,SUPPLIES & SERVICES,4,Information Communication Technology,27,TELEPHONES,4510,08/05/2015,525497,19.99 ,Revenue,BT PLC,1800000,
Fareham Borough Council,http://statistics.data.gov.uk/id/local-authority/24UE,CULTURAL AND RELATED SERVICES,BV09,CULTURE AND HERITAGE,BV09A,DEPT of COMMUNITY and STREETSCENE,SUPPLIES & SERVICES,4,Information Communication Technology,27,TELEPHONES,4510,08/05/2015,525497,63.57 ,Revenue,BT PLC,1800000,
Fareham Borough Council,http://statistics.data.gov.uk/id/local-authority/24UE,CULTURAL AND RELATED SERVICES,BV09,RECREATION AND SPORT,BV09B,DEPT STREETSCENE,SUPPLIES & SERVICES,4,Information Communication Technology,27,TELEPHONES,4510,08/05/2015,525497,31.97 ,Revenue,BT PLC,1800000,
Fareham Borough Council,http://statistics.data.gov.uk/id/local-authority/24UE,HIGHWAYS ROADS AND TRANSPORT,BV12,PARKING SERVICES,BV12D,DEPT STREETSCENE,SUPPLIES & SERVICES,4,Information Communication Technology,27,TELEPHONES,4510,08/05/2015,525497,191.40 ,Revenue,BT PLC,1800000,
Fareham Borough Council,http://statistics.data.gov.uk/id/local-authority/24UE,HOUSING REVENUE ACCOUNT,BV06,WARDEN SERVICE,5031,DEPT of COMMUNITY and STREETSCENE,PREMISES RELATED EXPENDITURE,2,Information Communication Technology,27,R & M ALARM SPEECH SYSTEMS,2027,08/05/2015,525497,1139.71 ,Revenue,BT PLC,1800000,
Fareham Borough Council,http://statistics.data.gov.uk/id/local-authority/24UE,HOUSING REVENUE ACCOUNT,BV06,WARDEN SERVICE,5031,DEPT of COMMUNITY and STREETSCENE,SUPPLIES & SERVICES,4,Information Communication Technology,27,TELEPHONES (WARDENS & COMM'L),4511,08/05/2015,525497,270.75 ,Revenue,BT PLC,1800000,
Fareham Borough Council,http://statistics.data.gov.uk/id/local-authority/24UE,OTHER REVENUE ACCOUNTS,RV,NON WORK GROUP HOLDING ACCOUNT,RV18,DEPT of FINANCE and RESOURCES,SUPPLIES & SERVICES,4,Information Communication Technology,27,TELEPHONES,4510,08/05/2015,525497,19.99 ,Revenue,BT PLC,1800000,
Fareham Borough Council,http://statistics.data.gov.uk/id/local-authority/24UE,OTHER REVENUE ACCOUNTS,RV,NON WORK GROUP HOLDING ACCOUNT,RV18,DEPT of FINANCE and RESOURCES,SUPPLIES & SERVICES,4,Information Communication Technology,27,TELEPHONES,4510,08/05/2015,525497,2374.57 ,Revenue,BT PLC,1800000,
Fareham Borough Council,http://statistics.data.gov.uk/id/local-authority/24UE,CULTURAL AND RELATED SERVICES,BV09,CULTURE AND HERITAGE,BV09A,DEPT of COMMUNITY and STREETSCENE,SUPPLIES & SERVICES,4,Financial Services,20,CREDIT CARD CHARGES,4957,08/05/2015,525498,86.12 ,Revenue,WORLDPAY,07316500,
Fareham Borough Council,http://statistics.data.gov.uk/id/local-authority/24UE,CULTURAL AND RELATED SERVICES,BV09,CULTURE AND HERITAGE,BV09A,DEPT of COMMUNITY and STREETSCENE,SUPPLIES & SERVICES,4,Financial Services,20,CREDIT CARD CHARGES,4957,08/05/2015,525498,474.79 ,Revenue,WORLDPAY,07316500,
Fareham Borough Council,http://statistics.data.gov.uk/id/local-authority/24UE,HOUSING REVENUE ACCOUNT,BV06,RESPONSIVE & VOID MAINTENANCE,5901,DEPT STREETSCENE,PREMISES RELATED EXPENDITURE,2,Social Community Care Supplies & Services,32,GENERAL REPAIRS,2018,08/05/2015,525502,-998.00 ,Revenue,LIFTABILITY,03782380,
Fareham Borough Council,http://statistics.data.gov.uk/id/local-authority/24UE,BALANCE SHEET,BS,BAL. SHEET - GENERAL FUND,BS1,BAL. SHEET - GENERAL FUND,TOTAL ASSETS LESS LIABILITIES,BS100,Financial Services,20,INSURANCE SUSPENSE ACCOUNT,E608,22/05/2015,525503,2083.49 ,Balance Sheet,JLT BENEFIT SOLUTIONS LTD,02240496,
Fareham Borough Council,http://statistics.data.gov.uk/id/local-authority/24UE,CAPITAL PROGRAMME - HOUSING SERVICES,CP,RENOVATION OF L.A. DWELLINGS,CP10,CAPITAL - IMPROVEMENTS WORK/MODERNIS'N,PREMISES RELATED EXPENDITURE,2,"Works - Construction, Repair & Maintenance",39,R & M OF BUILDINGS,2000,22/05/2015,525505,2924.99 ,Capital,LIBERTY GAS GROUP LTD,04242416,
Fareham Borough Council,http://statistics.data.gov.uk/id/local-authority/24UE,CAPITAL PROGRAMME - HOUSING SERVICES,CP,RENOVATION OF L.A. DWELLINGS,CP10,CAPITAL - IMPROVEMENTS WORK/MODERNIS'N,PREMISES RELATED EXPENDITURE,2,"Works - Construction, Repair & Maintenance",39,R & M OF BUILDINGS,2000,22/05/2015,525506,5045.02 ,Capital,LIBERTY GAS GROUP LTD,04242416,
Fareham Borough Council,http://statistics.data.gov.uk/id/local-authority/24UE,HOUSING REVENUE ACCOUNT,BV06,RESPONSIVE & VOID MAINTENANCE,5901,DEPT STREETSCENE,SUPPLIES & SERVICES,4,Financial Services,20,CONSULTANTS FEES,4401,22/05/2015,525508,1400.00 ,Revenue,CUNNINGHAM LINDSEY,159031,
Fareham Borough Council,http://statistics.data.gov.uk/id/local-authority/24UE,PLANNING SERVICES,BV13,DEVELOPMENT CONTROL,BV13B,DEPT of STRATEGIC PLANNING and ENVIRONMENT,SUPPLIES & SERVICES,4,Consultancy,15,CONSULTANTS FEES,4401,08/05/2015,525512,1189.00 ,Revenue,redacted personal data,,
Fareham Borough Council,http://statistics.data.gov.uk/id/local-authority/24UE,PLANNING SERVICES,BV13,DEVELOPMENT CONTROL,BV13B,DEPT of STRATEGIC PLANNING and ENVIRONMENT,SUPPLIES & SERVICES,4,Consultancy,15,CONSULTANTS FEES,4401,08/05/2015,525513,2047.50 ,Revenue,JENKINSDUVAL LTD,5471927,
Fareham Borough Council,http://statistics.data.gov.uk/id/local-authority/24UE,PLANNING SERVICES,BV13,PLANNING POLICY,BV13C,DEPT of STRATEGIC PLANNING and ENVIRONMENT,SUPPLIES & SERVICES,4,Consultancy,15,CONSULTANTS FEES,4401,08/05/2015,525513,292.50 ,Revenue,JENKINSDUVAL LTD,5471927,
Fareham Borough Council,http://statistics.data.gov.uk/id/local-authority/24UE,OTHER REVENUE ACCOUNTS,RV,CONTRACT SERVICES D.S.O.,RV14,DEPT STREETSCENE,EMPLOYEES RELATED EXPENDITURE,1,Human Resources,26,AGENCY WORKERS,1050,15/05/2015,525516,810.78 ,Revenue,BUILDING RECRUITMENT COMPANY LTD,3750125,
Fareham Borough Council,http://statistics.data.gov.uk/id/local-authority/24UE,ENVIRONMENT AND REGULATORY SER,BV03,STREET CLEANSING,BV03F,DEPT STREETSCENE,TRANSPORT RELATED EXPENDITURE,3,Vehicle Management,38,SERVICING,3027,29/05/2015,525518,515.00 ,Revenue,TENNANT GREEN MACHINE,SC042491,
Fareham Borough Council,http://statistics.data.gov.uk/id/local-authority/24UE,CAPITAL PROGRAMME - OTHER SERVICES,CP,SCHEMES FUNDED FROM BALANCES,CP20,CAPITAL - SCHEMES FUNDED FROM BALANCES,SUPPLIES & SERVICES,4,Consultancy,15,CONSULTANTS FEES,4401,29/05/2015,525519,2075.00 ,Capital,COLIN MITCHELL CONSULTING,,
Fareham Borough Council,http://statistics.data.gov.uk/id/local-authority/24UE,CAPITAL PROGRAMME - OTHER SERVICES,CP,SCHEMES FUNDED FROM BALANCES,CP20,CAPITAL - SCHEMES FUNDED FROM BALANCES,SUPPLIES & SERVICES,4,Consultancy,15,CONSULTANTS FEES,4401,29/05/2015,525519,1950.00 ,Capital,COLIN MITCHELL CONSULTING,,
Fareham Borough Council,http://statistics.data.gov.uk/id/local-authority/24UE,GENERAL FUND HOUSING,BV05,HOUSING BENEFIT ADMINISTRATION,BV05H,DEPT of COMMUNITY and STREETSCENE,EMPLOYEES RELATED EXPENDITURE,1,Human Resources,26,AGENCY WORKERS,1050,08/05/2015,525520,9733.55 ,Revenue,HBHC SYNERGY LTD,07637706,
Fareham Borough Council,http://statistics.data.gov.uk/id/local-authority/24UE,CENTRAL SERVICES,BV07,CENTRAL SERVICES TO THE PUBLIC,BV07B,DEPT of COMMUNITY and STREETSCENE,EMPLOYEES RELATED EXPENDITURE,1,Human Resources,26,AGENCY WORKERS,1050,08/05/2015,525520,202.98 ,Revenue,HBHC SYNERGY LTD,07637706,
Fareham Borough Council,http://statistics.data.gov.uk/id/local-authority/24UE,CENTRAL SERVICES,BV07,CENTRAL SERVICES TO THE PUBLIC,BV07B,DEPT of COMMUNITY and STREETSCENE,EMPLOYEES RELATED EXPENDITURE,1,Human Resources,26,AGENCY WORKERS,1050,08/05/2015,525520,4866.77 ,Revenue,HBHC SYNERGY LTD,07637706,
Fareham Borough Council,http://statistics.data.gov.uk/id/local-authority/24UE,CENTRAL SERVICES,BV07,CENTRAL SERVICES TO THE PUBLIC,BV07B,DEPT of COMMUNITY and STREETSCENE,EMPLOYEES RELATED EXPENDITURE,1,Human Resources,26,AGENCY WORKERS,1050,08/05/2015,525520,3856.65 ,Revenue,HBHC SYNERGY LTD,07637706,
Fareham Borough Council,http://statistics.data.gov.uk/id/local-authority/24UE,HOUSING REVENUE ACCOUNT,BV06,RESPONSIVE & VOID MAINTENANCE,5901,DEPT STREETSCENE,PREMISES RELATED EXPENDITURE,2,Building Construction Materials,10,VOID COSTS - NOT RECHARGEABLE,2011,08/05/2015,525523,306.40 ,Revenue,P R JACOBS FENCING,,
Fareham Borough Council,http://statistics.data.gov.uk/id/local-authority/24UE,HOUSING REVENUE ACCOUNT,BV06,RESPONSIVE & VOID MAINTENANCE,5901,DEPT STREETSCENE,PREMISES RELATED EXPENDITURE,2,Building Construction Materials,10,VOID COSTS - NOT RECHARGEABLE,2011,08/05/2015,525523,615.75 ,Revenue,P R JACOBS FENCING,,
Fareham Borough Council,http://statistics.data.gov.uk/id/local-authority/24UE,HOUSING REVENUE ACCOUNT,BV06,GENERAL ADMINISTRATION EXPENSE,5021,DEPT of COMMUNITY and STREETSCENE,SUPPLIES & SERVICES,4,Unclassified,,LEGAL FEES,4400,08/05/2015,525525,500.00 ,Revenue,HMCTS,,
Fareham Borough Council,http://statistics.data.gov.uk/id/local-authority/24UE,CULTURAL AND RELATED SERVICES,BV09,RECREATION AND SPORT,BV09B,DEPT of COMMUNITY and STREETSCENE,PREMISES RELATED EXPENDITURE,2,Financial Services,20,SEWERAGE & ENV. CHARGES (SWS),2410,08/05/2015,525529,706.00 ,Revenue,TITCHFIELD COMMUNITY ASSOCIATION,05372712,
Fareham Borough Council,http://statistics.data.gov.uk/id/local-authority/24UE,CAPITAL PROGRAMME - HOUSING SERVICES,CP,HOUSE RENOVATION GRANTS,CP11,CAPITAL - HOUSE RENOVATION GRANTS,SUPPLIES & SERVICES,4,Social Community Care Supplies & Services,32,GRANTS AND SUBSCRIPTIONS,4700,08/05/2015,525530,4645.00 ,Capital,LIFTECH SYSTEMS (SE) LTD,04834054,
Fareham Borough Council,http://statistics.data.gov.uk/id/local-authority/24UE,CORPORATE & DEMOCRATIC CORE,BV07A,CORPORATE MANAGEMENT,BV07AB,DEPT of FINANCE and RESOURCES,SUPPLIES & SERVICES,4,Financial Services,20,EXTERNAL AUDIT FEES,4419,22/05/2015,525555,19622.00 ,Revenue,ERNST & YOUNG LLP,OC300001,
Fareham Borough Council,http://statistics.data.gov.uk/id/local-authority/24UE,CAPITAL PROGRAMME - HOUSING SERVICES,CP,RENOVATION OF L.A. DWELLINGS,CP10,CAPITAL - IMPROVEMENTS WORK/MODERNIS'N,PREMISES RELATED EXPENDITURE,2,Building Construction Materials,10,R & M OF BUILDINGS,2000,08/05/2015,525561,780.00 ,Capital,HARFORD SPECIALISED SERVICES LTD,02338660,
Fareham Borough Council,http://statistics.data.gov.uk/id/local-authority/24UE,OTHER REVENUE ACCOUNTS,RV,CONTRACT SERVICES D.S.O.,RV14,DEPT STREETSCENE,SUPPLIES & SERVICES,4,Building Construction Materials,10,MATERIALS (OPERATIONAL),4007,15/05/2015,525562,589.67 ,Revenue,AKZONOBEL,02881641,
Fareham Borough Council,http://statistics.data.gov.uk/id/local-authority/24UE,HOUSING REVENUE ACCOUNT,BV06,RESPONSIVE & VOID MAINTENANCE,5901,DEPT STREETSCENE,PREMISES RELATED EXPENDITURE,2,"Works - Construction, Repair & Maintenance",39,GENERAL REPAIRS,2018,08/05/2015,525565,4608.00 ,Revenue,C PROUDLOCK LTD,03081239,
Fareham Borough Council,http://statistics.data.gov.uk/id/local-authority/24UE,HOUSING REVENUE ACCOUNT,BV06,RESPONSIVE & VOID MAINTENANCE,5901,DEPT STREETSCENE,PREMISES RELATED EXPENDITURE,2,"Works - Construction, Repair & Maintenance",39,GENERAL REPAIRS,2018,08/05/2015,525568,5997.00 ,Revenue,C PROUDLOCK LTD,03081239,
Fareham Borough Council,http://statistics.data.gov.uk/id/local-authority/24UE,HOUSING REVENUE ACCOUNT,BV06,RESPONSIVE & VOID MAINTENANCE,5901,DEPT STREETSCENE,PREMISES RELATED EXPENDITURE,2,"Works - Construction, Repair & Maintenance",39,GENERAL REPAIRS,2018,08/05/2015,525569,7435.00 ,Revenue,C PROUDLOCK LTD,03081239,
Fareham Borough Council,http://statistics.data.gov.uk/id/local-authority/24UE,OTHER REVENUE ACCOUNTS,RV,NON WORK GROUP HOLDING ACCOUNT,RV18,DEPT of FINANCE and RESOURCES,EMPLOYEES RELATED EXPENDITURE,1,Financial Services,20,AGENCY WORKERS,1050,08/05/2015,525570,2389.88 ,Revenue,COMPLETE CASH MANAGEMENT LIMITED,08067814,
Fareham Borough Council,http://statistics.data.gov.uk/id/local-authority/24UE,CAPITAL PROGRAMME - HOUSING SERVICES,CP,ENABLING ROLE - HOUSING ASSOC.,CP11,CAPITAL - ENABLING ROLE - HOUSING ASSOC.,PREMISES RELATED EXPENDITURE,2,Consultancy,15,R & M OF BUILDINGS,2000,08/05/2015,525571,1245.00 ,Capital,WYG ENVIRONMENT PLANNING TRANSPORT LTD,3050297,
Fareham Borough Council,http://statistics.data.gov.uk/id/local-authority/24UE,CULTURAL AND RELATED SERVICES,BV09,RECREATION AND SPORT,BV09B,DEPT of COMMUNITY and STREETSCENE,PREMISES RELATED EXPENDITURE,2,Sports & Playground Equipment & Maintenance,33,R&M OUTDOOR SPORTS FACILITIES,2066,22/05/2015,525572,680.00 ,Revenue,S & C SLATTER LTD,06537517,
Fareham Borough Council,http://statistics.data.gov.uk/id/local-authority/24UE,BALANCE SHEET,BS,FMS BAL.SHEET & CONTROL ACCT.,BS1,FMS BAL.SHEET & CONTROL ACCT.,CONTROL ACCOUNTS,C001,Financial Services,20,GOVT PROCURE CARD-CASH CONTROL,C114,08/05/2015,525577,17751.39 ,Balance Sheet,ROYAL BANK OF SCOTLAND,SC090312,
Fareham Borough Council,http://statistics.data.gov.uk/id/local-authority/24UE,CAPITAL PROGRAMME - HOUSING SERVICES,CP,HOUSE RENOVATION GRANTS,CP11,CAPITAL - HOUSE RENOVATION GRANTS,SUPPLIES & SERVICES,4,Unclassified,,GRANTS AND SUBSCRIPTIONS,4700,08/05/2015,525584,3519.00 ,Capital,KINCLIFF LTD,,
Fareham Borough Council,http://statistics.data.gov.uk/id/local-authority/24UE,OTHER REVENUE ACCOUNTS,RV,NON WORK GROUP HOLDING ACCOUNT,RV18,DEPT of FINANCE and RESOURCES,SUPPLIES & SERVICES,4,Mail Services?,30,POSTAGES,4500,08/05/2015,525589,3000.00 ,Revenue,NEOPOST LIMITED,02658324,
Fareham Borough Council,http://statistics.data.gov.uk/id/local-authority/24UE,CULTURAL AND RELATED SERVICES,BV09,CULTURE AND HERITAGE,BV09A,DEPT of COMMUNITY and STREETSCENE,SUPPLIES & SERVICES,4,Art & Leisure Services,29,PROMOTER,4916,08/05/2015,525608,850.00 ,Revenue,ACTZ MEDIA LTD,8818717,
Fareham Borough Council,http://statistics.data.gov.uk/id/local-authority/24UE,CAPITAL PROGRAMME - HOUSING SERVICES,CP,RENOVATION OF L.A. DWELLINGS,CP10,CAPITAL - IMPROVEMENTS WORK/MODERNIS'N,PREMISES RELATED EXPENDITURE,2,"Works - Construction, Repair & Maintenance",39,R & M OF BUILDINGS,2000,15/05/2015,525776,1687.49 ,Capital,COMSERV (UK) LTD,05193429,
Fareham Borough Council,http://statistics.data.gov.uk/id/local-authority/24UE,CAPITAL PROGRAMME - HOUSING SERVICES,CP,RENOVATION OF L.A. DWELLINGS,CP10,CAPITAL - IMPROVEMENTS WORK/MODERNIS'N,PREMISES RELATED EXPENDITURE,2,"Works - Construction, Repair & Maintenance",39,R & M OF BUILDINGS,2000,15/05/2015,525776,789.61 ,Capital,COMSERV (UK) LTD,05193429,
Fareham Borough Council,http://statistics.data.gov.uk/id/local-authority/24UE,CAPITAL PROGRAMME - HOUSING SERVICES,CP,RENOVATION OF L.A. DWELLINGS,CP10,CAPITAL - ENERGY CONSERVATION,PREMISES RELATED EXPENDITURE,2,"Works - Construction, Repair & Maintenance",39,R & M OF BUILDINGS,2000,15/05/2015,525776,559.94 ,Capital,COMSERV (UK) LTD,05193429,
Fareham Borough Council,http://statistics.data.gov.uk/id/local-authority/24UE,HOUSING REVENUE ACCOUNT,BV06,RESPONSIVE & VOID MAINTENANCE,5901,DEPT STREETSCENE,PREMISES RELATED EXPENDITURE,2,"Works - Construction, Repair & Maintenance",39,VOID COSTS - NOT RECHARGEABLE,2011,15/05/2015,525776,254.31 ,Revenue,COMSERV (UK) LTD,05193429,
Fareham Borough Council,http://statistics.data.gov.uk/id/local-authority/24UE,HOUSING REVENUE ACCOUNT,BV06,RESPONSIVE & VOID MAINTENANCE,5901,DEPT STREETSCENE,PREMISES RELATED EXPENDITURE,2,"Works - Construction, Repair & Maintenance",39,GENERAL REPAIRS,2018,15/05/2015,525776,1528.41 ,Revenue,COMSERV (UK) LTD,05193429,
Fareham Borough Council,http://statistics.data.gov.uk/id/local-authority/24UE,BALANCE SHEET,BS,BAL. SHEET - H.R.A.,BS1,BAL. SHEET - H.R.A.,BALANCES & RESERVES,BS190,"Works - Construction, Repair & Maintenance",39,RECHARGEABLE WORK SUSPENSE,E611,15/05/2015,525776,206.93 ,Balance Sheet,COMSERV (UK) LTD,05193429,
Fareham Borough Council,http://statistics.data.gov.uk/id/local-authority/24UE,GENERAL FUND HOUSING,BV05,HOMELESSNESS,BV05F,DEPT of COMMUNITY and STREETSCENE,PREMISES RELATED EXPENDITURE,2,"Works - Construction, Repair & Maintenance",39,R & M OF LEASED PROPERTIES,2001,15/05/2015,525777,93.60 ,Revenue,COMSERV (UK) LTD,05193429,
Fareham Borough Council,http://statistics.data.gov.uk/id/local-authority/24UE,GENERAL FUND HOUSING,BV05,HOMELESSNESS,BV05F,DEPT of COMMUNITY and STREETSCENE,PREMISES RELATED EXPENDITURE,2,"Works - Construction, Repair & Maintenance",39,R & M OF LEASED PROPERTIES,2001,15/05/2015,525777,93.60 ,Revenue,COMSERV (UK) LTD,05193429,
Fareham Borough Council,http://statistics.data.gov.uk/id/local-authority/24UE,CAPITAL PROGRAMME - HOUSING SERVICES,CP,RENOVATION OF L.A. DWELLINGS,CP10,CAPITAL - ENERGY CONSERVATION,PREMISES RELATED EXPENDITURE,2,"Works - Construction, Repair & Maintenance",39,R & M OF BUILDINGS,2000,15/05/2015,525777,586.60 ,Capital,COMSERV (UK) LTD,05193429,
Fareham Borough Council,http://statistics.data.gov.uk/id/local-authority/24UE,HOUSING REVENUE ACCOUNT,BV06,RESPONSIVE & VOID MAINTENANCE,5901,DEPT STREETSCENE,PREMISES RELATED EXPENDITURE,2,"Works - Construction, Repair & Maintenance",39,GENERAL REPAIRS,2018,15/05/2015,525777,687.41 ,Revenue,COMSERV (UK) LTD,05193429,
Fareham Borough Council,http://statistics.data.gov.uk/id/local-authority/24UE,HOUSING REVENUE ACCOUNT,BV06,RESPONSIVE & VOID MAINTENANCE,5901,DEPT STREETSCENE,PREMISES RELATED EXPENDITURE,2,"Works - Construction, Repair & Maintenance",39,GENERAL REPAIRS,2018,15/05/2015,525777,218.68 ,Revenue,COMSERV (UK) LTD,05193429,
Fareham Borough Council,http://statistics.data.gov.uk/id/local-authority/24UE,HOUSING REVENUE ACCOUNT,BV06,RESPONSIVE & VOID MAINTENANCE,5901,DEPT STREETSCENE,PREMISES RELATED EXPENDITURE,2,"Works - Construction, Repair & Maintenance",39,INTERNAL DECS-AP DWELLINGS,2014,15/05/2015,525777,3019.94 ,Revenue,COMSERV (UK) LTD,05193429,
Fareham Borough Council,http://statistics.data.gov.uk/id/local-authority/24UE,HOUSING REVENUE ACCOUNT,BV06,RESPONSIVE & VOID MAINTENANCE,5901,DEPT STREETSCENE,PREMISES RELATED EXPENDITURE,2,"Works - Construction, Repair & Maintenance",39,GENERAL REPAIRS,2018,15/05/2015,525777,218.68 ,Revenue,COMSERV (UK) LTD,05193429,
Fareham Borough Council,http://statistics.data.gov.uk/id/local-authority/24UE,HOUSING REVENUE ACCOUNT,BV06,RESPONSIVE & VOID MAINTENANCE,5901,DEPT STREETSCENE,PREMISES RELATED EXPENDITURE,2,"Works - Construction, Repair & Maintenance",39,GENERAL REPAIRS,2018,15/05/2015,525777,407.17 ,Revenue,COMSERV (UK) LTD,05193429,
Fareham Borough Council,http://statistics.data.gov.uk/id/local-authority/24UE,HOUSING REVENUE ACCOUNT,BV06,RESPONSIVE & VOID MAINTENANCE,5901,DEPT STREETSCENE,PREMISES RELATED EXPENDITURE,2,"Works - Construction, Repair & Maintenance",39,GENERAL REPAIRS,2018,15/05/2015,525777,483.08 ,Revenue,COMSERV (UK) LTD,05193429,
Fareham Borough Council,http://statistics.data.gov.uk/id/local-authority/24UE,HOUSING REVENUE ACCOUNT,BV06,RESPONSIVE & VOID MAINTENANCE,5901,DEPT STREETSCENE,PREMISES RELATED EXPENDITURE,2,"Works - Construction, Repair & Maintenance",39,GENERAL REPAIRS,2018,15/05/2015,525777,345.01 ,Revenue,COMSERV (UK) LTD,05193429,
Fareham Borough Council,http://statistics.data.gov.uk/id/local-authority/24UE,HOUSING REVENUE ACCOUNT,BV06,RESPONSIVE & VOID MAINTENANCE,5901,DEPT STREETSCENE,PREMISES RELATED EXPENDITURE,2,"Works - Construction, Repair & Maintenance",39,GENERAL REPAIRS,2018,15/05/2015,525777,208.30 ,Revenue,COMSERV (UK) LTD,05193429,
Fareham Borough Council,http://statistics.data.gov.uk/id/local-authority/24UE,HOUSING REVENUE ACCOUNT,BV06,RESPONSIVE & VOID MAINTENANCE,5901,DEPT STREETSCENE,PREMISES RELATED EXPENDITURE,2,"Works - Construction, Repair & Maintenance",39,GENERAL REPAIRS,2018,15/05/2015,525777,16.48 ,Revenue,COMSERV (UK) LTD,05193429,
Fareham Borough Council,http://statistics.data.gov.uk/id/local-authority/24UE,HOUSING REVENUE ACCOUNT,BV06,RESPONSIVE & VOID MAINTENANCE,5901,DEPT STREETSCENE,PREMISES RELATED EXPENDITURE,2,"Works - Construction, Repair & Maintenance",39,GENERAL REPAIRS,2018,15/05/2015,525777,108.94 ,Revenue,COMSERV (UK) LTD,05193429,
Fareham Borough Council,http://statistics.data.gov.uk/id/local-authority/24UE,HOUSING REVENUE ACCOUNT,BV06,RESPONSIVE & VOID MAINTENANCE,5901,DEPT STREETSCENE,PREMISES RELATED EXPENDITURE,2,"Works - Construction, Repair & Maintenance",39,GENERAL REPAIRS,2018,15/05/2015,525777,66.38 ,Revenue,COMSERV (UK) LTD,05193429,
Fareham Borough Council,http://statistics.data.gov.uk/id/local-authority/24UE,HOUSING REVENUE ACCOUNT,BV06,RESPONSIVE & VOID MAINTENANCE,5901,DEPT STREETSCENE,PREMISES RELATED EXPENDITURE,2,"Works - Construction, Repair & Maintenance",39,GENERAL REPAIRS,2018,15/05/2015,525777,27.54 ,Revenue,COMSERV (UK) LTD,05193429,
Fareham Borough Council,http://statistics.data.gov.uk/id/local-authority/24UE,HOUSING REVENUE ACCOUNT,BV06,RESPONSIVE & VOID MAINTENANCE,5901,DEPT STREETSCENE,PREMISES RELATED EXPENDITURE,2,"Works - Construction, Repair & Maintenance",39,GARAGES,2009,15/05/2015,525777,26.14 ,Revenue,COMSERV (UK) LTD,05193429,
Fareham Borough Council,http://statistics.data.gov.uk/id/local-authority/24UE,HOUSING REVENUE ACCOUNT,BV06,RESPONSIVE & VOID MAINTENANCE,5901,DEPT STREETSCENE,PREMISES RELATED EXPENDITURE,2,"Works - Construction, Repair & Maintenance",39,GENERAL REPAIRS,2018,15/05/2015,525777,45.00 ,Revenue,COMSERV (UK) LTD,05193429,
Fareham Borough Council,http://statistics.data.gov.uk/id/local-authority/24UE,HOUSING REVENUE ACCOUNT,BV06,CATCH UP REPAIRS,5902,DEPT STREETSCENE,PREMISES RELATED EXPENDITURE,2,"Works - Construction, Repair & Maintenance",39,R & M OF BUILDINGS,2000,15/05/2015,525777,15.00 ,Revenue,COMSERV (UK) LTD,05193429,
Fareham Borough Council,http://statistics.data.gov.uk/id/local-authority/24UE,HOUSING REVENUE ACCOUNT,BV06,RESPONSIVE & VOID MAINTENANCE,5901,DEPT STREETSCENE,PREMISES RELATED EXPENDITURE,2,"Works - Construction, Repair & Maintenance",39,GENERAL REPAIRS,2018,15/05/2015,525778,565.16 ,Revenue,COMSERV (UK) LTD,05193429,
Fareham Borough Council,http://statistics.data.gov.uk/id/local-authority/24UE,HOUSING REVENUE ACCOUNT,BV06,RESPONSIVE & VOID MAINTENANCE,5901,DEPT STREETSCENE,PREMISES RELATED EXPENDITURE,2,"Works - Construction, Repair & Maintenance",39,GENERAL REPAIRS,2018,15/05/2015,525778,156.00 ,Revenue,COMSERV (UK) LTD,05193429,
Fareham Borough Council,http://statistics.data.gov.uk/id/local-authority/24UE,HOUSING REVENUE ACCOUNT,BV06,RESPONSIVE & VOID MAINTENANCE,5901,DEPT STREETSCENE,PREMISES RELATED EXPENDITURE,2,"Works - Construction, Repair & Maintenance",39,GENERAL REPAIRS,2018,15/05/2015,525778,27.79 ,Revenue,COMSERV (UK) LTD,05193429,
Fareham Borough Council,http://statistics.data.gov.uk/id/local-authority/24UE,HOUSING REVENUE ACCOUNT,BV06,RESPONSIVE & VOID MAINTENANCE,5901,DEPT STREETSCENE,PREMISES RELATED EXPENDITURE,2,"Works - Construction, Repair & Maintenance",39,GARAGES,2009,15/05/2015,525778,71.65 ,Revenue,COMSERV (UK) LTD,05193429,
Fareham Borough Council,http://statistics.data.gov.uk/id/local-authority/24UE,HOUSING REVENUE ACCOUNT,BV06,RESPONSIVE & VOID MAINTENANCE,5901,DEPT STREETSCENE,PREMISES RELATED EXPENDITURE,2,"Works - Construction, Repair & Maintenance",39,GENERAL REPAIRS,2018,15/05/2015,525778,23.65 ,Revenue,COMSERV (UK) LTD,05193429,
Fareham Borough Council,http://statistics.data.gov.uk/id/local-authority/24UE,CAPITAL PROGRAMME - HOUSING SERVICES,CP,RENOVATION OF L.A. DWELLINGS,CP10,CAPITAL - IMPROVEMENTS WORK/MODERNIS'N,PREMISES RELATED EXPENDITURE,2,"Works - Construction, Repair & Maintenance",39,R & M OF BUILDINGS,2000,15/05/2015,525780,57.16 ,Capital,COMSERV (UK) LTD,05193429,
Fareham Borough Council,http://statistics.data.gov.uk/id/local-authority/24UE,HOUSING REVENUE ACCOUNT,BV06,RESPONSIVE & VOID MAINTENANCE,5901,DEPT STREETSCENE,PREMISES RELATED EXPENDITURE,2,"Works - Construction, Repair & Maintenance",39,VOID COSTS - NOT RECHARGEABLE,2011,15/05/2015,525780,190.24 ,Revenue,COMSERV (UK) LTD,05193429,
Fareham Borough Council,http://statistics.data.gov.uk/id/local-authority/24UE,HOUSING REVENUE ACCOUNT,BV06,RESPONSIVE & VOID MAINTENANCE,5901,DEPT STREETSCENE,PREMISES RELATED EXPENDITURE,2,"Works - Construction, Repair & Maintenance",39,GENERAL REPAIRS,2018,15/05/2015,525780,778.15 ,Revenue,COMSERV (UK) LTD,05193429,
Fareham Borough Council,http://statistics.data.gov.uk/id/local-authority/24UE,HOUSING REVENUE ACCOUNT,BV06,RESPONSIVE & VOID MAINTENANCE,5901,DEPT STREETSCENE,PREMISES RELATED EXPENDITURE,2,"Works - Construction, Repair & Maintenance",39,VOID COSTS - NOT RECHARGEABLE,2011,15/05/2015,525781,884.00 ,Revenue,COMSERV (UK) LTD,05193429,
Fareham Borough Council,http://statistics.data.gov.uk/id/local-authority/24UE,HOUSING REVENUE ACCOUNT,BV06,RESPONSIVE & VOID MAINTENANCE,5901,DEPT STREETSCENE,PREMISES RELATED EXPENDITURE,2,"Works - Construction, Repair & Maintenance",39,VOID COSTS - NOT RECHARGEABLE,2011,15/05/2015,525781,165.23 ,Revenue,COMSERV (UK) LTD,05193429,
Fareham Borough Council,http://statistics.data.gov.uk/id/local-authority/24UE,GENERAL FUND HOUSING,BV05,HOMELESSNESS,BV05F,DEPT of COMMUNITY and STREETSCENE,PREMISES RELATED EXPENDITURE,2,"Works - Construction, Repair & Maintenance",39,R & M OF LEASED PROPERTIES,2001,15/05/2015,525782,801.61 ,Revenue,COMSERV (UK) LTD,05193429,
Fareham Borough Council,http://statistics.data.gov.uk/id/local-authority/24UE,HOUSING REVENUE ACCOUNT,BV06,RESPONSIVE & VOID MAINTENANCE,5901,DEPT STREETSCENE,PREMISES RELATED EXPENDITURE,2,"Works - Construction, Repair & Maintenance",39,VOID COSTS - NOT RECHARGEABLE,2011,15/05/2015,525784,1381.23 ,Revenue,COMSERV (UK) LTD,05193429,
Fareham Borough Council,http://statistics.data.gov.uk/id/local-authority/24UE,CAPITAL PROGRAMME - HOUSING SERVICES,CP,RENOVATION OF L.A. DWELLINGS,CP10,CAPITAL - IMPROVEMENTS WORK/MODERNIS'N,PREMISES RELATED EXPENDITURE,2,"Works - Construction, Repair & Maintenance",39,R & M OF BUILDINGS,2000,15/05/2015,525785,6332.95 ,Capital,COMSERV (UK) LTD,05193429,
Fareham Borough Council,http://statistics.data.gov.uk/id/local-authority/24UE,HOUSING REVENUE ACCOUNT,BV06,RESPONSIVE & VOID MAINTENANCE,5901,DEPT STREETSCENE,PREMISES RELATED EXPENDITURE,2,"Works - Construction, Repair & Maintenance",39,VOID COSTS - NOT RECHARGEABLE,2011,15/05/2015,525785,315.61 ,Revenue,COMSERV (UK) LTD,05193429,
Fareham Borough Council,http://statistics.data.gov.uk/id/local-authority/24UE,HOUSING REVENUE ACCOUNT,BV06,RESPONSIVE & VOID MAINTENANCE,5901,DEPT STREETSCENE,PREMISES RELATED EXPENDITURE,2,"Works - Construction, Repair & Maintenance",39,GENERAL REPAIRS,2018,15/05/2015,525785,2380.32 ,Revenue,COMSERV (UK) LTD,05193429,
Fareham Borough Council,http://statistics.data.gov.uk/id/local-authority/24UE,CAPITAL PROGRAMME - HOUSING SERVICES,CP,RENOVATION OF L.A. DWELLINGS,CP10,CAPITAL - IMPROVEMENTS WORK/MODERNIS'N,PREMISES RELATED EXPENDITURE,2,"Works - Construction, Repair & Maintenance",39,R & M OF BUILDINGS,2000,15/05/2015,525786,580.48 ,Capital,COMSERV (UK) LTD,05193429,
Fareham Borough Council,http://statistics.data.gov.uk/id/local-authority/24UE,CAPITAL PROGRAMME - HOUSING SERVICES,CP,RENOVATION OF L.A. DWELLINGS,CP10,CAPITAL - IMPROVEMENTS WORK/MODERNIS'N,PREMISES RELATED EXPENDITURE,2,"Works - Construction, Repair & Maintenance",39,R & M OF BUILDINGS,2000,15/05/2015,525786,5225.65 ,Capital,COMSERV (UK) LTD,05193429,
Fareham Borough Council,http://statistics.data.gov.uk/id/local-authority/24UE,HOUSING REVENUE ACCOUNT,BV06,RESPONSIVE & VOID MAINTENANCE,5901,DEPT STREETSCENE,PREMISES RELATED EXPENDITURE,2,"Works - Construction, Repair & Maintenance",39,VOID COSTS - NOT RECHARGEABLE,2011,15/05/2015,525786,354.26 ,Revenue,COMSERV (UK) LTD,05193429,
Fareham Borough Council,http://statistics.data.gov.uk/id/local-authority/24UE,HOUSING REVENUE ACCOUNT,BV06,RESPONSIVE & VOID MAINTENANCE,5901,DEPT STREETSCENE,PREMISES RELATED EXPENDITURE,2,"Works - Construction, Repair & Maintenance",39,GENERAL REPAIRS,2018,15/05/2015,525786,753.72 ,Revenue,COMSERV (UK) LTD,05193429,
Fareham Borough Council,http://statistics.data.gov.uk/id/local-authority/24UE,CAPITAL PROGRAMME - HOUSING SERVICES,CP,RENOVATION OF L.A. DWELLINGS,CP10,CAPITAL - IMPROVEMENTS WORK/MODERNIS'N,PREMISES RELATED EXPENDITURE,2,"Works - Construction, Repair & Maintenance",39,R & M OF BUILDINGS,2000,15/05/2015,525787,6880.74 ,Capital,COMSERV (UK) LTD,05193429,
Fareham Borough Council,http://statistics.data.gov.uk/id/local-authority/24UE,CAPITAL PROGRAMME - HOUSING SERVICES,CP,RENOVATION OF L.A. DWELLINGS,CP10,CAPITAL - ENERGY CONSERVATION,PREMISES RELATED EXPENDITURE,2,"Works - Construction, Repair & Maintenance",39,R & M OF BUILDINGS,2000,15/05/2015,525787,3884.86 ,Capital,COMSERV (UK) LTD,05193429,
Fareham Borough Council,http://statistics.data.gov.uk/id/local-authority/24UE,HOUSING REVENUE ACCOUNT,BV06,RESPONSIVE & VOID MAINTENANCE,5901,DEPT STREETSCENE,PREMISES RELATED EXPENDITURE,2,"Works - Construction, Repair & Maintenance",39,VOID COSTS - NOT RECHARGEABLE,2011,15/05/2015,525787,206.71 ,Revenue,COMSERV (UK) LTD,05193429,
Fareham Borough Council,http://statistics.data.gov.uk/id/local-authority/24UE,HOUSING REVENUE ACCOUNT,BV06,RESPONSIVE & VOID MAINTENANCE,5901,DEPT STREETSCENE,PREMISES RELATED EXPENDITURE,2,"Works - Construction, Repair & Maintenance",39,GENERAL REPAIRS,2018,15/05/2015,525787,3520.97 ,Revenue,COMSERV (UK) LTD,05193429,
Fareham Borough Council,http://statistics.data.gov.uk/id/local-authority/24UE,HOUSING REVENUE ACCOUNT,BV06,RESPONSIVE & VOID MAINTENANCE,5901,DEPT STREETSCENE,PREMISES RELATED EXPENDITURE,2,"Works - Construction, Repair & Maintenance",39,VOID COSTS - NOT RECHARGEABLE,2011,15/05/2015,525787,3060.95 ,Revenue,COMSERV (UK) LTD,05193429,
Fareham Borough Council,http://statistics.data.gov.uk/id/local-authority/24UE,CAPITAL PROGRAMME - HOUSING SERVICES,CP,RENOVATION OF L.A. DWELLINGS,CP10,CAPITAL - IMPROVEMENTS WORK/MODERNIS'N,PREMISES RELATED EXPENDITURE,2,"Works - Construction, Repair & Maintenance",39,R & M OF BUILDINGS,2000,15/05/2015,525788,3600.00 ,Capital,COMSERV (UK) LTD,05193429,
Fareham Borough Council,http://statistics.data.gov.uk/id/local-authority/24UE,CAPITAL PROGRAMME - HOUSING SERVICES,CP,RENOVATION OF L.A. DWELLINGS,CP10,CAPITAL - ENVIRONMENTAL IMPROVEMENTS,PREMISES RELATED EXPENDITURE,2,"Works - Construction, Repair & Maintenance",39,R & M OF BUILDINGS,2000,15/05/2015,525788,1089.98 ,Capital,COMSERV (UK) LTD,05193429,
Fareham Borough Council,http://statistics.data.gov.uk/id/local-authority/24UE,HOUSING REVENUE ACCOUNT,BV06,RESPONSIVE & VOID MAINTENANCE,5901,DEPT STREETSCENE,PREMISES RELATED EXPENDITURE,2,"Works - Construction, Repair & Maintenance",39,VOID COSTS - NOT RECHARGEABLE,2011,15/05/2015,525788,360.35 ,Revenue,COMSERV (UK) LTD,05193429,
Fareham Borough Council,http://statistics.data.gov.uk/id/local-authority/24UE,HOUSING REVENUE ACCOUNT,BV06,RESPONSIVE & VOID MAINTENANCE,5901,DEPT STREETSCENE,PREMISES RELATED EXPENDITURE,2,"Works - Construction, Repair & Maintenance",39,GENERAL REPAIRS,2018,15/05/2015,525788,5052.96 ,Revenue,COMSERV (UK) LTD,05193429,
Fareham Borough Council,http://statistics.data.gov.uk/id/local-authority/24UE,HOUSING REVENUE ACCOUNT,BV06,RESPONSIVE & VOID MAINTENANCE,5901,DEPT STREETSCENE,PREMISES RELATED EXPENDITURE,2,"Works - Construction, Repair & Maintenance",39,EXTERNAL WORKS,2088,15/05/2015,525788,149.53 ,Revenue,COMSERV (UK) LTD,05193429,
Fareham Borough Council,http://statistics.data.gov.uk/id/local-authority/24UE,CAPITAL PROGRAMME - HOUSING SERVICES,CP,RENOVATION OF L.A. DWELLINGS,CP10,CAPITAL - IMPROVEMENTS WORK/MODERNIS'N,PREMISES RELATED EXPENDITURE,2,"Works - Construction, Repair & Maintenance",39,R & M OF BUILDINGS,2000,15/05/2015,525789,5941.50 ,Capital,COMSERV (UK) LTD,05193429,
Fareham Borough Council,http://statistics.data.gov.uk/id/local-authority/24UE,CAPITAL PROGRAMME - HOUSING SERVICES,CP,RENOVATION OF L.A. DWELLINGS,CP10,CAPITAL - ENERGY CONSERVATION,PREMISES RELATED EXPENDITURE,2,"Works - Construction, Repair & Maintenance",39,R & M OF BUILDINGS,2000,15/05/2015,525789,1418.43 ,Capital,COMSERV (UK) LTD,05193429,
Fareham Borough Council,http://statistics.data.gov.uk/id/local-authority/24UE,HOUSING REVENUE ACCOUNT,BV06,RESPONSIVE & VOID MAINTENANCE,5901,DEPT STREETSCENE,PREMISES RELATED EXPENDITURE,2,"Works - Construction, Repair & Maintenance",39,VOID COSTS - NOT RECHARGEABLE,2011,15/05/2015,525789,350.16 ,Revenue,COMSERV (UK) LTD,05193429,
Fareham Borough Council,http://statistics.data.gov.uk/id/local-authority/24UE,HOUSING REVENUE ACCOUNT,BV06,RESPONSIVE & VOID MAINTENANCE,5901,DEPT STREETSCENE,PREMISES RELATED EXPENDITURE,2,"Works - Construction, Repair & Maintenance",39,GENERAL REPAIRS,2018,15/05/2015,525789,5887.64 ,Revenue,COMSERV (UK) LTD,05193429,
Fareham Borough Council,http://statistics.data.gov.uk/id/local-authority/24UE,HOUSING REVENUE ACCOUNT,BV06,RESPONSIVE & VOID MAINTENANCE,5901,DEPT STREETSCENE,PREMISES RELATED EXPENDITURE,2,"Works - Construction, Repair & Maintenance",39,VOID COSTS - NOT RECHARGEABLE,2011,15/05/2015,525789,68.40 ,Revenue,COMSERV (UK) LTD,05193429,
Fareham Borough Council,http://statistics.data.gov.uk/id/local-authority/24UE,HOUSING REVENUE ACCOUNT,BV06,CATCH UP REPAIRS,5902,DEPT STREETSCENE,PREMISES RELATED EXPENDITURE,2,"Works - Construction, Repair & Maintenance",39,R & M OF BUILDINGS,2000,15/05/2015,525790,3900.72 ,Revenue,COMSERV (UK) LTD,05193429,
Fareham Borough Council,http://statistics.data.gov.uk/id/local-authority/24UE,GENERAL FUND HOUSING,BV05,HOMELESSNESS,BV05F,DEPT of COMMUNITY and STREETSCENE,PREMISES RELATED EXPENDITURE,2,"Works - Construction, Repair & Maintenance",39,R & M OF LEASED PROPERTIES,2001,15/05/2015,525791,154.77 ,Revenue,COMSERV (UK) LTD,05193429,
Fareham Borough Council,http://statistics.data.gov.uk/id/local-authority/24UE,CAPITAL PROGRAMME - HOUSING SERVICES,CP,RENOVATION OF L.A. DWELLINGS,CP10,CAPITAL - ENERGY CONSERVATION,PREMISES RELATED EXPENDITURE,2,"Works - Construction, Repair & Maintenance",39,R & M OF BUILDINGS,2000,15/05/2015,525791,586.60 ,Capital,COMSERV (UK) LTD,05193429,
Fareham Borough Council,http://statistics.data.gov.uk/id/local-authority/24UE,CAPITAL PROGRAMME - HOUSING SERVICES,CP,RENOVATION OF L.A. DWELLINGS,CP10,CAPITAL - ENVIRONMENTAL IMPROVEMENTS,PREMISES RELATED EXPENDITURE,2,"Works - Construction, Repair & Maintenance",39,R & M OF BUILDINGS,2000,15/05/2015,525791,1199.45 ,Capital,COMSERV (UK) LTD,05193429,
Fareham Borough Council,http://statistics.data.gov.uk/id/local-authority/24UE,HOUSING REVENUE ACCOUNT,BV06,RESPONSIVE & VOID MAINTENANCE,5901,DEPT STREETSCENE,PREMISES RELATED EXPENDITURE,2,"Works - Construction, Repair & Maintenance",39,GENERAL REPAIRS,2018,15/05/2015,525791,78.00 ,Revenue,COMSERV (UK) LTD,05193429,
Fareham Borough Council,http://statistics.data.gov.uk/id/local-authority/24UE,HOUSING REVENUE ACCOUNT,BV06,RESPONSIVE & VOID MAINTENANCE,5901,DEPT STREETSCENE,PREMISES RELATED EXPENDITURE,2,"Works - Construction, Repair & Maintenance",39,GENERAL REPAIRS,2018,15/05/2015,525791,655.70 ,Revenue,COMSERV (UK) LTD,05193429,
Fareham Borough Council,http://statistics.data.gov.uk/id/local-authority/24UE,HOUSING REVENUE ACCOUNT,BV06,RESPONSIVE & VOID MAINTENANCE,5901,DEPT STREETSCENE,PREMISES RELATED EXPENDITURE,2,"Works - Construction, Repair & Maintenance",39,GENERAL REPAIRS,2018,15/05/2015,525791,617.27 ,Revenue,COMSERV (UK) LTD,05193429,
Fareham Borough Council,http://statistics.data.gov.uk/id/local-authority/24UE,HOUSING REVENUE ACCOUNT,BV06,RESPONSIVE & VOID MAINTENANCE,5901,DEPT STREETSCENE,PREMISES RELATED EXPENDITURE,2,"Works - Construction, Repair & Maintenance",39,GENERAL REPAIRS,2018,15/05/2015,525791,192.42 ,Revenue,COMSERV (UK) LTD,05193429,
Fareham Borough Council,http://statistics.data.gov.uk/id/local-authority/24UE,HOUSING REVENUE ACCOUNT,BV06,RESPONSIVE & VOID MAINTENANCE,5901,DEPT STREETSCENE,PREMISES RELATED EXPENDITURE,2,"Works - Construction, Repair & Maintenance",39,GENERAL REPAIRS,2018,15/05/2015,525791,345.00 ,Revenue,COMSERV (UK) LTD,05193429,
Fareham Borough Council,http://statistics.data.gov.uk/id/local-authority/24UE,HOUSING REVENUE ACCOUNT,BV06,RESPONSIVE & VOID MAINTENANCE,5901,DEPT STREETSCENE,PREMISES RELATED EXPENDITURE,2,"Works - Construction, Repair & Maintenance",39,GENERAL REPAIRS,2018,15/05/2015,525791,70.63 ,Revenue,COMSERV (UK) LTD,05193429,
Fareham Borough Council,http://statistics.data.gov.uk/id/local-authority/24UE,HOUSING REVENUE ACCOUNT,BV06,RESPONSIVE & VOID MAINTENANCE,5901,DEPT STREETSCENE,PREMISES RELATED EXPENDITURE,2,"Works - Construction, Repair & Maintenance",39,GENERAL REPAIRS,2018,15/05/2015,525791,70.63 ,Revenue,COMSERV (UK) LTD,05193429,
Fareham Borough Council,http://statistics.data.gov.uk/id/local-authority/24UE,HOUSING REVENUE ACCOUNT,BV06,RESPONSIVE & VOID MAINTENANCE,5901,DEPT STREETSCENE,PREMISES RELATED EXPENDITURE,2,"Works - Construction, Repair & Maintenance",39,GENERAL REPAIRS,2018,15/05/2015,525791,1156.67 ,Revenue,COMSERV (UK) LTD,05193429,
Fareham Borough Council,http://statistics.data.gov.uk/id/local-authority/24UE,HOUSING REVENUE ACCOUNT,BV06,RESPONSIVE & VOID MAINTENANCE,5901,DEPT STREETSCENE,PREMISES RELATED EXPENDITURE,2,"Works - Construction, Repair & Maintenance",39,GENERAL REPAIRS,2018,15/05/2015,525792,717.91 ,Revenue,COMSERV (UK) LTD,05193429,
Fareham Borough Council,http://statistics.data.gov.uk/id/local-authority/24UE,HOUSING REVENUE ACCOUNT,BV06,RESPONSIVE & VOID MAINTENANCE,5901,DEPT STREETSCENE,PREMISES RELATED EXPENDITURE,2,"Works - Construction, Repair & Maintenance",39,GENERAL REPAIRS,2018,15/05/2015,525792,164.91 ,Revenue,COMSERV (UK) LTD,05193429,
Fareham Borough Council,http://statistics.data.gov.uk/id/local-authority/24UE,HOUSING REVENUE ACCOUNT,BV06,RESPONSIVE & VOID MAINTENANCE,5901,DEPT STREETSCENE,PREMISES RELATED EXPENDITURE,2,"Works - Construction, Repair & Maintenance",39,GENERAL REPAIRS,2018,15/05/2015,525792,73.78 ,Revenue,COMSERV (UK) LTD,05193429,
Fareham Borough Council,http://statistics.data.gov.uk/id/local-authority/24UE,HOUSING REVENUE ACCOUNT,BV06,RESPONSIVE & VOID MAINTENANCE,5901,DEPT STREETSCENE,PREMISES RELATED EXPENDITURE,2,"Works - Construction, Repair & Maintenance",39,EXTERNAL WORKS,2088,15/05/2015,525792,60.06 ,Revenue,COMSERV (UK) LTD,05193429,
Fareham Borough Council,http://statistics.data.gov.uk/id/local-authority/24UE,HOUSING REVENUE ACCOUNT,BV06,RESPONSIVE & VOID MAINTENANCE,5901,DEPT STREETSCENE,PREMISES RELATED EXPENDITURE,2,"Works - Construction, Repair & Maintenance",39,GENERAL REPAIRS,2018,15/05/2015,525792,70.63 ,Revenue,COMSERV (UK) LTD,05193429,
Fareham Borough Council,http://statistics.data.gov.uk/id/local-authority/24UE,HOUSING REVENUE ACCOUNT,BV06,RESPONSIVE & VOID MAINTENANCE,5901,DEPT STREETSCENE,PREMISES RELATED EXPENDITURE,2,"Works - Construction, Repair & Maintenance",39,GENERAL REPAIRS,2018,15/05/2015,525792,70.63 ,Revenue,COMSERV (UK) LTD,05193429,
Fareham Borough Council,http://statistics.data.gov.uk/id/local-authority/24UE,HOUSING REVENUE ACCOUNT,BV06,RESPONSIVE & VOID MAINTENANCE,5901,DEPT STREETSCENE,PREMISES RELATED EXPENDITURE,2,"Works - Construction, Repair & Maintenance",39,GENERAL REPAIRS,2018,15/05/2015,525792,75.91 ,Revenue,COMSERV (UK) LTD,05193429,
Fareham Borough Council,http://statistics.data.gov.uk/id/local-authority/24UE,HOUSING REVENUE ACCOUNT,BV06,RESPONSIVE & VOID MAINTENANCE,5901,DEPT STREETSCENE,PREMISES RELATED EXPENDITURE,2,"Works - Construction, Repair & Maintenance",39,GENERAL REPAIRS,2018,15/05/2015,525792,72.38 ,Revenue,COMSERV (UK) LTD,05193429,
Fareham Borough Council,http://statistics.data.gov.uk/id/local-authority/24UE,HOUSING REVENUE ACCOUNT,BV06,RESPONSIVE & VOID MAINTENANCE,5901,DEPT STREETSCENE,PREMISES RELATED EXPENDITURE,2,"Works - Construction, Repair & Maintenance",39,GENERAL REPAIRS,2018,15/05/2015,525792,70.63 ,Revenue,COMSERV (UK) LTD,05193429,
Fareham Borough Council,http://statistics.data.gov.uk/id/local-authority/24UE,HOUSING REVENUE ACCOUNT,BV06,RESPONSIVE & VOID MAINTENANCE,5901,DEPT STREETSCENE,PREMISES RELATED EXPENDITURE,2,"Works - Construction, Repair & Maintenance",39,GENERAL REPAIRS,2018,15/05/2015,525792,71.80 ,Revenue,COMSERV (UK) LTD,05193429,
Fareham Borough Council,http://statistics.data.gov.uk/id/local-authority/24UE,HOUSING REVENUE ACCOUNT,BV06,RESPONSIVE & VOID MAINTENANCE,5901,DEPT STREETSCENE,PREMISES RELATED EXPENDITURE,2,"Works - Construction, Repair & Maintenance",39,GENERAL REPAIRS,2018,15/05/2015,525792,70.63 ,Revenue,COMSERV (UK) LTD,05193429,
Fareham Borough Council,http://statistics.data.gov.uk/id/local-authority/24UE,HOUSING REVENUE ACCOUNT,BV06,RESPONSIVE & VOID MAINTENANCE,5901,DEPT STREETSCENE,PREMISES RELATED EXPENDITURE,2,"Works - Construction, Repair & Maintenance",39,GENERAL REPAIRS,2018,15/05/2015,525792,72.38 ,Revenue,COMSERV (UK) LTD,05193429,
Fareham Borough Council,http://statistics.data.gov.uk/id/local-authority/24UE,CAPITAL PROGRAMME - HOUSING SERVICES,CP,RENOVATION OF L.A. DWELLINGS,CP10,CAPITAL - ENERGY CONSERVATION,PREMISES RELATED EXPENDITURE,2,"Works - Construction, Repair & Maintenance",39,R & M OF BUILDINGS,2000,15/05/2015,525793,507.69 ,Capital,COMSERV (UK) LTD,05193429,
Fareham Borough Council,http://statistics.data.gov.uk/id/local-authority/24UE,HOUSING REVENUE ACCOUNT,BV06,RESPONSIVE & VOID MAINTENANCE,5901,DEPT STREETSCENE,PREMISES RELATED EXPENDITURE,2,"Works - Construction, Repair & Maintenance",39,GENERAL REPAIRS,2018,15/05/2015,525793,149.60 ,Revenue,COMSERV (UK) LTD,05193429,
Fareham Borough Council,http://statistics.data.gov.uk/id/local-authority/24UE,HOUSING REVENUE ACCOUNT,BV06,RESPONSIVE & VOID MAINTENANCE,5901,DEPT STREETSCENE,PREMISES RELATED EXPENDITURE,2,"Works - Construction, Repair & Maintenance",39,EXTERNAL WORKS,2088,15/05/2015,525793,125.36 ,Revenue,COMSERV (UK) LTD,05193429,
Fareham Borough Council,http://statistics.data.gov.uk/id/local-authority/24UE,HOUSING REVENUE ACCOUNT,BV06,RESPONSIVE & VOID MAINTENANCE,5901,DEPT STREETSCENE,PREMISES RELATED EXPENDITURE,2,"Works - Construction, Repair & Maintenance",39,GENERAL REPAIRS,2018,15/05/2015,525793,60.06 ,Revenue,COMSERV (UK) LTD,05193429,
Fareham Borough Council,http://statistics.data.gov.uk/id/local-authority/24UE,HOUSING REVENUE ACCOUNT,BV06,RESPONSIVE & VOID MAINTENANCE,5901,DEPT STREETSCENE,PREMISES RELATED EXPENDITURE,2,"Works - Construction, Repair & Maintenance",39,GENERAL REPAIRS,2018,15/05/2015,525793,208.90 ,Revenue,COMSERV (UK) LTD,05193429,
Fareham Borough Council,http://statistics.data.gov.uk/id/local-authority/24UE,HOUSING REVENUE ACCOUNT,BV06,RESPONSIVE & VOID MAINTENANCE,5901,DEPT STREETSCENE,PREMISES RELATED EXPENDITURE,2,"Works - Construction, Repair & Maintenance",39,GENERAL REPAIRS,2018,15/05/2015,525793,311.90 ,Revenue,COMSERV (UK) LTD,05193429,
Fareham Borough Council,http://statistics.data.gov.uk/id/local-authority/24UE,HOUSING REVENUE ACCOUNT,BV06,RESPONSIVE & VOID MAINTENANCE,5901,DEPT STREETSCENE,PREMISES RELATED EXPENDITURE,2,"Works - Construction, Repair & Maintenance",39,GENERAL REPAIRS,2018,15/05/2015,525793,468.65 ,Revenue,COMSERV (UK) LTD,05193429,
Fareham Borough Council,http://statistics.data.gov.uk/id/local-authority/24UE,HOUSING REVENUE ACCOUNT,BV06,RESPONSIVE & VOID MAINTENANCE,5901,DEPT STREETSCENE,PREMISES RELATED EXPENDITURE,2,"Works - Construction, Repair & Maintenance",39,EXTERNAL WORKS,2088,15/05/2015,525793,46.57 ,Revenue,COMSERV (UK) LTD,05193429,
Fareham Borough Council,http://statistics.data.gov.uk/id/local-authority/24UE,HOUSING REVENUE ACCOUNT,BV06,RESPONSIVE & VOID MAINTENANCE,5901,DEPT STREETSCENE,PREMISES RELATED EXPENDITURE,2,"Works - Construction, Repair & Maintenance",39,GENERAL REPAIRS,2018,15/05/2015,525793,564.61 ,Revenue,COMSERV (UK) LTD,05193429,
Fareham Borough Council,http://statistics.data.gov.uk/id/local-authority/24UE,HOUSING REVENUE ACCOUNT,BV06,RESPONSIVE & VOID MAINTENANCE,5901,DEPT STREETSCENE,PREMISES RELATED EXPENDITURE,2,"Works - Construction, Repair & Maintenance",39,GENERAL REPAIRS,2018,15/05/2015,525793,289.29 ,Revenue,COMSERV (UK) LTD,05193429,
Fareham Borough Council,http://statistics.data.gov.uk/id/local-authority/24UE,HOUSING REVENUE ACCOUNT,BV06,RESPONSIVE & VOID MAINTENANCE,5901,DEPT STREETSCENE,PREMISES RELATED EXPENDITURE,2,"Works - Construction, Repair & Maintenance",39,GENERAL REPAIRS,2018,15/05/2015,525793,756.00 ,Revenue,COMSERV (UK) LTD,05193429,
Fareham Borough Council,http://statistics.data.gov.uk/id/local-authority/24UE,HOUSING REVENUE ACCOUNT,BV06,RESPONSIVE & VOID MAINTENANCE,5901,DEPT STREETSCENE,PREMISES RELATED EXPENDITURE,2,"Works - Construction, Repair & Maintenance",39,EXTERNAL WORKS,2088,15/05/2015,525793,76.95 ,Revenue,COMSERV (UK) LTD,05193429,
Fareham Borough Council,http://statistics.data.gov.uk/id/local-authority/24UE,HOUSING REVENUE ACCOUNT,BV06,RESPONSIVE & VOID MAINTENANCE,5901,DEPT STREETSCENE,PREMISES RELATED EXPENDITURE,2,"Works - Construction, Repair & Maintenance",39,EXTERNAL WORKS,2088,15/05/2015,525793,120.12 ,Revenue,COMSERV (UK) LTD,05193429,
Fareham Borough Council,http://statistics.data.gov.uk/id/local-authority/24UE,HOUSING REVENUE ACCOUNT,BV06,RESPONSIVE & VOID MAINTENANCE,5901,DEPT STREETSCENE,PREMISES RELATED EXPENDITURE,2,"Works - Construction, Repair & Maintenance",39,GENERAL REPAIRS,2018,15/05/2015,525793,222.43 ,Revenue,COMSERV (UK) LTD,05193429,
Fareham Borough Council,http://statistics.data.gov.uk/id/local-authority/24UE,HOUSING REVENUE ACCOUNT,BV06,RESPONSIVE & VOID MAINTENANCE,5901,DEPT STREETSCENE,PREMISES RELATED EXPENDITURE,2,"Works - Construction, Repair & Maintenance",39,GENERAL REPAIRS,2018,15/05/2015,525793,225.21 ,Revenue,COMSERV (UK) LTD,05193429,
Fareham Borough Council,http://statistics.data.gov.uk/id/local-authority/24UE,HOUSING REVENUE ACCOUNT,BV06,RESPONSIVE & VOID MAINTENANCE,5901,DEPT STREETSCENE,PREMISES RELATED EXPENDITURE,2,"Works - Construction, Repair & Maintenance",39,GENERAL REPAIRS,2018,15/05/2015,525793,60.06 ,Revenue,COMSERV (UK) LTD,05193429,
Fareham Borough Council,http://statistics.data.gov.uk/id/local-authority/24UE,HOUSING REVENUE ACCOUNT,BV06,RESPONSIVE & VOID MAINTENANCE,5901,DEPT STREETSCENE,PREMISES RELATED EXPENDITURE,2,"Works - Construction, Repair & Maintenance",39,GENERAL REPAIRS,2018,15/05/2015,525793,70.00 ,Revenue,COMSERV (UK) LTD,05193429,
Fareham Borough Council,http://statistics.data.gov.uk/id/local-authority/24UE,HOUSING REVENUE ACCOUNT,BV06,RESPONSIVE & VOID MAINTENANCE,5901,DEPT STREETSCENE,PREMISES RELATED EXPENDITURE,2,"Works - Construction, Repair & Maintenance",39,GENERAL REPAIRS,2018,15/05/2015,525793,363.86 ,Revenue,COMSERV (UK) LTD,05193429,
Fareham Borough Council,http://statistics.data.gov.uk/id/local-authority/24UE,HOUSING REVENUE ACCOUNT,BV06,RESPONSIVE & VOID MAINTENANCE,5901,DEPT STREETSCENE,PREMISES RELATED EXPENDITURE,2,"Works - Construction, Repair & Maintenance",39,EXTERNAL WORKS,2088,15/05/2015,525793,164.91 ,Revenue,COMSERV (UK) LTD,05193429,
Fareham Borough Council,http://statistics.data.gov.uk/id/local-authority/24UE,HOUSING REVENUE ACCOUNT,BV06,RESPONSIVE & VOID MAINTENANCE,5901,DEPT STREETSCENE,PREMISES RELATED EXPENDITURE,2,"Works - Construction, Repair & Maintenance",39,GENERAL REPAIRS,2018,15/05/2015,525793,60.06 ,Revenue,COMSERV (UK) LTD,05193429,
Fareham Borough Council,http://statistics.data.gov.uk/id/local-authority/24UE,HOUSING REVENUE ACCOUNT,BV06,RESPONSIVE & VOID MAINTENANCE,5901,DEPT STREETSCENE,PREMISES RELATED EXPENDITURE,2,"Works - Construction, Repair & Maintenance",39,GENERAL REPAIRS,2018,15/05/2015,525793,46.22 ,Revenue,COMSERV (UK) LTD,05193429,
Fareham Borough Council,http://statistics.data.gov.uk/id/local-authority/24UE,HOUSING REVENUE ACCOUNT,BV06,RESPONSIVE & VOID MAINTENANCE,5901,DEPT STREETSCENE,PREMISES RELATED EXPENDITURE,2,"Works - Construction, Repair & Maintenance",39,GENERAL REPAIRS,2018,15/05/2015,525793,10.30 ,Revenue,COMSERV (UK) LTD,05193429,
Fareham Borough Council,http://statistics.data.gov.uk/id/local-authority/24UE,HOUSING REVENUE ACCOUNT,BV06,RESPONSIVE & VOID MAINTENANCE,5901,DEPT STREETSCENE,PREMISES RELATED EXPENDITURE,2,"Works - Construction, Repair & Maintenance",39,GENERAL REPAIRS,2018,15/05/2015,525793,110.48 ,Revenue,COMSERV (UK) LTD,05193429,
Fareham Borough Council,http://statistics.data.gov.uk/id/local-authority/24UE,HOUSING REVENUE ACCOUNT,BV06,RESPONSIVE & VOID MAINTENANCE,5901,DEPT STREETSCENE,PREMISES RELATED EXPENDITURE,2,"Works - Construction, Repair & Maintenance",39,EXTERNAL WORKS,2088,15/05/2015,525793,329.96 ,Revenue,COMSERV (UK) LTD,05193429,
Fareham Borough Council,http://statistics.data.gov.uk/id/local-authority/24UE,HOUSING REVENUE ACCOUNT,BV06,RESPONSIVE & VOID MAINTENANCE,5901,DEPT STREETSCENE,PREMISES RELATED EXPENDITURE,2,"Works - Construction, Repair & Maintenance",39,GENERAL REPAIRS,2018,15/05/2015,525793,30.00 ,Revenue,COMSERV (UK) LTD,05193429,
Fareham Borough Council,http://statistics.data.gov.uk/id/local-authority/24UE,HOUSING REVENUE ACCOUNT,BV06,RESPONSIVE & VOID MAINTENANCE,5901,DEPT STREETSCENE,PREMISES RELATED EXPENDITURE,2,"Works - Construction, Repair & Maintenance",39,GENERAL REPAIRS,2018,15/05/2015,525793,142.68 ,Revenue,COMSERV (UK) LTD,05193429,
Fareham Borough Council,http://statistics.data.gov.uk/id/local-authority/24UE,HOUSING REVENUE ACCOUNT,BV06,RESPONSIVE & VOID MAINTENANCE,5901,DEPT STREETSCENE,PREMISES RELATED EXPENDITURE,2,"Works - Construction, Repair & Maintenance",39,GENERAL REPAIRS,2018,15/05/2015,525793,174.34 ,Revenue,COMSERV (UK) LTD,05193429,
Fareham Borough Council,http://statistics.data.gov.uk/id/local-authority/24UE,HOUSING REVENUE ACCOUNT,BV06,RESPONSIVE & VOID MAINTENANCE,5901,DEPT STREETSCENE,PREMISES RELATED EXPENDITURE,2,"Works - Construction, Repair & Maintenance",39,GENERAL REPAIRS,2018,15/05/2015,525793,78.00 ,Revenue,COMSERV (UK) LTD,05193429,
Fareham Borough Council,http://statistics.data.gov.uk/id/local-authority/24UE,HOUSING REVENUE ACCOUNT,BV06,RESPONSIVE & VOID MAINTENANCE,5901,DEPT STREETSCENE,PREMISES RELATED EXPENDITURE,2,"Works - Construction, Repair & Maintenance",39,GARAGES,2009,15/05/2015,525793,11.55 ,Revenue,COMSERV (UK) LTD,05193429,
Fareham Borough Council,http://statistics.data.gov.uk/id/local-authority/24UE,HOUSING REVENUE ACCOUNT,BV06,RESPONSIVE & VOID MAINTENANCE,5901,DEPT STREETSCENE,PREMISES RELATED EXPENDITURE,2,"Works - Construction, Repair & Maintenance",39,GENERAL REPAIRS,2018,15/05/2015,525793,108.94 ,Revenue,COMSERV (UK) LTD,05193429,
Fareham Borough Council,http://statistics.data.gov.uk/id/local-authority/24UE,HOUSING REVENUE ACCOUNT,BV06,RESPONSIVE & VOID MAINTENANCE,5901,DEPT STREETSCENE,PREMISES RELATED EXPENDITURE,2,"Works - Construction, Repair & Maintenance",39,EXTERNAL WORKS,2088,15/05/2015,525793,78.00 ,Revenue,COMSERV (UK) LTD,05193429,
Fareham Borough Council,http://statistics.data.gov.uk/id/local-authority/24UE,HOUSING REVENUE ACCOUNT,BV06,RESPONSIVE & VOID MAINTENANCE,5901,DEPT STREETSCENE,PREMISES RELATED EXPENDITURE,2,"Works - Construction, Repair & Maintenance",39,GENERAL REPAIRS,2018,15/05/2015,525793,50.55 ,Revenue,COMSERV (UK) LTD,05193429,
Fareham Borough Council,http://statistics.data.gov.uk/id/local-authority/24UE,HOUSING REVENUE ACCOUNT,BV06,RESPONSIVE & VOID MAINTENANCE,5901,DEPT STREETSCENE,PREMISES RELATED EXPENDITURE,2,"Works - Construction, Repair & Maintenance",39,GENERAL REPAIRS,2018,15/05/2015,525793,18.93 ,Revenue,COMSERV (UK) LTD,05193429,
Fareham Borough Council,http://statistics.data.gov.uk/id/local-authority/24UE,HOUSING REVENUE ACCOUNT,BV06,RESPONSIVE & VOID MAINTENANCE,5901,DEPT STREETSCENE,PREMISES RELATED EXPENDITURE,2,"Works - Construction, Repair & Maintenance",39,GENERAL REPAIRS,2018,15/05/2015,525793,26.54 ,Revenue,COMSERV (UK) LTD,05193429,
Fareham Borough Council,http://statistics.data.gov.uk/id/local-authority/24UE,HOUSING REVENUE ACCOUNT,BV06,RESPONSIVE & VOID MAINTENANCE,5901,DEPT STREETSCENE,PREMISES RELATED EXPENDITURE,2,"Works - Construction, Repair & Maintenance",39,GENERAL REPAIRS,2018,15/05/2015,525793,60.06 ,Revenue,COMSERV (UK) LTD,05193429,
Fareham Borough Council,http://statistics.data.gov.uk/id/local-authority/24UE,HOUSING REVENUE ACCOUNT,BV06,RESPONSIVE & VOID MAINTENANCE,5901,DEPT STREETSCENE,PREMISES RELATED EXPENDITURE,2,"Works - Construction, Repair & Maintenance",39,GENERAL REPAIRS,2018,15/05/2015,525793,73.12 ,Revenue,COMSERV (UK) LTD,05193429,
Fareham Borough Council,http://statistics.data.gov.uk/id/local-authority/24UE,HOUSING REVENUE ACCOUNT,BV06,RESPONSIVE & VOID MAINTENANCE,5901,DEPT STREETSCENE,PREMISES RELATED EXPENDITURE,2,"Works - Construction, Repair & Maintenance",39,EXTERNAL WORKS,2088,15/05/2015,525793,25.04 ,Revenue,COMSERV (UK) LTD,05193429,
Fareham Borough Council,http://statistics.data.gov.uk/id/local-authority/24UE,HOUSING REVENUE ACCOUNT,BV06,RESPONSIVE & VOID MAINTENANCE,5901,DEPT STREETSCENE,PREMISES RELATED EXPENDITURE,2,"Works - Construction, Repair & Maintenance",39,GENERAL REPAIRS,2018,15/05/2015,525793,11.55 ,Revenue,COMSERV (UK) LTD,05193429,
Fareham Borough Council,http://statistics.data.gov.uk/id/local-authority/24UE,HOUSING REVENUE ACCOUNT,BV06,RESPONSIVE & VOID MAINTENANCE,5901,DEPT STREETSCENE,PREMISES RELATED EXPENDITURE,2,"Works - Construction, Repair & Maintenance",39,GENERAL REPAIRS,2018,15/05/2015,525795,8645.64 ,Revenue,L A KATTENHORN & PARTNERS LTD,1010528,
Fareham Borough Council,http://statistics.data.gov.uk/id/local-authority/24UE,CAPITAL PROGRAMME - HOUSING SERVICES,CP,RENOVATION OF L.A. DWELLINGS,CP10,CAPITAL - ENERGY CONSERVATION,PREMISES RELATED EXPENDITURE,2,"Works - Construction, Repair & Maintenance",39,R & M OF BUILDINGS,2000,15/05/2015,525796,1883.77 ,Capital,LIBERTY GAS GROUP LTD,04242416,
Fareham Borough Council,http://statistics.data.gov.uk/id/local-authority/24UE,CAPITAL PROGRAMME - HOUSING SERVICES,CP,RENOVATION OF L.A. DWELLINGS,CP10,CAPITAL - ENERGY CONSERVATION,PREMISES RELATED EXPENDITURE,2,"Works - Construction, Repair & Maintenance",39,R & M OF BUILDINGS,2000,22/05/2015,525797,1550.77 ,Capital,LIBERTY GAS GROUP LTD,04242416,
Fareham Borough Council,http://statistics.data.gov.uk/id/local-authority/24UE,CAPITAL PROGRAMME - HOUSING SERVICES,CP,RENOVATION OF L.A. DWELLINGS,CP10,CAPITAL - ENERGY CONSERVATION,PREMISES RELATED EXPENDITURE,2,"Works - Construction, Repair & Maintenance",39,R & M OF BUILDINGS,2000,15/05/2015,525798,5891.87 ,Capital,LIBERTY GAS GROUP LTD,04242416,
Fareham Borough Council,http://statistics.data.gov.uk/id/local-authority/24UE,HOUSING REVENUE ACCOUNT,BV06,WARDEN SERVICE,5031,DEPT of COMMUNITY and STREETSCENE,PREMISES RELATED EXPENDITURE,2,Information Communication Technology,27,R & M ALARM SPEECH SYSTEMS,2027,15/05/2015,525799,14096.75 ,Revenue,TUNSTALL HEALTHCARE (UK) LTD,01332249,
Fareham Borough Council,http://statistics.data.gov.uk/id/local-authority/24UE,CORPORATE & DEMOCRATIC CORE,BV07A,CORPORATE MANAGEMENT,BV07AB,DEPT of FINANCE and RESOURCES,SUPPLIES & SERVICES,4,"Works - Construction, Repair & Maintenance",39,PROVISION OF NOTICE BOARDS,4001,15/05/2015,525804,43.29 ,Revenue,COMSERV (UK) LTD,05193429,
Fareham Borough Council,http://statistics.data.gov.uk/id/local-authority/24UE,CORPORATE & DEMOCRATIC CORE,BV07A,CORPORATE MANAGEMENT,BV07AB,DEPT of FINANCE and RESOURCES,SUPPLIES & SERVICES,4,"Works - Construction, Repair & Maintenance",39,PROVISION OF NOTICE BOARDS,4001,15/05/2015,525804,86.58 ,Revenue,COMSERV (UK) LTD,05193429,
Fareham Borough Council,http://statistics.data.gov.uk/id/local-authority/24UE,CULTURAL AND RELATED SERVICES,BV09,CULTURE AND HERITAGE,BV09A,DEPT of COMMUNITY and STREETSCENE,PREMISES RELATED EXPENDITURE,2,"Works - Construction, Repair & Maintenance",39,R & M OF BUILDINGS,2000,15/05/2015,525804,1621.03 ,Revenue,COMSERV (UK) LTD,05193429,
Fareham Borough Council,http://statistics.data.gov.uk/id/local-authority/24UE,CULTURAL AND RELATED SERVICES,BV09,RECREATION AND SPORT,BV09B,DEPT of COMMUNITY and STREETSCENE,PREMISES RELATED EXPENDITURE,2,"Works - Construction, Repair & Maintenance",39,R & M OF BUILDINGS,2000,15/05/2015,525804,227.50 ,Revenue,COMSERV (UK) LTD,05193429,
Fareham Borough Council,http://statistics.data.gov.uk/id/local-authority/24UE,FINANCING & INVESTMENT I&E,BVB02,INVESTMENT PROPERTIES,BVB170,DEPT of FINANCE and RESOURCES,PREMISES RELATED EXPENDITURE,2,Facilities & Management Services,19,PREMISES INSURANCE - PREMIUM,2800,15/05/2015,525805,3183.08 ,Revenue,redacted personal data,,
Fareham Borough Council,http://statistics.data.gov.uk/id/local-authority/24UE,OTHER REVENUE ACCOUNTS,RV,NON WORK GROUP HOLDING ACCOUNT,RV18,DEPT of FINANCE and RESOURCES,PREMISES RELATED EXPENDITURE,2,Facilities & Management Services,19,R & M OF FIXED PLANT,2040,15/05/2015,525806,1118.16 ,Revenue,HONEYWELL CONTROL SYSTEMS LTD,00217803,
Fareham Borough Council,http://statistics.data.gov.uk/id/local-authority/24UE,OTHER REVENUE ACCOUNTS,RV,NON WORK GROUP HOLDING ACCOUNT,RV18,DEPT of FINANCE and RESOURCES,PREMISES RELATED EXPENDITURE,2,Facilities & Management Services,19,R & M OF FIXED PLANT,2040,15/05/2015,525807,3354.48 ,Revenue,HONEYWELL CONTROL SYSTEMS LTD,00217803,
Fareham Borough Council,http://statistics.data.gov.uk/id/local-authority/24UE,CAPITAL PROGRAMME - OTHER SERVICES,CP,APPROVED PROGRAMME,CP24,CAPITAL - APPROVED PROGRAMME,PREMISES RELATED EXPENDITURE,2,"Works - Construction, Repair & Maintenance",39,R & M OF BUILDINGS,2000,15/05/2015,525812,9300.21 ,Capital,REDS BUILDERS LIMITED,4387646,
Fareham Borough Council,http://statistics.data.gov.uk/id/local-authority/24UE,OTHER REVENUE ACCOUNTS,RV,NON WORK GROUP HOLDING ACCOUNT,RV18,DEPT of FINANCE and RESOURCES,SUPPLIES & SERVICES,4,Information Communication Technology,27,SOFTWARE LICENCES,4530,22/05/2015,525816,36617.96 ,Revenue,NORTHGATE INFORMATION SOLUTIONS UK LTD,02762332,
Fareham Borough Council,http://statistics.data.gov.uk/id/local-authority/24UE,CULTURAL AND RELATED SERVICES,BV09,CULTURE AND HERITAGE,BV09A,DEPT of COMMUNITY and STREETSCENE,SUPPLIES & SERVICES,4,Financial Services,20,SECURITY SERVICES,4409,22/05/2015,525820,37.92 ,Revenue,KEYLINE CHARTERED SECURITY LTD,3754578,
Fareham Borough Council,http://statistics.data.gov.uk/id/local-authority/24UE,HIGHWAYS ROADS AND TRANSPORT,BV12,PARKING SERVICES,BV12D,DEPT STREETSCENE,SUPPLIES & SERVICES,4,Financial Services,20,SECURITY SERVICES,4409,22/05/2015,525820,4241.51 ,Revenue,KEYLINE CHARTERED SECURITY LTD,3754578,
Fareham Borough Council,http://statistics.data.gov.uk/id/local-authority/24UE,OTHER REVENUE ACCOUNTS,RV,NON WORK GROUP HOLDING ACCOUNT,RV18,DEPT of FINANCE and RESOURCES,SUPPLIES & SERVICES,4,Financial Services,20,SECURITY SERVICES,4409,22/05/2015,525820,37.93 ,Revenue,KEYLINE CHARTERED SECURITY LTD,3754578,
Fareham Borough Council,http://statistics.data.gov.uk/id/local-authority/24UE,OTHER REVENUE ACCOUNTS,RV,NON WORK GROUP HOLDING ACCOUNT,RV18,DEPT of FINANCE and RESOURCES,SUPPLIES & SERVICES,4,Information Communication Technology,27,FURNITURE & EQUIPT.-RENTS/LSES,4040,29/05/2015,525822,1208.74 ,Revenue,ANNODATA LTD,2246366,
Fareham Borough Council,http://statistics.data.gov.uk/id/local-authority/24UE,OTHER REVENUE ACCOUNTS,RV,NON WORK GROUP HOLDING ACCOUNT,RV18,DEPT of FINANCE and RESOURCES,SUPPLIES & SERVICES,4,Information Communication Technology,27,FURNITURE & EQUIPT.-RENTS/LSES,4040,29/05/2015,525823,3691.31 ,Revenue,ANNODATA LTD,2246366,
Fareham Borough Council,http://statistics.data.gov.uk/id/local-authority/24UE,OTHER REVENUE ACCOUNTS,RV,NON WORK GROUP HOLDING ACCOUNT,RV18,DEPT of FINANCE and RESOURCES,SUPPLIES & SERVICES,4,Information Communication Technology,27,SOFTWARE LICENCES,4530,29/05/2015,525833,24995.00 ,Revenue,NORTHGATE INFORMATION SOLUTIONS UK LTD,02762332,
Fareham Borough Council,http://statistics.data.gov.uk/id/local-authority/24UE,CULTURAL AND RELATED SERVICES,BV09,CULTURE AND HERITAGE,BV09A,DEPT of COMMUNITY and STREETSCENE,SUPPLIES & SERVICES,4,Art & Leisure Services,29,PROMOTER,4916,15/05/2015,525840,507.50 ,Revenue,THE PEOPLE'S THEATRE COMPANY,4654393,
Fareham Borough Council,http://statistics.data.gov.uk/id/local-authority/24UE,ENVIRONMENT AND REGULATORY SER,BV03,ENVIRONMENTAL HEALTH,BV03C,DEPT of COMMUNITY and STREETSCENE,SUPPLIES & SERVICES,4,Human Resources,26,LEGAL FEES,4400,22/05/2015,525844,704.00 ,Revenue,DISCLOSURE AND BARRING SERVICE,,
Fareham Borough Council,http://statistics.data.gov.uk/id/local-authority/24UE,CULTURAL AND RELATED SERVICES,BV09,CULTURE AND HERITAGE,BV09A,DEPT of COMMUNITY and STREETSCENE,SUPPLIES & SERVICES,4,Human Resources,26,LEGAL FEES,4400,22/05/2015,525844,44.00 ,Revenue,DISCLOSURE AND BARRING SERVICE,,
Fareham Borough Council,http://statistics.data.gov.uk/id/local-authority/24UE,ENVIRONMENT AND REGULATORY SER,BV03,STREET CLEANSING,BV03F,DEPT STREETSCENE,SUPPLIES & SERVICES,4,Street & Traffic Management,35,SUB-CONTRACTORS CHARGES,4432,22/05/2015,525858,670.00 ,Revenue,FOREST TRAFFIC SERVICES,01664145,
Fareham Borough Council,http://statistics.data.gov.uk/id/local-authority/24UE,OTHER REVENUE ACCOUNTS,RV,NON WORK GROUP HOLDING ACCOUNT,RV18,DEPT of FINANCE and RESOURCES,SUPPLIES & SERVICES,4,Information Communication Technology,27,TELEPHONES,4510,22/05/2015,525859,1138.59 ,Revenue,DATA TRACK TECHNOLOGY PLC,01414963,
Fareham Borough Council,http://statistics.data.gov.uk/id/local-authority/24UE,CULTURAL AND RELATED SERVICES,BV09,RECREATION AND SPORT,BV09B,DEPT of COMMUNITY and STREETSCENE,SUPPLIES & SERVICES,4,Horticultural,24,CONSULTANTS FEES,4401,15/05/2015,525861,523.17 ,Revenue,LANDSCAPE ANSWERS,,
Fareham Borough Council,http://statistics.data.gov.uk/id/local-authority/24UE,CENTRAL SERVICES,BV07,CENTRAL SERVICES TO THE PUBLIC,BV07B,DEPT of FINANCE and RESOURCES,SUPPLIES & SERVICES,4,Mail Services?,30,POSTAGES,4500,15/05/2015,525862,5421.94 ,Revenue,ROYAL MAIL,04138203,
Fareham Borough Council,http://statistics.data.gov.uk/id/local-authority/24UE,PLANNING SERVICES,BV13,DEVELOPMENT CONTROL,BV13B,DEPT of STRATEGIC PLANNING and ENVIRONMENT,EMPLOYEES RELATED EXPENDITURE,1,Human Resources,26,TRAINING EXPENSES (P.E.Q.),1901,22/05/2015,525864,1305.00 ,Revenue,OXFORD BROOKES UNIVERSITY,,
Fareham Borough Council,http://statistics.data.gov.uk/id/local-authority/24UE,CAPITAL PROGRAMME - HOUSING SERVICES,CP,RENOVATION OF L.A. DWELLINGS,CP10,CAPITAL - IMPROVEMENTS WORK/MODERNIS'N,PREMISES RELATED EXPENDITURE,2,"Works - Construction, Repair & Maintenance",39,R & M OF BUILDINGS,2000,15/05/2015,525877,22110.10 ,Capital,PREMIER PROPERTY SERVICES SOUTHERN LTD,5368222,
Fareham Borough Council,http://statistics.data.gov.uk/id/local-authority/24UE,OTHER REVENUE ACCOUNTS,RV,CONTRACT SERVICES D.S.O.,RV14,DEPT STREETSCENE,SUPPLIES & SERVICES,4,Building Construction Materials,10,MATERIALS (OPERATIONAL),4007,15/05/2015,525878,1314.91 ,Revenue,CHATSWORTH CONSERVATORIES LTD,4459514,
Fareham Borough Council,http://statistics.data.gov.uk/id/local-authority/24UE,CAPITAL PROGRAMME - HOUSING SERVICES,CP,RENOVATION OF L.A. DWELLINGS,CP10,CAPITAL - IMPROVEMENTS WORK/MODERNIS'N,PREMISES RELATED EXPENDITURE,2,Environmental Services,18,R & M OF BUILDINGS,2000,22/05/2015,525882,580.00 ,Capital,R H INSULATION SERVICES LIMITED,02062526,
Fareham Borough Council,http://statistics.data.gov.uk/id/local-authority/24UE,CAPITAL PROGRAMME - HOUSING SERVICES,CP,RENOVATION OF L.A. DWELLINGS,CP10,CAPITAL - IMPROVEMENTS WORK/MODERNIS'N,PREMISES RELATED EXPENDITURE,2,Highway Equipment & Materials?,23,R & M OF BUILDINGS,2000,15/05/2015,525885,882.00 ,Capital,DILINE LIMITED,4499349,
Fareham Borough Council,http://statistics.data.gov.uk/id/local-authority/24UE,CAPITAL PROGRAMME - HOUSING SERVICES,CP,RENOVATION OF L.A. DWELLINGS,CP10,CAPITAL - IMPROVEMENTS WORK/MODERNIS'N,PREMISES RELATED EXPENDITURE,2,Building Construction Materials,10,R & M OF BUILDINGS,2000,15/05/2015,525886,2855.00 ,Capital,HARFORD SPECIALISED SERVICES LTD,02338660,
Fareham Borough Council,http://statistics.data.gov.uk/id/local-authority/24UE,CAPITAL PROGRAMME - HOUSING SERVICES,CP,RENOVATION OF L.A. DWELLINGS,CP10,CAPITAL - IMPROVEMENTS WORK/MODERNIS'N,PREMISES RELATED EXPENDITURE,2,Building Construction Materials,10,R & M OF BUILDINGS,2000,15/05/2015,525900,1098.50 ,Capital,P R JACOBS FENCING,,
Fareham Borough Council,http://statistics.data.gov.uk/id/local-authority/24UE,CAPITAL PROGRAMME - HOUSING SERVICES,CP,RENOVATION OF L.A. DWELLINGS,CP10,CAPITAL - IMPROVEMENTS WORK/MODERNIS'N,PREMISES RELATED EXPENDITURE,2,Building Construction Materials,10,R & M OF BUILDINGS,2000,15/05/2015,525900,2115.92 ,Capital,P R JACOBS FENCING,,
Fareham Borough Council,http://statistics.data.gov.uk/id/local-authority/24UE,BALANCE SHEET,BS,BAL. SHEET - COLLECTION FUND,BS1,BAL. SHEET - COLLECTION FUND,PERSONAL ACCOUNTS,BS210,Local/Central Government,,HAMPSHIRE POLICE PRECEPT,P159,15/05/2015,525905,552752.00 ,Balance Sheet,POLICE & CRIME COMMISSIONER HAMPSHIRE,,
Fareham Borough Council,http://statistics.data.gov.uk/id/local-authority/24UE,BALANCE SHEET,BS,BAL. SHEET - COLLECTION FUND,BS1,BAL. SHEET - COLLECTION FUND,PERSONAL ACCOUNTS,BS210,Local/Central Government,,HAMPSHIRE FIRE/RESCUE PRECEPT,P161,15/05/2015,525906,254246.00 ,Balance Sheet,HAMPSHIRE FIRE & RESCUE AUTHORITY,,
Fareham Borough Council,http://statistics.data.gov.uk/id/local-authority/24UE,BALANCE SHEET,BS,BAL. SHEET - COLLECTION FUND,BS1,BAL. SHEET - COLLECTION FUND,PERSONAL ACCOUNTS,BS210,Local/Central Government,98,HAMPSHIRE C.C. PRECEPT ACCOUNT,P157,15/05/2015,525907,3994240.00 ,Balance Sheet,HAMPSHIRE COUNTY COUNCIL,,
Fareham Borough Council,http://statistics.data.gov.uk/id/local-authority/24UE,OTHER REVENUE ACCOUNTS,RV,CONTRACT SERVICES D.S.O.,RV14,DEPT STREETSCENE,TRANSPORT RELATED EXPENDITURE,3,Vehicle Management,38,PURCHASE OF VEHICLES,3000,15/05/2015,525911,22300.00 ,Revenue,MIKE GARWOOD LTD,05156943,
Fareham Borough Council,http://statistics.data.gov.uk/id/local-authority/24UE,ENVIRONMENT AND REGULATORY SER,BV03,STREET CLEANSING,BV03F,DEPT STREETSCENE,SUPPLIES & SERVICES,4,Environmental Services,18,SUB-CONTRACTORS CHARGES,4432,15/05/2015,525913,2820.00 ,Revenue,R H INSULATION SERVICES LIMITED,02062526,
Fareham Borough Council,http://statistics.data.gov.uk/id/local-authority/24UE,BALANCE SHEET,BS,BAL. SHEET - GENERAL FUND,BS1,BAL. SHEET - GENERAL FUND,BALANCES & RESERVES,BS190,Facilities & Management Services,19,HCA DAEDALUS REVENUE,E329,15/05/2015,525922,975.00 ,Balance Sheet,REGIONAL & CITY AIRPORTS LTD,8009760,
Fareham Borough Council,http://statistics.data.gov.uk/id/local-authority/24UE,CULTURAL AND RELATED SERVICES,BV09,RECREATION AND SPORT,BV09B,DEPT of COMMUNITY and STREETSCENE,PREMISES RELATED EXPENDITURE,2,Horticultural,24,R&M OF TREE PRESERVATION,2063,22/05/2015,525929,12990.00 ,Revenue,CHRISTOPHER HOARE TREE SERVICE LTD,04766544,
Fareham Borough Council,http://statistics.data.gov.uk/id/local-authority/24UE,CULTURAL AND RELATED SERVICES,BV09,RECREATION AND SPORT,BV09B,DEPT of COMMUNITY and STREETSCENE,PREMISES RELATED EXPENDITURE,2,Horticultural,24,R&M OF TREE PRESERVATION,2063,22/05/2015,525929,423.00 ,Revenue,CHRISTOPHER HOARE TREE SERVICE LTD,04766544,
Fareham Borough Council,http://statistics.data.gov.uk/id/local-authority/24UE,CULTURAL AND RELATED SERVICES,BV09,RECREATION AND SPORT,BV09B,DEPT of COMMUNITY and STREETSCENE,PREMISES RELATED EXPENDITURE,2,Horticultural,24,R&M OF TREE PRESERVATION,2063,22/05/2015,525929,550.00 ,Revenue,CHRISTOPHER HOARE TREE SERVICE LTD,04766544,
Fareham Borough Council,http://statistics.data.gov.uk/id/local-authority/24UE,CAPITAL PROGRAMME - HOUSING SERVICES,CP,NEW HOUSE BUILDING,CP10,CAPITAL - NEW HOUSE BUILDING,SUPPLIES & SERVICES,4,"Works - Construction, Repair & Maintenance",39,CONSULTANTS FEES,4401,15/05/2015,525930,3500.00 ,Capital,HGP ARCHITECTS LTD,2066639,
Fareham Borough Council,http://statistics.data.gov.uk/id/local-authority/24UE,CAPITAL PROGRAMME - HOUSING SERVICES,CP,NEW HOUSE BUILDING,CP10,CAPITAL - NEW HOUSE BUILDING,SUPPLIES & SERVICES,4,"Works - Construction, Repair & Maintenance",39,CONSULTANTS FEES,4401,15/05/2015,525930,4700.00 ,Capital,HGP ARCHITECTS LTD,2066639,
Fareham Borough Council,http://statistics.data.gov.uk/id/local-authority/24UE,CAPITAL PROGRAMME - OTHER SERVICES,CP,APPROVED PROGRAMME,CP24,CAPITAL - APPROVED PROGRAMME,PREMISES RELATED EXPENDITURE,2,Sports & Playground Equipment & Maintenance,33,R & M OF BUILDINGS,2000,15/05/2015,525931,750.00 ,Capital,FREESTYLE SKATEPARKS LTD,04940362,
Fareham Borough Council,http://statistics.data.gov.uk/id/local-authority/24UE,CAPITAL PROGRAMME - OTHER SERVICES,CP,APPROVED PROGRAMME,CP24,CAPITAL - APPROVED PROGRAMME,PREMISES RELATED EXPENDITURE,2,Sports & Playground Equipment & Maintenance,33,R & M OF BUILDINGS,2000,15/05/2015,525932,4880.00 ,Capital,FREESTYLE SKATEPARKS LTD,04940362,
Fareham Borough Council,http://statistics.data.gov.uk/id/local-authority/24UE,CAPITAL PROGRAMME - OTHER SERVICES,CP,APPROVED PROGRAMME,CP24,CAPITAL - APPROVED PROGRAMME,PREMISES RELATED EXPENDITURE,2,Sports & Playground Equipment & Maintenance,33,R & M OF BUILDINGS,2000,15/05/2015,525933,7823.25 ,Capital,FREESTYLE SKATEPARKS LTD,04940362,
Fareham Borough Council,http://statistics.data.gov.uk/id/local-authority/24UE,CAPITAL PROGRAMME - OTHER SERVICES,CP,APPROVED PROGRAMME,CP24,CAPITAL - APPROVED PROGRAMME,PREMISES RELATED EXPENDITURE,2,Sports & Playground Equipment & Maintenance,33,R & M OF BUILDINGS,2000,15/05/2015,525934,14144.41 ,Capital,FREESTYLE SKATEPARKS LTD,04940362,
Fareham Borough Council,http://statistics.data.gov.uk/id/local-authority/24UE,CAPITAL PROGRAMME - OTHER SERVICES,CP,APPROVED PROGRAMME,CP24,CAPITAL - APPROVED PROGRAMME,SUPPLIES & SERVICES,4,Consultancy,15,CONSULTANTS FEES,4401,15/05/2015,525935,4000.00 ,Capital,BAQUS GROUP PLC,6013357,
Fareham Borough Council,http://statistics.data.gov.uk/id/local-authority/24UE,GENERAL FUND HOUSING,BV05,PRIVATE SECTOR HOUSING RENEWAL,BV05E,DEPT of COMMUNITY and STREETSCENE,SUPPLIES & SERVICES,4,Social Community Care Supplies & Services,32,GRANTS AND SUBSCRIPTIONS,4700,15/05/2015,525936,3858.50 ,Revenue,ASTER LIVING,29574R,
Fareham Borough Council,http://statistics.data.gov.uk/id/local-authority/24UE,CULTURAL AND RELATED SERVICES,BV09,RECREATION AND SPORT,BV09B,DEPT of COMMUNITY and STREETSCENE,TRANSPORT RELATED EXPENDITURE,3,Vehicle Management,38,TYRES,3022,22/05/2015,525938,26.05 ,Revenue,ATS EUROMASTER LIMITED,04303731,
Fareham Borough Council,http://statistics.data.gov.uk/id/local-authority/24UE,ENVIRONMENT AND REGULATORY SER,BV03,STREET CLEANSING,BV03F,DEPT STREETSCENE,TRANSPORT RELATED EXPENDITURE,3,Vehicle Management,38,TYRES,3022,22/05/2015,525938,319.54 ,Revenue,ATS EUROMASTER LIMITED,04303731,
Fareham Borough Council,http://statistics.data.gov.uk/id/local-authority/24UE,ENVIRONMENT AND REGULATORY SER,BV03,STREET CLEANSING,BV03F,DEPT STREETSCENE,TRANSPORT RELATED EXPENDITURE,3,Vehicle Management,38,TYRES,3022,22/05/2015,525938,242.69 ,Revenue,ATS EUROMASTER LIMITED,04303731,
Fareham Borough Council,http://statistics.data.gov.uk/id/local-authority/24UE,HIGHWAYS ROADS AND TRANSPORT,BV12,PARKING SERVICES,BV12D,DEPT STREETSCENE,TRANSPORT RELATED EXPENDITURE,3,Vehicle Management,38,TYRES,3022,22/05/2015,525938,48.68 ,Revenue,ATS EUROMASTER LIMITED,04303731,
Fareham Borough Council,http://statistics.data.gov.uk/id/local-authority/24UE,ENVIRONMENT AND REGULATORY SER,BV03,WASTE COLLECTION,BV03G,DEPT STREETSCENE,TRANSPORT RELATED EXPENDITURE,3,Vehicle Management,38,TYRES,3022,22/05/2015,525938,383.32 ,Revenue,ATS EUROMASTER LIMITED,04303731,
Fareham Borough Council,http://statistics.data.gov.uk/id/local-authority/24UE,ENVIRONMENT AND REGULATORY SER,BV03,WASTE COLLECTION,BV03G,DEPT STREETSCENE,TRANSPORT RELATED EXPENDITURE,3,Vehicle Management,38,TYRES,3022,22/05/2015,525938,584.91 ,Revenue,ATS EUROMASTER LIMITED,04303731,
Fareham Borough Council,http://statistics.data.gov.uk/id/local-authority/24UE,ENVIRONMENT AND REGULATORY SER,BV03,WASTE COLLECTION,BV03G,DEPT STREETSCENE,TRANSPORT RELATED EXPENDITURE,3,Vehicle Management,38,TYRES,3022,22/05/2015,525938,383.32 ,Revenue,ATS EUROMASTER LIMITED,04303731,
Fareham Borough Council,http://statistics.data.gov.uk/id/local-authority/24UE,ENVIRONMENT AND REGULATORY SER,BV03,WASTE COLLECTION,BV03G,DEPT STREETSCENE,TRANSPORT RELATED EXPENDITURE,3,Vehicle Management,38,TYRES,3022,22/05/2015,525938,330.86 ,Revenue,ATS EUROMASTER LIMITED,04303731,
Fareham Borough Council,http://statistics.data.gov.uk/id/local-authority/24UE,ENVIRONMENT AND REGULATORY SER,BV03,WASTE COLLECTION,BV03G,DEPT STREETSCENE,TRANSPORT RELATED EXPENDITURE,3,Vehicle Management,38,TYRES,3022,22/05/2015,525938,402.68 ,Revenue,ATS EUROMASTER LIMITED,04303731,
Fareham Borough Council,http://statistics.data.gov.uk/id/local-authority/24UE,ENVIRONMENT AND REGULATORY SER,BV03,WASTE COLLECTION,BV03G,DEPT STREETSCENE,TRANSPORT RELATED EXPENDITURE,3,Vehicle Management,38,TYRES,3022,22/05/2015,525938,27.90 ,Revenue,ATS EUROMASTER LIMITED,04303731,
Fareham Borough Council,http://statistics.data.gov.uk/id/local-authority/24UE,ENVIRONMENT AND REGULATORY SER,BV03,WASTE COLLECTION,BV03G,DEPT STREETSCENE,TRANSPORT RELATED EXPENDITURE,3,Vehicle Management,38,TYRES,3022,22/05/2015,525938,58.90 ,Revenue,ATS EUROMASTER LIMITED,04303731,
Fareham Borough Council,http://statistics.data.gov.uk/id/local-authority/24UE,ENVIRONMENT AND REGULATORY SER,BV03,WASTE COLLECTION,BV03G,DEPT STREETSCENE,TRANSPORT RELATED EXPENDITURE,3,Vehicle Management,38,TYRES,3022,22/05/2015,525938,383.32 ,Revenue,ATS EUROMASTER LIMITED,04303731,
Fareham Borough Council,http://statistics.data.gov.uk/id/local-authority/24UE,OTHER REVENUE ACCOUNTS,RV,CONTRACT SERVICES D.S.O.,RV14,DEPT STREETSCENE,TRANSPORT RELATED EXPENDITURE,3,Vehicle Management,38,TYRES,3022,22/05/2015,525938,69.40 ,Revenue,ATS EUROMASTER LIMITED,04303731,
Fareham Borough Council,http://statistics.data.gov.uk/id/local-authority/24UE,OTHER REVENUE ACCOUNTS,RV,CONTRACT SERVICES D.S.O.,RV14,DEPT STREETSCENE,TRANSPORT RELATED EXPENDITURE,3,Vehicle Management,38,TYRES,3022,22/05/2015,525938,35.28 ,Revenue,ATS EUROMASTER LIMITED,04303731,
Fareham Borough Council,http://statistics.data.gov.uk/id/local-authority/24UE,OTHER REVENUE ACCOUNTS,RV,CONTRACT SERVICES D.S.O.,RV14,DEPT STREETSCENE,TRANSPORT RELATED EXPENDITURE,3,Vehicle Management,38,TYRES,3022,22/05/2015,525938,16.14 ,Revenue,ATS EUROMASTER LIMITED,04303731,
Fareham Borough Council,http://statistics.data.gov.uk/id/local-authority/24UE,OTHER REVENUE ACCOUNTS,RV,CONTRACT SERVICES D.S.O.,RV14,DEPT STREETSCENE,TRANSPORT RELATED EXPENDITURE,3,Vehicle Management,38,TYRES,3022,22/05/2015,525938,61.62 ,Revenue,ATS EUROMASTER LIMITED,04303731,
Fareham Borough Council,http://statistics.data.gov.uk/id/local-authority/24UE,OTHER REVENUE ACCOUNTS,RV,CONTRACT SERVICES D.S.O.,RV14,DEPT STREETSCENE,TRANSPORT RELATED EXPENDITURE,3,Vehicle Management,38,TYRES,3022,22/05/2015,525938,182.62 ,Revenue,ATS EUROMASTER LIMITED,04303731,
Fareham Borough Council,http://statistics.data.gov.uk/id/local-authority/24UE,OTHER REVENUE ACCOUNTS,RV,CONTRACT SERVICES D.S.O.,RV14,DEPT STREETSCENE,TRANSPORT RELATED EXPENDITURE,3,Vehicle Management,38,TYRES,3022,22/05/2015,525938,61.62 ,Revenue,ATS EUROMASTER LIMITED,04303731,
Fareham Borough Council,http://statistics.data.gov.uk/id/local-authority/24UE,OTHER REVENUE ACCOUNTS,RV,CONTRACT SERVICES D.S.O.,RV14,DEPT STREETSCENE,TRANSPORT RELATED EXPENDITURE,3,Vehicle Management,38,TYRES,3022,22/05/2015,525938,15.00 ,Revenue,ATS EUROMASTER LIMITED,04303731,
Fareham Borough Council,http://statistics.data.gov.uk/id/local-authority/24UE,OTHER REVENUE ACCOUNTS,RV,CONTRACT SERVICES D.S.O.,RV14,DEPT STREETSCENE,TRANSPORT RELATED EXPENDITURE,3,Vehicle Management,38,TYRES,3022,22/05/2015,525938,15.00 ,Revenue,ATS EUROMASTER LIMITED,04303731,
Fareham Borough Council,http://statistics.data.gov.uk/id/local-authority/24UE,OTHER REVENUE ACCOUNTS,RV,CONTRACT SERVICES D.S.O.,RV14,DEPT STREETSCENE,TRANSPORT RELATED EXPENDITURE,3,Vehicle Management,38,TYRES,3022,22/05/2015,525938,50.25 ,Revenue,ATS EUROMASTER LIMITED,04303731,
Fareham Borough Council,http://statistics.data.gov.uk/id/local-authority/24UE,OTHER REVENUE ACCOUNTS,RV,CONTRACT SERVICES D.S.O.,RV14,DEPT STREETSCENE,TRANSPORT RELATED EXPENDITURE,3,Vehicle Management,38,TYRES,3022,22/05/2015,525938,65.25 ,Revenue,ATS EUROMASTER LIMITED,04303731,
Fareham Borough Council,http://statistics.data.gov.uk/id/local-authority/24UE,CORPORATE & DEMOCRATIC CORE,BV07A,CORPORATE MANAGEMENT,BV07AB,DEPT of FINANCE and RESOURCES,SUPPLIES & SERVICES,4,Consultancy,15,CONSULTANTS FEES,4401,15/05/2015,525972,1200.00 ,Revenue,BARRY CORNELIUS ASSOCIATES,8139568,
Fareham Borough Council,http://statistics.data.gov.uk/id/local-authority/24UE,CAPITAL PROGRAMME - HOUSING SERVICES,CP,RENOVATION OF L.A. DWELLINGS,CP10,CAPITAL - IMPROVEMENTS WORK/MODERNIS'N,PREMISES RELATED EXPENDITURE,2,"Works - Construction, Repair & Maintenance",39,R & M OF BUILDINGS,2000,15/05/2015,525975,795.00 ,Capital,QUAYSIDE INDUSTRIES LTD T/A DYNO ROD PLUMBING,4902194,
Fareham Borough Council,http://statistics.data.gov.uk/id/local-authority/24UE,CAPITAL PROGRAMME - HOUSING SERVICES,CP,RENOVATION OF L.A. DWELLINGS,CP10,CAPITAL - IMPROVEMENTS WORK/MODERNIS'N,PREMISES RELATED EXPENDITURE,2,Building Construction Materials,10,R & M OF BUILDINGS,2000,15/05/2015,525982,2450.00 ,Capital,INSTAGROUP (CREST SURVEYING LTD),01500228,
Fareham Borough Council,http://statistics.data.gov.uk/id/local-authority/24UE,CAPITAL PROGRAMME - HOUSING SERVICES,CP,RENOVATION OF L.A. DWELLINGS,CP10,CAPITAL - IMPROVEMENTS WORK/MODERNIS'N,PREMISES RELATED EXPENDITURE,2,Building Construction Materials,10,R & M OF BUILDINGS,2000,15/05/2015,525984,1000.00 ,Capital,INSTAGROUP (CREST SURVEYING LTD),01500228,
Fareham Borough Council,http://statistics.data.gov.uk/id/local-authority/24UE,CAPITAL PROGRAMME - HOUSING SERVICES,CP,HOUSE RENOVATION GRANTS,CP11,CAPITAL - HOUSE RENOVATION GRANTS,SUPPLIES & SERVICES,4,Unclassified,,GRANTS AND SUBSCRIPTIONS,4700,15/05/2015,525987,3101.00 ,Capital,D & T BATHROOMS,,
Fareham Borough Council,http://statistics.data.gov.uk/id/local-authority/24UE,CAPITAL PROGRAMME - HOUSING SERVICES,CP,HOUSE RENOVATION GRANTS,CP11,CAPITAL - HOUSE RENOVATION GRANTS,SUPPLIES & SERVICES,4,Social Community Care Supplies & Services,32,GRANTS AND SUBSCRIPTIONS,4700,22/05/2015,525989,533.40 ,Capital,FAMILY MOSAIC HOUSING,5640546,
Fareham Borough Council,http://statistics.data.gov.uk/id/local-authority/24UE,HIGHWAYS ROADS AND TRANSPORT,BV12,PUBLIC TRANSPORT,BV12E,DEPT of FINANCE and RESOURCES,SUPPLIES & SERVICES,4,Local/Central Government,98,GRANT TO DIAL-A-RIDE,4705,15/05/2015,526003,13867.38 ,Revenue,HAMPSHIRE COUNTY COUNCIL,,
Fareham Borough Council,http://statistics.data.gov.uk/id/local-authority/24UE,OTHER REVENUE ACCOUNTS,RV,CONTRACT SERVICES D.S.O.,RV14,DEPT of STRATEGIC PLANNING and ENVIRONMENT,EMPLOYEES RELATED EXPENDITURE,1,Local/Central Government,98,GBC - EMPLOYEE COSTS,1048,15/05/2015,526005,18526.45 ,Revenue,GOSPORT BOROUGH COUNCIL,,
Fareham Borough Council,http://statistics.data.gov.uk/id/local-authority/24UE,OTHER REVENUE ACCOUNTS,RV,CONTRACT SERVICES D.S.O.,RV14,DEPT of STRATEGIC PLANNING and ENVIRONMENT,TRANSPORT RELATED EXPENDITURE,3,Local/Central Government,98,GBC - CAR ALLOWANCES,3432,15/05/2015,526005,1057.56 ,Revenue,GOSPORT BOROUGH COUNCIL,,
Fareham Borough Council,http://statistics.data.gov.uk/id/local-authority/24UE,OTHER REVENUE ACCOUNTS,RV,CONTRACT SERVICES D.S.O.,RV14,DEPT of STRATEGIC PLANNING and ENVIRONMENT,SUPPLIES & SERVICES,4,Local/Central Government,98,SUBSISTENCE EXP - EMPLOYEES,4600,15/05/2015,526005,21.38 ,Revenue,GOSPORT BOROUGH COUNCIL,,
Fareham Borough Council,http://statistics.data.gov.uk/id/local-authority/24UE,OTHER REVENUE ACCOUNTS,RV,CONTRACT SERVICES D.S.O.,RV14,DEPT of STRATEGIC PLANNING and ENVIRONMENT,THIRD PARTY PAYMENTS,5,Local/Central Government,98,GBC - B C PARTNERSHIP,5150,15/05/2015,526005,2500.00 ,Revenue,GOSPORT BOROUGH COUNCIL,,
Fareham Borough Council,http://statistics.data.gov.uk/id/local-authority/24UE,BALANCE SHEET,BS,BAL. SHEET - GENERAL FUND,BS1,BAL. SHEET - GENERAL FUND,TOTAL ASSETS LESS LIABILITIES,BS100,Financial Services,20,INSURANCE SUSPENSE ACCOUNT,E608,22/05/2015,526006,2955.90 ,Balance Sheet,ZURICH ASSURANCE LIMITED,2456671,
Fareham Borough Council,http://statistics.data.gov.uk/id/local-authority/24UE,HOUSING REVENUE ACCOUNT,BV06,RESPONSIVE & VOID MAINTENANCE,5901,DEPT STREETSCENE,PREMISES RELATED EXPENDITURE,2,Building Construction Materials,10,GENERAL REPAIRS,2018,15/05/2015,526007,2831.57 ,Revenue,SOUTHERN ELECTRIC CONTRACTING LTD,2317133,
Fareham Borough Council,http://statistics.data.gov.uk/id/local-authority/24UE,OTHER REVENUE ACCOUNTS,RV,NON WORK GROUP HOLDING ACCOUNT,RV18,DEPT of FINANCE and RESOURCES,PREMISES RELATED EXPENDITURE,2,Building Construction Materials,10,GENERAL REPAIRS,2018,15/05/2015,526007,1428.94 ,Revenue,SOUTHERN ELECTRIC CONTRACTING LTD,2317133,
Fareham Borough Council,http://statistics.data.gov.uk/id/local-authority/24UE,CAPITAL PROGRAMME - HOUSING SERVICES,CP,HOUSE RENOVATION GRANTS,CP11,CAPITAL - HOUSE RENOVATION GRANTS,SUPPLIES & SERVICES,4,Building Construction Materials,10,GRANTS AND SUBSCRIPTIONS,4700,15/05/2015,526010,3810.00 ,Capital,G RIXON LTD,03828526,
Fareham Borough Council,http://statistics.data.gov.uk/id/local-authority/24UE,HOUSING REVENUE ACCOUNT,BV06,RESPONSIVE & VOID MAINTENANCE,5901,DEPT STREETSCENE,PREMISES RELATED EXPENDITURE,2,Information Communication Technology,27,GENERAL REPAIRS,2018,15/05/2015,526022,1984.00 ,Revenue,WEBTCARDS LTD,6390201,
Fareham Borough Council,http://statistics.data.gov.uk/id/local-authority/24UE,OTHER REVENUE ACCOUNTS,RV,CONTRACT SERVICES D.S.O.,RV14,DEPT STREETSCENE,SUPPLIES & SERVICES,4,Building Construction Materials,10,MATERIALS (OPERATIONAL),4007,22/05/2015,526046,24299.05 ,Revenue,ELLIOTT BROTHERS LIMITED,02511005,
Fareham Borough Council,http://statistics.data.gov.uk/id/local-authority/24UE,CULTURAL AND RELATED SERVICES,BV09,RECREATION AND SPORT,BV09B,DEPT of COMMUNITY and STREETSCENE,PREMISES RELATED EXPENDITURE,2,Building Construction Materials,10,R & M OF BUILDINGS,2000,15/05/2015,526049,873.12 ,Revenue,CADE ROOFING & BUILDING SERVICES LTD,02795780,
Fareham Borough Council,http://statistics.data.gov.uk/id/local-authority/24UE,CAPITAL PROGRAMME - HOUSING SERVICES,CP,RENOVATION OF L.A. DWELLINGS,CP10,CAPITAL - IMPROVEMENTS WORK/MODERNIS'N,PREMISES RELATED EXPENDITURE,2,Building Construction Materials,10,R & M OF BUILDINGS,2000,15/05/2015,526049,16126.11 ,Capital,CADE ROOFING & BUILDING SERVICES LTD,02795780,
Fareham Borough Council,http://statistics.data.gov.uk/id/local-authority/24UE,CULTURAL AND RELATED SERVICES,BV09,CULTURE AND HERITAGE,BV09A,DEPT of FINANCE and RESOURCES,PREMISES RELATED EXPENDITURE,2,"Works - Construction, Repair & Maintenance",39,R & M OF BUILDINGS,2000,15/05/2015,526051,15.00 ,Revenue,COMSERV (UK) LTD,05193429,
Fareham Borough Council,http://statistics.data.gov.uk/id/local-authority/24UE,GENERAL FUND HOUSING,BV05,HOMELESSNESS,BV05F,DEPT of COMMUNITY and STREETSCENE,PREMISES RELATED EXPENDITURE,2,"Works - Construction, Repair & Maintenance",39,R & M OF LEASED PROPERTIES,2001,15/05/2015,526051,150.00 ,Revenue,COMSERV (UK) LTD,05193429,
Fareham Borough Council,http://statistics.data.gov.uk/id/local-authority/24UE,FINANCING & INVESTMENT I&E,BVB02,INVESTMENT PROPERTIES,BVB170,DEPT of FINANCE and RESOURCES,PREMISES RELATED EXPENDITURE,2,"Works - Construction, Repair & Maintenance",39,R & M OF BUILDINGS,2000,15/05/2015,526051,45.00 ,Revenue,COMSERV (UK) LTD,05193429,
Fareham Borough Council,http://statistics.data.gov.uk/id/local-authority/24UE,FINANCING & INVESTMENT I&E,BVB02,INVESTMENT PROPERTIES,BVB170,DEPT of FINANCE and RESOURCES,PREMISES RELATED EXPENDITURE,2,"Works - Construction, Repair & Maintenance",39,R & M OF BUILDINGS,2000,15/05/2015,526051,20.00 ,Revenue,COMSERV (UK) LTD,05193429,
Fareham Borough Council,http://statistics.data.gov.uk/id/local-authority/24UE,CULTURAL AND RELATED SERVICES,BV09,CULTURE AND HERITAGE,BV09A,DEPT of COMMUNITY and STREETSCENE,PREMISES RELATED EXPENDITURE,2,"Works - Construction, Repair & Maintenance",39,R & M OF BUILDINGS,2000,15/05/2015,526051,150.00 ,Revenue,COMSERV (UK) LTD,05193429,
Fareham Borough Council,http://statistics.data.gov.uk/id/local-authority/24UE,CULTURAL AND RELATED SERVICES,BV09,RECREATION AND SPORT,BV09B,DEPT of COMMUNITY and STREETSCENE,PREMISES RELATED EXPENDITURE,2,"Works - Construction, Repair & Maintenance",39,R & M OF BUILDINGS,2000,15/05/2015,526051,850.00 ,Revenue,COMSERV (UK) LTD,05193429,
Fareham Borough Council,http://statistics.data.gov.uk/id/local-authority/24UE,HIGHWAYS ROADS AND TRANSPORT,BV12,PARKING SERVICES,BV12D,DEPT STREETSCENE,PREMISES RELATED EXPENDITURE,2,"Works - Construction, Repair & Maintenance",39,R & M OF BUILDINGS,2000,15/05/2015,526051,50.00 ,Revenue,COMSERV (UK) LTD,05193429,
Fareham Borough Council,http://statistics.data.gov.uk/id/local-authority/24UE,ENVIRONMENT AND REGULATORY SER,BV03,ENVIRONMENTAL HEALTH,BV03C,DEPT STREETSCENE,PREMISES RELATED EXPENDITURE,2,"Works - Construction, Repair & Maintenance",39,R & M OF BUILDINGS,2000,15/05/2015,526051,320.00 ,Revenue,COMSERV (UK) LTD,05193429,
Fareham Borough Council,http://statistics.data.gov.uk/id/local-authority/24UE,HOUSING REVENUE ACCOUNT,BV06,RESPONSIVE & VOID MAINTENANCE,5901,DEPT STREETSCENE,PREMISES RELATED EXPENDITURE,2,"Works - Construction, Repair & Maintenance",39,GENERAL REPAIRS,2018,15/05/2015,526051,20674.39 ,Revenue,COMSERV (UK) LTD,05193429,
Fareham Borough Council,http://statistics.data.gov.uk/id/local-authority/24UE,OTHER REVENUE ACCOUNTS,RV,CONTRACT SERVICES D.S.O.,RV14,DEPT STREETSCENE,SUPPLIES & SERVICES,4,"Works - Construction, Repair & Maintenance",39,MATERIALS (OPERATIONAL),4007,15/05/2015,526051,6432.61 ,Revenue,COMSERV (UK) LTD,05193429,
Fareham Borough Council,http://statistics.data.gov.uk/id/local-authority/24UE,OTHER REVENUE ACCOUNTS,RV,NON WORK GROUP HOLDING ACCOUNT,RV18,DEPT of FINANCE and RESOURCES,PREMISES RELATED EXPENDITURE,2,"Works - Construction, Repair & Maintenance",39,R & M OF BUILDINGS,2000,15/05/2015,526051,300.00 ,Revenue,COMSERV (UK) LTD,05193429,
Fareham Borough Council,http://statistics.data.gov.uk/id/local-authority/24UE,OTHER REVENUE ACCOUNTS,RV,NON WORK GROUP HOLDING ACCOUNT,RV18,DEPT of FINANCE and RESOURCES,PREMISES RELATED EXPENDITURE,2,"Works - Construction, Repair & Maintenance",39,R & M OF BUILDINGS,2000,15/05/2015,526051,100.00 ,Revenue,COMSERV (UK) LTD,05193429,
Fareham Borough Council,http://statistics.data.gov.uk/id/local-authority/24UE,BALANCE SHEET,BS,BAL. SHEET - GENERAL FUND,BS1,BAL. SHEET - SUSPENSE ACCOUNT,FMS REJECTION SUSPENSE,BS242,"Works - Construction, Repair & Maintenance",39,FMS CODING SUSPENSE ACCOUNT,S990,15/05/2015,526051,45.00 ,Balance Sheet,COMSERV (UK) LTD,05193429,
Fareham Borough Council,http://statistics.data.gov.uk/id/local-authority/24UE,OTHER REVENUE ACCOUNTS,RV,CONTRACT SERVICES D.S.O.,RV14,DEPT STREETSCENE,SUPPLIES & SERVICES,4,Building Construction Materials,10,MATERIALS (OPERATIONAL),4007,15/05/2015,526066,19.04 ,Revenue,TRADE UK,3006378,
Fareham Borough Council,http://statistics.data.gov.uk/id/local-authority/24UE,BALANCE SHEET,BS,FMS BAL.SHEET & CONTROL ACCT.,BS1,BAL. SHEET - SUSPENSE ACCOUNT,FMS REJECTION SUSPENSE,BS242,Building Construction Materials,10,FMS CODING SUSPENSE ACCOUNT,S990,15/05/2015,526066,8210.42 ,Balance Sheet,TRADE UK,3006378,
Fareham Borough Council,http://statistics.data.gov.uk/id/local-authority/24UE,CENTRAL SERVICES,BV07,CENTRAL SERVICES TO THE PUBLIC,BV07B,DEPT of FINANCE and RESOURCES,SUPPLIES & SERVICES,4,Human Resources,26,GRANTS AND SUBSCRIPTIONS,4700,15/05/2015,526067,734.85 ,Revenue,HILL HEAD SAILING CLUB,,
Fareham Borough Council,http://statistics.data.gov.uk/id/local-authority/24UE,CULTURAL AND RELATED SERVICES,BV09,RECREATION AND SPORT,BV09B,DEPT of COMMUNITY and STREETSCENE,PREMISES RELATED EXPENDITURE,2,Social Community Care Supplies & Services,32,CLEANING MATERIALS,2710,15/05/2015,526071,456.35 ,Revenue,CROFTON COMMUNITY ASSOCIATION,,
Fareham Borough Council,http://statistics.data.gov.uk/id/local-authority/24UE,CULTURAL AND RELATED SERVICES,BV09,RECREATION AND SPORT,BV09B,DEPT of COMMUNITY and STREETSCENE,PREMISES RELATED EXPENDITURE,2,Social Community Care Supplies & Services,32,CONTRACT CLEANING - GENERAL,2700,15/05/2015,526071,520.00 ,Revenue,CROFTON COMMUNITY ASSOCIATION,,
Fareham Borough Council,http://statistics.data.gov.uk/id/local-authority/24UE,CULTURAL AND RELATED SERVICES,BV09,RECREATION AND SPORT,BV09B,DEPT of COMMUNITY and STREETSCENE,PREMISES RELATED EXPENDITURE,2,Social Community Care Supplies & Services,32,GAS,2130,15/05/2015,526071,3521.15 ,Revenue,CROFTON COMMUNITY ASSOCIATION,,
Fareham Borough Council,http://statistics.data.gov.uk/id/local-authority/24UE,BALANCE SHEET,BS,FMS BAL.SHEET & CONTROL ACCT.,BS1,FMS BAL.SHEET & CONTROL ACCT.,CONTROL ACCOUNTS,C001,Financial Services,20,GOVT PROCURE CARD-CASH CONTROL,C114,15/05/2015,526075,4402.65 ,Balance Sheet,ROYAL BANK OF SCOTLAND,SC090312,
Fareham Borough Council,http://statistics.data.gov.uk/id/local-authority/24UE,CAPITAL PROGRAMME - HOUSING SERVICES,CP,ENABLING ROLE - HOUSING ASSOC.,CP11,CAPITAL - ENABLING ROLE - HOUSING ASSOC.,PREMISES RELATED EXPENDITURE,2,Local/Central Government,98,LAND/BUILDINGS ACQUISITIONS,2601,15/05/2015,526080,350000.00 ,Capital,HAMPSHIRE COUNTY COUNCIL,,
Fareham Borough Council,http://statistics.data.gov.uk/id/local-authority/24UE,HIGHWAYS ROADS AND TRANSPORT,BV12,PARKING SERVICES,BV12D,DEPT STREETSCENE,PREMISES RELATED EXPENDITURE,2,Facilities & Management Services,19,R & M OF LIFTS,2050,22/05/2015,526281,331.68 ,Revenue,TEMPLE LIFTS LTD,2388497,
Fareham Borough Council,http://statistics.data.gov.uk/id/local-authority/24UE,HOUSING REVENUE ACCOUNT,BV06,CYCLICAL REPAIRS/MAINTENANCE,5903,DEPT STREETSCENE,PREMISES RELATED EXPENDITURE,2,Facilities & Management Services,19,SERVICING,2083,22/05/2015,526281,367.50 ,Revenue,TEMPLE LIFTS LTD,2388497,
Fareham Borough Council,http://statistics.data.gov.uk/id/local-authority/24UE,OTHER REVENUE ACCOUNTS,RV,NON WORK GROUP HOLDING ACCOUNT,RV18,DEPT of FINANCE and RESOURCES,PREMISES RELATED EXPENDITURE,2,Facilities & Management Services,19,R & M OF LIFTS,2050,22/05/2015,526281,258.75 ,Revenue,TEMPLE LIFTS LTD,2388497,
Fareham Borough Council,http://statistics.data.gov.uk/id/local-authority/24UE,CULTURAL AND RELATED SERVICES,BV09,CULTURE AND HERITAGE,BV09A,DEPT of COMMUNITY and STREETSCENE,PREMISES RELATED EXPENDITURE,2,Facilities & Management Services,19,R & M OF BUILDINGS,2000,22/05/2015,526282,47.50 ,Revenue,TEMPLE LIFTS LTD,2388497,
Fareham Borough Council,http://statistics.data.gov.uk/id/local-authority/24UE,HIGHWAYS ROADS AND TRANSPORT,BV12,PARKING SERVICES,BV12D,DEPT STREETSCENE,PREMISES RELATED EXPENDITURE,2,Facilities & Management Services,19,R & M OF LIFTS,2050,22/05/2015,526282,331.68 ,Revenue,TEMPLE LIFTS LTD,2388497,
Fareham Borough Council,http://statistics.data.gov.uk/id/local-authority/24UE,HOUSING REVENUE ACCOUNT,BV06,CYCLICAL REPAIRS/MAINTENANCE,5903,DEPT STREETSCENE,PREMISES RELATED EXPENDITURE,2,Facilities & Management Services,19,SERVICING,2083,22/05/2015,526282,367.50 ,Revenue,TEMPLE LIFTS LTD,2388497,
Fareham Borough Council,http://statistics.data.gov.uk/id/local-authority/24UE,OTHER REVENUE ACCOUNTS,RV,NON WORK GROUP HOLDING ACCOUNT,RV18,DEPT of FINANCE and RESOURCES,PREMISES RELATED EXPENDITURE,2,Facilities & Management Services,19,R & M OF LIFTS,2050,22/05/2015,526282,258.75 ,Revenue,TEMPLE LIFTS LTD,2388497,
Fareham Borough Council,http://statistics.data.gov.uk/id/local-authority/24UE,HOUSING REVENUE ACCOUNT,BV06,CATCH UP REPAIRS,5902,DEPT STREETSCENE,PREMISES RELATED EXPENDITURE,2,Building Construction Materials,10,R & M OF BUILDINGS,2000,22/05/2015,526295,660.95 ,Revenue,INSTAGROUP (CREST SURVEYING LTD),01500228,
Fareham Borough Council,http://statistics.data.gov.uk/id/local-authority/24UE,HOUSING REVENUE ACCOUNT,BV06,CATCH UP REPAIRS,5902,DEPT STREETSCENE,PREMISES RELATED EXPENDITURE,2,Social Community Care Supplies & Services,32,R & M OF BUILDINGS,2000,22/05/2015,526296,1020.00 ,Revenue,LIFTECH SYSTEMS (SE) LTD,04834054,
Fareham Borough Council,http://statistics.data.gov.uk/id/local-authority/24UE,HOUSING REVENUE ACCOUNT,BV06,CATCH UP REPAIRS,5902,DEPT STREETSCENE,PREMISES RELATED EXPENDITURE,2,Social Community Care Supplies & Services,32,R & M OF BUILDINGS,2000,22/05/2015,526297,1015.00 ,Revenue,LIFTECH SYSTEMS (SE) LTD,04834054,
Fareham Borough Council,http://statistics.data.gov.uk/id/local-authority/24UE,CAPITAL PROGRAMME - HOUSING SERVICES,CP,RENOVATION OF L.A. DWELLINGS,CP10,CAPITAL - ENERGY CONSERVATION,PREMISES RELATED EXPENDITURE,2,"Works - Construction, Repair & Maintenance",39,R & M OF BUILDINGS,2000,22/05/2015,526298,1673.89 ,Capital,LIBERTY GAS GROUP LTD,04242416,
Fareham Borough Council,http://statistics.data.gov.uk/id/local-authority/24UE,CAPITAL PROGRAMME - HOUSING SERVICES,CP,RENOVATION OF L.A. DWELLINGS,CP10,CAPITAL - ENERGY CONSERVATION,PREMISES RELATED EXPENDITURE,2,"Works - Construction, Repair & Maintenance",39,R & M OF BUILDINGS,2000,22/05/2015,526299,1550.77 ,Capital,LIBERTY GAS GROUP LTD,04242416,
Fareham Borough Council,http://statistics.data.gov.uk/id/local-authority/24UE,OTHER REVENUE ACCOUNTS,RV,NON WORK GROUP HOLDING ACCOUNT,RV18,DEPT of FINANCE and RESOURCES,SUPPLIES & SERVICES,4,Information Communication Technology,27,FURNITURE & EQUIPT. PURCHASES,4000,29/05/2015,526304,-500.00 ,Revenue,TENSOR PLC,OC306959,
Fareham Borough Council,http://statistics.data.gov.uk/id/local-authority/24UE,OTHER REVENUE ACCOUNTS,RV,NON WORK GROUP HOLDING ACCOUNT,RV18,DEPT of FINANCE and RESOURCES,SUPPLIES & SERVICES,4,Information Communication Technology,27,FURNITURE & EQUIPT. PURCHASES,4000,29/05/2015,526305,500.00 ,Revenue,TENSOR PLC,OC306959,
Fareham Borough Council,http://statistics.data.gov.uk/id/local-authority/24UE,CAPITAL PROGRAMME - HOUSING SERVICES,CP,HOUSE RENOVATION GRANTS,CP11,CAPITAL - HOUSE RENOVATION GRANTS,SUPPLIES & SERVICES,4,Social Community Care Supplies & Services,32,GRANTS AND SUBSCRIPTIONS,4700,22/05/2015,526307,1065.00 ,Capital,LIFTABILITY,03782380,
Fareham Borough Council,http://statistics.data.gov.uk/id/local-authority/24UE,BALANCE SHEET,BS,BAL. SHEET - GENERAL FUND,BS1,BAL. SHEET - GENERAL FUND,BALANCES & RESERVES,BS190,Local/Central Government,98,HAMPSHIRE CC SOFT LOAN,E020,22/05/2015,526308,200000.00 ,Balance Sheet,HAMPSHIRE COUNTY COUNCIL,,
Fareham Borough Council,http://statistics.data.gov.uk/id/local-authority/24UE,CULTURAL AND RELATED SERVICES,BV09,RECREATION AND SPORT,BV09B,DEPT STREETSCENE,SUPPLIES & SERVICES,4,Financial Services,20,INSURANCES - EXCESS(ARPL),4902,22/05/2015,526310,1850.00 ,Revenue,ZURICH MUNICIPAL,NF000080,
Fareham Borough Council,http://statistics.data.gov.uk/id/local-authority/24UE,PLANNING SERVICES,BV13,COMMUNITY DEVELOPMENT,BV13H,DEPT of COMMUNITY and STREETSCENE,SUPPLIES & SERVICES,4,Unclassified,,COMMUNITY DEVELOPMENT,4976,22/05/2015,526311,1000.00 ,Revenue,4 CHILDREN TRADING LIMITED,,
Fareham Borough Council,http://statistics.data.gov.uk/id/local-authority/24UE,GENERAL FUND HOUSING,BV05,HOMELESSNESS,BV05F,DEPT of COMMUNITY and STREETSCENE,PREMISES RELATED EXPENDITURE,2,Unclassified,,RENTS - PRIVATE SECTOR/MOBILES,2240,22/05/2015,526338,580.00 ,Revenue,redacted personal data,,
Fareham Borough Council,http://statistics.data.gov.uk/id/local-authority/24UE,GENERAL FUND HOUSING,BV05,HOMELESSNESS,BV05F,DEPT of COMMUNITY and STREETSCENE,PREMISES RELATED EXPENDITURE,2,Unclassified,,RENTS - PRIVATE SECTOR/MOBILES,2240,22/05/2015,526344,600.00 ,Revenue,redacted personal data,,
Fareham Borough Council,http://statistics.data.gov.uk/id/local-authority/24UE,GENERAL FUND HOUSING,BV05,HOMELESSNESS,BV05F,DEPT of COMMUNITY and STREETSCENE,PREMISES RELATED EXPENDITURE,2,Unclassified,,RENTS - PRIVATE SECTOR/MOBILES,2240,22/05/2015,526345,580.00 ,Revenue,redacted personal data,,
Fareham Borough Council,http://statistics.data.gov.uk/id/local-authority/24UE,GENERAL FUND HOUSING,BV05,HOMELESSNESS,BV05F,DEPT of COMMUNITY and STREETSCENE,PREMISES RELATED EXPENDITURE,2,Unclassified,,RENTS - PRIVATE SECTOR/MOBILES,2240,22/05/2015,526346,570.00 ,Revenue,redacted personal data,,
Fareham Borough Council,http://statistics.data.gov.uk/id/local-authority/24UE,GENERAL FUND HOUSING,BV05,HOMELESSNESS,BV05F,DEPT of COMMUNITY and STREETSCENE,PREMISES RELATED EXPENDITURE,2,Unclassified,,RENTS - PRIVATE SECTOR/MOBILES,2240,22/05/2015,526347,500.00 ,Revenue,redacted personal data,,
Fareham Borough Council,http://statistics.data.gov.uk/id/local-authority/24UE,GENERAL FUND HOUSING,BV05,HOMELESSNESS,BV05F,DEPT of COMMUNITY and STREETSCENE,PREMISES RELATED EXPENDITURE,2,Unclassified,,RENTS - PRIVATE SECTOR/MOBILES,2240,22/05/2015,526348,2775.00 ,Revenue,redacted personal data,,
Fareham Borough Council,http://statistics.data.gov.uk/id/local-authority/24UE,GENERAL FUND HOUSING,BV05,HOMELESSNESS,BV05F,DEPT of COMMUNITY and STREETSCENE,PREMISES RELATED EXPENDITURE,2,Unclassified,,RENTS - PRIVATE SECTOR/MOBILES,2240,22/05/2015,526349,500.00 ,Revenue,redacted personal data,,
Fareham Borough Council,http://statistics.data.gov.uk/id/local-authority/24UE,GENERAL FUND HOUSING,BV05,HOMELESSNESS,BV05F,DEPT of COMMUNITY and STREETSCENE,PREMISES RELATED EXPENDITURE,2,Unclassified,,RENTS - PRIVATE SECTOR/MOBILES,2240,22/05/2015,526350,575.00 ,Revenue,redacted personal data,,
Fareham Borough Council,http://statistics.data.gov.uk/id/local-authority/24UE,GENERAL FUND HOUSING,BV05,HOMELESSNESS,BV05F,DEPT of COMMUNITY and STREETSCENE,PREMISES RELATED EXPENDITURE,2,Unclassified,,RENTS - PRIVATE SECTOR/MOBILES,2240,22/05/2015,526351,500.00 ,Revenue,redacted personal data,,
Fareham Borough Council,http://statistics.data.gov.uk/id/local-authority/24UE,GENERAL FUND HOUSING,BV05,HOMELESSNESS,BV05F,DEPT of COMMUNITY and STREETSCENE,PREMISES RELATED EXPENDITURE,2,Unclassified,,RENTS - PRIVATE SECTOR/MOBILES,2240,22/05/2015,526352,500.00 ,Revenue,redacted personal data,,
Fareham Borough Council,http://statistics.data.gov.uk/id/local-authority/24UE,GENERAL FUND HOUSING,BV05,HOMELESSNESS,BV05F,DEPT of COMMUNITY and STREETSCENE,PREMISES RELATED EXPENDITURE,2,Unclassified,,RENTS - PRIVATE SECTOR/MOBILES,2240,22/05/2015,526353,500.00 ,Revenue,redacted personal data,,
Fareham Borough Council,http://statistics.data.gov.uk/id/local-authority/24UE,GENERAL FUND HOUSING,BV05,HOMELESSNESS,BV05F,DEPT of COMMUNITY and STREETSCENE,PREMISES RELATED EXPENDITURE,2,Unclassified,,RENTS - PRIVATE SECTOR/MOBILES,2240,22/05/2015,526354,500.00 ,Revenue,redacted personal data,,
Fareham Borough Council,http://statistics.data.gov.uk/id/local-authority/24UE,GENERAL FUND HOUSING,BV05,HOMELESSNESS,BV05F,DEPT of COMMUNITY and STREETSCENE,PREMISES RELATED EXPENDITURE,2,Unclassified,,RENTS - PRIVATE SECTOR/MOBILES,2240,22/05/2015,526356,500.00 ,Revenue,redacted personal data,,
Fareham Borough Council,http://statistics.data.gov.uk/id/local-authority/24UE,CULTURAL AND RELATED SERVICES,BV09,RECREATION AND SPORT,BV09B,DEPT of COMMUNITY and STREETSCENE,PREMISES RELATED EXPENDITURE,2,Horticultural,24,R&M OF TREE PRESERVATION,2063,22/05/2015,526359,1015.00 ,Revenue,BRIAN CULL,,
Fareham Borough Council,http://statistics.data.gov.uk/id/local-authority/24UE,PLANNING SERVICES,BV13,ECONOMIC DEVELOPMENT,BV13E,DEPT of STRATEGIC PLANNING and ENVIRONMENT,EMPLOYEES RELATED EXPENDITURE,1,Unclassified,,GIFTS LONG SERVICES EMPLOYEES,1908,22/05/2015,526360,511.50 ,Revenue,redacted personal data,,
Fareham Borough Council,http://statistics.data.gov.uk/id/local-authority/24UE,BALANCE SHEET,BS,BAL. SHEET - GENERAL FUND,BS1,BAL. SHEET - GENERAL FUND,TOTAL ASSETS LESS LIABILITIES,BS100,Financial Services,20,INSURANCE SUSPENSE ACCOUNT,E608,22/05/2015,526368,8664.11 ,Balance Sheet,GALLAGHER BASSETT,01844276,
Fareham Borough Council,http://statistics.data.gov.uk/id/local-authority/24UE,BALANCE SHEET,BS,BAL. SHEET - COLLECTION FUND,BS1,BAL. SHEET - COLLECTION FUND,PERSONAL ACCOUNTS,BS210,Local/Central Government,98,NNDR POOL - PAYMENTS,P140,22/05/2015,526375,-7851.00 ,Balance Sheet,DCLG (Dept. for Communities & Local Govt.),,
Fareham Borough Council,http://statistics.data.gov.uk/id/local-authority/24UE,BALANCE SHEET,BS,BAL. SHEET - COLLECTION FUND,BS1,BAL. SHEET - COLLECTION FUND,PERSONAL ACCOUNTS,BS210,Local/Central Government,98,NNDR POOL - PAYMENTS,P140,22/05/2015,526375,1897093.00 ,Balance Sheet,DCLG (Dept. for Communities & Local Govt.),,
Fareham Borough Council,http://statistics.data.gov.uk/id/local-authority/24UE,BALANCE SHEET,BS,BAL. SHEET - COLLECTION FUND,BS1,BAL. SHEET - COLLECTION FUND,PERSONAL ACCOUNTS,BS210,Local/Central Government,98,NNDR POOL - PAYMENTS,P140,22/05/2015,526375,1363365.00 ,Balance Sheet,DCLG (Dept. for Communities & Local Govt.),,
Fareham Borough Council,http://statistics.data.gov.uk/id/local-authority/24UE,BALANCE SHEET,BS,BAL. SHEET - COLLECTION FUND,BS1,BAL. SHEET - COLLECTION FUND,PERSONAL ACCOUNTS,BS210,Local/Central Government,98,NNDR POOL - PAYMENTS,P140,22/05/2015,526375,167062.00 ,Balance Sheet,DCLG (Dept. for Communities & Local Govt.),,
Fareham Borough Council,http://statistics.data.gov.uk/id/local-authority/24UE,BALANCE SHEET,BS,BAL. SHEET - COLLECTION FUND,BS1,BAL. SHEET - COLLECTION FUND,PERSONAL ACCOUNTS,BS210,Local/Central Government,98,REVENUE SUPPORT GRANT,P138,22/05/2015,526376,-87826.00 ,Balance Sheet,DCLG (Dept. for Communities & Local Govt.),,
Fareham Borough Council,http://statistics.data.gov.uk/id/local-authority/24UE,BALANCE SHEET,BS,BAL. SHEET - COLLECTION FUND,BS1,BAL. SHEET - COLLECTION FUND,PERSONAL ACCOUNTS,BS210,Local/Central Government,98,NNDR POOL - PAYMENTS,P140,22/05/2015,526376,1897094.00 ,Balance Sheet,DCLG (Dept. for Communities & Local Govt.),,
Fareham Borough Council,http://statistics.data.gov.uk/id/local-authority/24UE,BALANCE SHEET,BS,BAL. SHEET - COLLECTION FUND,BS1,BAL. SHEET - COLLECTION FUND,PERSONAL ACCOUNTS,BS210,Local/Central Government,98,NNDR POOL - PAYMENTS,P140,22/05/2015,526376,1363365.00 ,Balance Sheet,DCLG (Dept. for Communities & Local Govt.),,
Fareham Borough Council,http://statistics.data.gov.uk/id/local-authority/24UE,BALANCE SHEET,BS,BAL. SHEET - COLLECTION FUND,BS1,BAL. SHEET - COLLECTION FUND,PERSONAL ACCOUNTS,BS210,Local/Central Government,98,NNDR POOL - PAYMENTS,P140,22/05/2015,526376,167061.00 ,Balance Sheet,DCLG (Dept. for Communities & Local Govt.),,
Fareham Borough Council,http://statistics.data.gov.uk/id/local-authority/24UE,BALANCE SHEET,BS,BAL. SHEET - COLLECTION FUND,BS1,BAL. SHEET - COLLECTION FUND,PERSONAL ACCOUNTS,BS210,Local/Central Government,98,NNDR POOL - PAYMENTS,P140,22/05/2015,526376,-7850.00 ,Balance Sheet,DCLG (Dept. for Communities & Local Govt.),,
Fareham Borough Council,http://statistics.data.gov.uk/id/local-authority/24UE,CULTURAL AND RELATED SERVICES,BV09,CULTURE AND HERITAGE,BV09A,DEPT of COMMUNITY and STREETSCENE,PREMISES RELATED EXPENDITURE,2,Utilities,37,ELECTRICITY,2120,22/05/2015,526387,2246.90 ,Revenue,EDF ENERGY,02366852,
Fareham Borough Council,http://statistics.data.gov.uk/id/local-authority/24UE,OTHER REVENUE ACCOUNTS,RV,NON WORK GROUP HOLDING ACCOUNT,RV18,DEPT of FINANCE and RESOURCES,PREMISES RELATED EXPENDITURE,2,Utilities,37,ELECTRICITY,2120,22/05/2015,526387,7658.76 ,Revenue,EDF ENERGY,02366852,
Fareham Borough Council,http://statistics.data.gov.uk/id/local-authority/24UE,CAPITAL PROGRAMME - HOUSING SERVICES,CP,RENOVATION OF L.A. DWELLINGS,CP10,CAPITAL - IMPROVEMENTS WORK/MODERNIS'N,PREMISES RELATED EXPENDITURE,2,"Works - Construction, Repair & Maintenance",39,R & M OF BUILDINGS,2000,22/05/2015,526404,8010.15 ,Capital,C PROUDLOCK LTD,03081239,
Fareham Borough Council,http://statistics.data.gov.uk/id/local-authority/24UE,HOUSING REVENUE ACCOUNT,BV06,RESPONSIVE & VOID MAINTENANCE,5901,DEPT STREETSCENE,PREMISES RELATED EXPENDITURE,2,"Works - Construction, Repair & Maintenance",39,GENERAL REPAIRS,2018,22/05/2015,526404,20127.75 ,Revenue,C PROUDLOCK LTD,03081239,
Fareham Borough Council,http://statistics.data.gov.uk/id/local-authority/24UE,CAPITAL PROGRAMME - HOUSING SERVICES,CP,RENOVATION OF L.A. DWELLINGS,CP10,CAPITAL - IMPROVEMENTS WORK/MODERNIS'N,PREMISES RELATED EXPENDITURE,2,Building Construction Materials,10,R & M OF BUILDINGS,2000,22/05/2015,526408,1980.00 ,Capital,HARFORD SPECIALISED SERVICES LTD,02338660,
Fareham Borough Council,http://statistics.data.gov.uk/id/local-authority/24UE,OTHER REVENUE ACCOUNTS,RV,CONTRACT SERVICES D.S.O.,RV14,DEPT STREETSCENE,PREMISES RELATED EXPENDITURE,2,Facilities & Management Services,19,R & M OF BUILDINGS,2000,22/05/2015,526409,1729.84 ,Revenue,ACCESS LOCKSMITHS LTD,02144328,
Fareham Borough Council,http://statistics.data.gov.uk/id/local-authority/24UE,OTHER REVENUE ACCOUNTS,RV,CONTRACT SERVICES D.S.O.,RV14,DEPT STREETSCENE,PREMISES RELATED EXPENDITURE,2,Facilities & Management Services,19,R & M OF BUILDINGS,2000,22/05/2015,526409,-12.58 ,Revenue,ACCESS LOCKSMITHS LTD,02144328,
Fareham Borough Council,http://statistics.data.gov.uk/id/local-authority/24UE,PLANNING SERVICES,BV13,COMMUNITY DEVELOPMENT,BV13H,DEPT of COMMUNITY and STREETSCENE,SUPPLIES & SERVICES,4,"Works - Construction, Repair & Maintenance",39,FURNITURE & EQUIPT. PURCHASES,4000,22/05/2015,526410,2316.00 ,Revenue,EARTH ANCHORS LTD,00842961,
Fareham Borough Council,http://statistics.data.gov.uk/id/local-authority/24UE,CULTURAL AND RELATED SERVICES,BV09,RECREATION AND SPORT,BV09B,DEPT STREETSCENE,PREMISES RELATED EXPENDITURE,2,Horticultural,24,R&M OF GROUNDS,2060,29/05/2015,526433,3165.00 ,Revenue,BRIAN CULL,,
Fareham Borough Council,http://statistics.data.gov.uk/id/local-authority/24UE,CULTURAL AND RELATED SERVICES,BV09,RECREATION AND SPORT,BV09B,DEPT STREETSCENE,PREMISES RELATED EXPENDITURE,2,Horticultural,24,R&M OF GROUNDS,2060,29/05/2015,526433,2050.00 ,Revenue,BRIAN CULL,,
Fareham Borough Council,http://statistics.data.gov.uk/id/local-authority/24UE,CULTURAL AND RELATED SERVICES,BV09,CULTURE AND HERITAGE,BV09A,DEPT of COMMUNITY and STREETSCENE,SUPPLIES & SERVICES,4,Catering,11,BAR PROVISIONS,4106,29/05/2015,526438,701.93 ,Revenue,MOLSON COORS BREWING COMPANY (UK) LTD,26018,
Fareham Borough Council,http://statistics.data.gov.uk/id/local-authority/24UE,CULTURAL AND RELATED SERVICES,BV09,CULTURE AND HERITAGE,BV09A,DEPT of COMMUNITY and STREETSCENE,SUPPLIES & SERVICES,4,Catering,11,CONFECTIONARY,4101,29/05/2015,526439,26.98 ,Revenue,P & H DIRECT VAN SALES LTD,8003983,
Fareham Borough Council,http://statistics.data.gov.uk/id/local-authority/24UE,CULTURAL AND RELATED SERVICES,BV09,CULTURE AND HERITAGE,BV09A,DEPT of COMMUNITY and STREETSCENE,SUPPLIES & SERVICES,4,Catering,11,CONFECTIONARY,4101,29/05/2015,526439,734.49 ,Revenue,P & H DIRECT VAN SALES LTD,8003983,
Fareham Borough Council,http://statistics.data.gov.uk/id/local-authority/24UE,CULTURAL AND RELATED SERVICES,BV09,CULTURE AND HERITAGE,BV09A,DEPT of COMMUNITY and STREETSCENE,SUPPLIES & SERVICES,4,Art & Leisure Services,29,PROMOTER,4916,22/05/2015,526440,3500.00 ,Revenue,ROB KINGSLEY 'A VISION OF ELVIS',,
Fareham Borough Council,http://statistics.data.gov.uk/id/local-authority/24UE,CAPITAL PROGRAMME - OTHER SERVICES,CP,SCHEMES FUNDED FROM BALANCES,CP20,CAPITAL - SCHEMES FUNDED FROM BALANCES,PREMISES RELATED EXPENDITURE,2,"Works - Construction, Repair & Maintenance",39,R & M OF BUILDINGS,2000,22/05/2015,526449,134264.85 ,Capital,J B LEADBITTER & CO LTD,1018727,
Fareham Borough Council,http://statistics.data.gov.uk/id/local-authority/24UE,CAPITAL PROGRAMME - OTHER SERVICES,CP,SCHEMES FUNDED FROM BALANCES,CP20,CAPITAL - SCHEMES FUNDED FROM BALANCES,PREMISES RELATED EXPENDITURE,2,"Works - Construction, Repair & Maintenance",39,R & M OF BUILDINGS,2000,22/05/2015,526449,13552.73 ,Capital,J B LEADBITTER & CO LTD,1018727,
Fareham Borough Council,http://statistics.data.gov.uk/id/local-authority/24UE,CAPITAL PROGRAMME - OTHER SERVICES,CP,SCHEMES FUNDED FROM BALANCES,CP20,CAPITAL - SCHEMES FUNDED FROM BALANCES,SUPPLIES & SERVICES,4,Legal Services,28,CONSULTANTS FEES,4401,22/05/2015,526450,9436.36 ,Capital,VEALE WASBROUGH VIZARDS,OC384033,
Fareham Borough Council,http://statistics.data.gov.uk/id/local-authority/24UE,CAPITAL PROGRAMME - OTHER SERVICES,CP,SCHEMES FUNDED FROM BALANCES,CP20,CAPITAL - SCHEMES FUNDED FROM BALANCES,SUPPLIES & SERVICES,4,Legal Services,28,CONSULTANTS FEES,4401,22/05/2015,526450,12.00 ,Capital,VEALE WASBROUGH VIZARDS,OC384033,
Fareham Borough Council,http://statistics.data.gov.uk/id/local-authority/24UE,CAPITAL PROGRAMME - OTHER SERVICES,CP,COMPUTER APPROVED,CP23,CAPITAL - COMPUTER APPROVED,SUPPLIES & SERVICES,4,Information Communication Technology,27,FURNITURE & EQUIPT. PURCHASES,4000,22/05/2015,526452,672.00 ,Capital,SERVIO TECHNOLOGY,6514473,
Fareham Borough Council,http://statistics.data.gov.uk/id/local-authority/24UE,CULTURAL AND RELATED SERVICES,BV09,CULTURE AND HERITAGE,BV09A,DEPT of COMMUNITY and STREETSCENE,SUPPLIES & SERVICES,4,Art & Leisure Services,29,EQUIPMENT PURCHASES - TECH'L,4011,22/05/2015,526459,3955.00 ,Revenue,KV2 AUDIO EUROPE LTD,,
Fareham Borough Council,http://statistics.data.gov.uk/id/local-authority/24UE,CULTURAL AND RELATED SERVICES,BV09,CULTURE AND HERITAGE,BV09A,DEPT of COMMUNITY and STREETSCENE,SUPPLIES & SERVICES,4,Art & Leisure Services,29,DELIVERY CHARGES,4962,22/05/2015,526459,65.00 ,Revenue,KV2 AUDIO EUROPE LTD,,
Fareham Borough Council,http://statistics.data.gov.uk/id/local-authority/24UE,OTHER REVENUE ACCOUNTS,RV,NON WORK GROUP HOLDING ACCOUNT,RV18,DEPT of FINANCE and RESOURCES,EMPLOYEES RELATED EXPENDITURE,1,Human Resources,26,TRAINING COURSES EMPLOYEES,1909,22/05/2015,526460,5150.00 ,Revenue,THOMAS INTERNATIONAL UK LTD,2518079,
Fareham Borough Council,http://statistics.data.gov.uk/id/local-authority/24UE,CENTRAL SERVICES,BV07,CENTRAL SERVICES TO THE PUBLIC,BV07B,DEPT of COMMUNITY and STREETSCENE,SUPPLIES & SERVICES,4,Human Resources,26,LEGAL FEES,4400,22/05/2015,526465,1713.24 ,Revenue,LOCAL GOVERNMENT ASSOCIATION,3487186,
Fareham Borough Council,http://statistics.data.gov.uk/id/local-authority/24UE,CAPITAL PROGRAMME - OTHER SERVICES,CP,COMPUTER APPROVED,CP23,CAPITAL - COMPUTER APPROVED,SUPPLIES & SERVICES,4,Information Communication Technology,27,FURNITURE & EQUIPT. PURCHASES,4000,29/05/2015,526467,357.00 ,Capital,SERVIO TECHNOLOGY,6514473,
Fareham Borough Council,http://statistics.data.gov.uk/id/local-authority/24UE,OTHER REVENUE ACCOUNTS,RV,CONTRACT SERVICES D.S.O.,RV14,DEPT of STRATEGIC PLANNING and ENVIRONMENT,SUPPLIES & SERVICES,4,Information Communication Technology,27,FURNITURE & EQUIPT. PURCHASES,4000,29/05/2015,526467,238.00 ,Revenue,SERVIO TECHNOLOGY,6514473,
Fareham Borough Council,http://statistics.data.gov.uk/id/local-authority/24UE,OTHER REVENUE ACCOUNTS,RV,NON WORK GROUP HOLDING ACCOUNT,RV18,DEPT of FINANCE and RESOURCES,SUPPLIES & SERVICES,4,Information Communication Technology,27,SOFTWARE LICENCES,4530,29/05/2015,526469,3095.00 ,Revenue,DUE NORTH LTD,4499218,
Fareham Borough Council,http://statistics.data.gov.uk/id/local-authority/24UE,HOUSING REVENUE ACCOUNT,BV06,CATCH UP REPAIRS,5902,DEPT STREETSCENE,PREMISES RELATED EXPENDITURE,2,Social Community Care Supplies & Services,32,R & M OF BUILDINGS,2000,22/05/2015,526556,770.00 ,Revenue,LIFTECH SYSTEMS (SE) LTD,04834054,
Fareham Borough Council,http://statistics.data.gov.uk/id/local-authority/24UE,HOUSING REVENUE ACCOUNT,BV06,CATCH UP REPAIRS,5902,DEPT STREETSCENE,PREMISES RELATED EXPENDITURE,2,Social Community Care Supplies & Services,32,R & M OF BUILDINGS,2000,22/05/2015,526556,250.00 ,Revenue,LIFTECH SYSTEMS (SE) LTD,04834054,
Fareham Borough Council,http://statistics.data.gov.uk/id/local-authority/24UE,HOUSING REVENUE ACCOUNT,BV06,CATCH UP REPAIRS,5902,DEPT STREETSCENE,PREMISES RELATED EXPENDITURE,2,Social Community Care Supplies & Services,32,R & M OF BUILDINGS,2000,22/05/2015,526557,-1020.00 ,Revenue,LIFTECH SYSTEMS (SE) LTD,04834054,
Fareham Borough Council,http://statistics.data.gov.uk/id/local-authority/24UE,HOUSING REVENUE ACCOUNT,BV06,CATCH UP REPAIRS,5902,DEPT STREETSCENE,PREMISES RELATED EXPENDITURE,2,Social Community Care Supplies & Services,32,R & M OF BUILDINGS,2000,22/05/2015,526558,765.00 ,Revenue,LIFTECH SYSTEMS (SE) LTD,04834054,
Fareham Borough Council,http://statistics.data.gov.uk/id/local-authority/24UE,HOUSING REVENUE ACCOUNT,BV06,CATCH UP REPAIRS,5902,DEPT STREETSCENE,PREMISES RELATED EXPENDITURE,2,Social Community Care Supplies & Services,32,R & M OF BUILDINGS,2000,22/05/2015,526558,250.00 ,Revenue,LIFTECH SYSTEMS (SE) LTD,04834054,
Fareham Borough Council,http://statistics.data.gov.uk/id/local-authority/24UE,HOUSING REVENUE ACCOUNT,BV06,CATCH UP REPAIRS,5902,DEPT STREETSCENE,PREMISES RELATED EXPENDITURE,2,Social Community Care Supplies & Services,32,R & M OF BUILDINGS,2000,22/05/2015,526559,-1015.00 ,Revenue,LIFTECH SYSTEMS (SE) LTD,04834054,
Fareham Borough Council,http://statistics.data.gov.uk/id/local-authority/24UE,HOUSING REVENUE ACCOUNT,BV06,RESPONSIVE & VOID MAINTENANCE,5901,DEPT STREETSCENE,PREMISES RELATED EXPENDITURE,2,Environmental Services,18,VOID COSTS - NOT RECHARGEABLE,2011,22/05/2015,526561,650.00 ,Revenue,R H INSULATION SERVICES LIMITED,02062526,
Fareham Borough Council,http://statistics.data.gov.uk/id/local-authority/24UE,GENERAL FUND HOUSING,BV05,HOMELESSNESS,BV05F,DEPT of COMMUNITY and STREETSCENE,SUPPLIES & SERVICES,4,Social Community Care Supplies & Services,32,BED & BREAKFAST EXPENSES,4943,22/05/2015,526562,770.00 ,Revenue,WESTCOTE BED AND BREAKFAST,,
Fareham Borough Council,http://statistics.data.gov.uk/id/local-authority/24UE,CULTURAL AND RELATED SERVICES,BV09,RECREATION AND SPORT,BV09B,DEPT of COMMUNITY and STREETSCENE,PREMISES RELATED EXPENDITURE,2,Utilities,37,GAS,2130,22/05/2015,526565,34.62 ,Revenue,CORONA ENERGY RETAIL 1 LIMITED,02798334,
Fareham Borough Council,http://statistics.data.gov.uk/id/local-authority/24UE,CULTURAL AND RELATED SERVICES,BV09,CULTURE AND HERITAGE,BV09A,DEPT of COMMUNITY and STREETSCENE,PREMISES RELATED EXPENDITURE,2,Utilities,37,GAS,2130,22/05/2015,526565,948.11 ,Revenue,CORONA ENERGY RETAIL 1 LIMITED,02798334,
Fareham Borough Council,http://statistics.data.gov.uk/id/local-authority/24UE,CULTURAL AND RELATED SERVICES,BV09,CULTURE AND HERITAGE,BV09A,DEPT of COMMUNITY and STREETSCENE,PREMISES RELATED EXPENDITURE,2,Utilities,37,GAS,2130,22/05/2015,526565,294.23 ,Revenue,CORONA ENERGY RETAIL 1 LIMITED,02798334,
Fareham Borough Council,http://statistics.data.gov.uk/id/local-authority/24UE,HOUSING REVENUE ACCOUNT,BV06,COMMUNAL HEATING SERVICES,5025,DEPT of COMMUNITY and STREETSCENE,PREMISES RELATED EXPENDITURE,2,Utilities,37,GAS,2130,22/05/2015,526565,91.19 ,Revenue,CORONA ENERGY RETAIL 1 LIMITED,02798334,
Fareham Borough Council,http://statistics.data.gov.uk/id/local-authority/24UE,HOUSING REVENUE ACCOUNT,BV06,COMMUNAL HEATING SERVICES,5025,DEPT of COMMUNITY and STREETSCENE,PREMISES RELATED EXPENDITURE,2,Utilities,37,GAS,2130,22/05/2015,526565,1765.98 ,Revenue,CORONA ENERGY RETAIL 1 LIMITED,02798334,
Fareham Borough Council,http://statistics.data.gov.uk/id/local-authority/24UE,OTHER REVENUE ACCOUNTS,RV,NON WORK GROUP HOLDING ACCOUNT,RV18,DEPT of FINANCE and RESOURCES,PREMISES RELATED EXPENDITURE,2,Utilities,37,GAS,2130,22/05/2015,526565,1402.86 ,Revenue,CORONA ENERGY RETAIL 1 LIMITED,02798334,
Fareham Borough Council,http://statistics.data.gov.uk/id/local-authority/24UE,OTHER REVENUE ACCOUNTS,RV,NON WORK GROUP HOLDING ACCOUNT,RV18,DEPT of FINANCE and RESOURCES,PREMISES RELATED EXPENDITURE,2,Utilities,37,GAS,2130,22/05/2015,526565,1047.14 ,Revenue,CORONA ENERGY RETAIL 1 LIMITED,02798334,
Fareham Borough Council,http://statistics.data.gov.uk/id/local-authority/24UE,CAPITAL PROGRAMME - HOUSING SERVICES,CP,RENOVATION OF L.A. DWELLINGS,CP10,CAPITAL - IMPROVEMENTS WORK/MODERNIS'N,PREMISES RELATED EXPENDITURE,2,"Works - Construction, Repair & Maintenance",39,R & M OF BUILDINGS,2000,22/05/2015,526566,1318.48 ,Capital,JPC PROPERTY SERVICES LTD,4704385,
Fareham Borough Council,http://statistics.data.gov.uk/id/local-authority/24UE,CAPITAL PROGRAMME - HOUSING SERVICES,CP,RENOVATION OF L.A. DWELLINGS,CP10,CAPITAL - IMPROVEMENTS WORK/MODERNIS'N,PREMISES RELATED EXPENDITURE,2,"Works - Construction, Repair & Maintenance",39,R & M OF BUILDINGS,2000,22/05/2015,526566,18600.70 ,Capital,JPC PROPERTY SERVICES LTD,4704385,
Fareham Borough Council,http://statistics.data.gov.uk/id/local-authority/24UE,CAPITAL PROGRAMME - HOUSING SERVICES,CP,RENOVATION OF L.A. DWELLINGS,CP10,CAPITAL - IMPROVEMENTS WORK/MODERNIS'N,PREMISES RELATED EXPENDITURE,2,"Works - Construction, Repair & Maintenance",39,R & M OF BUILDINGS,2000,22/05/2015,526566,10700.00 ,Capital,JPC PROPERTY SERVICES LTD,4704385,
Fareham Borough Council,http://statistics.data.gov.uk/id/local-authority/24UE,HOUSING REVENUE ACCOUNT,BV06,RESPONSIVE & VOID MAINTENANCE,5901,DEPT STREETSCENE,PREMISES RELATED EXPENDITURE,2,"Works - Construction, Repair & Maintenance",39,VOID COSTS - NOT RECHARGEABLE,2011,22/05/2015,526566,41423.65 ,Revenue,JPC PROPERTY SERVICES LTD,4704385,
Fareham Borough Council,http://statistics.data.gov.uk/id/local-authority/24UE,HOUSING REVENUE ACCOUNT,BV06,RESPONSIVE & VOID MAINTENANCE,5901,DEPT STREETSCENE,PREMISES RELATED EXPENDITURE,2,"Works - Construction, Repair & Maintenance",39,GENERAL REPAIRS,2018,22/05/2015,526566,2869.60 ,Revenue,JPC PROPERTY SERVICES LTD,4704385,
Fareham Borough Council,http://statistics.data.gov.uk/id/local-authority/24UE,ENVIRONMENT AND REGULATORY SER,BV03,CEMETERIES CREM & MORTUARY,BV03A,DEPT STREETSCENE,PREMISES RELATED EXPENDITURE,2,Utilities,37,ELECTRICITY,2120,22/05/2015,526568,23.35 ,Revenue,BRITISH GAS BUSINESS,3078711,
Fareham Borough Council,http://statistics.data.gov.uk/id/local-authority/24UE,FINANCING & INVESTMENT I&E,BVB02,INVESTMENT PROPERTIES,BVB170,DEPT of FINANCE and RESOURCES,PREMISES RELATED EXPENDITURE,2,Utilities,37,ELECTRICITY,2120,22/05/2015,526568,550.50 ,Revenue,BRITISH GAS BUSINESS,3078711,
Fareham Borough Council,http://statistics.data.gov.uk/id/local-authority/24UE,CULTURAL AND RELATED SERVICES,BV09,RECREATION AND SPORT,BV09B,DEPT of COMMUNITY and STREETSCENE,PREMISES RELATED EXPENDITURE,2,Utilities,37,ELECTRICITY,2120,22/05/2015,526568,90.64 ,Revenue,BRITISH GAS BUSINESS,3078711,
Fareham Borough Council,http://statistics.data.gov.uk/id/local-authority/24UE,CULTURAL AND RELATED SERVICES,BV09,RECREATION AND SPORT,BV09B,DEPT of COMMUNITY and STREETSCENE,PREMISES RELATED EXPENDITURE,2,Utilities,37,ELECTRICITY,2120,22/05/2015,526568,749.90 ,Revenue,BRITISH GAS BUSINESS,3078711,
Fareham Borough Council,http://statistics.data.gov.uk/id/local-authority/24UE,HIGHWAYS ROADS AND TRANSPORT,BV12,PARKING SERVICES,BV12D,DEPT STREETSCENE,PREMISES RELATED EXPENDITURE,2,Utilities,37,ELECTRICITY,2120,22/05/2015,526568,7183.17 ,Revenue,BRITISH GAS BUSINESS,3078711,
Fareham Borough Council,http://statistics.data.gov.uk/id/local-authority/24UE,ENVIRONMENT AND REGULATORY SER,BV03,ENVIRONMENTAL HEALTH,BV03C,DEPT STREETSCENE,PREMISES RELATED EXPENDITURE,2,Utilities,37,ELECTRICITY,2120,22/05/2015,526568,331.41 ,Revenue,BRITISH GAS BUSINESS,3078711,
Fareham Borough Council,http://statistics.data.gov.uk/id/local-authority/24UE,HOUSING REVENUE ACCOUNT,BV06,COMMUNAL HEATING SERVICES,5025,DEPT of COMMUNITY and STREETSCENE,PREMISES RELATED EXPENDITURE,2,Utilities,37,ELECTRICITY,2120,22/05/2015,526568,2778.64 ,Revenue,BRITISH GAS BUSINESS,3078711,
Fareham Borough Council,http://statistics.data.gov.uk/id/local-authority/24UE,HOUSING REVENUE ACCOUNT,BV06,COMMUNAL HEATING SERVICES,5025,DEPT of COMMUNITY and STREETSCENE,PREMISES RELATED EXPENDITURE,2,Utilities,37,ELECTRICITY,2120,22/05/2015,526568,88.57 ,Revenue,BRITISH GAS BUSINESS,3078711,
Fareham Borough Council,http://statistics.data.gov.uk/id/local-authority/24UE,HOUSING REVENUE ACCOUNT,BV06,COMMUNAL LIGHTING,5026,DEPT of COMMUNITY and STREETSCENE,PREMISES RELATED EXPENDITURE,2,Utilities,37,ELECTRICITY,2120,22/05/2015,526568,1097.84 ,Revenue,BRITISH GAS BUSINESS,3078711,
Fareham Borough Council,http://statistics.data.gov.uk/id/local-authority/24UE,HOUSING REVENUE ACCOUNT,BV06,COMMUNAL LIGHTING,5026,DEPT of COMMUNITY and STREETSCENE,PREMISES RELATED EXPENDITURE,2,Utilities,37,ELECTRICITY,2120,22/05/2015,526568,463.77 ,Revenue,BRITISH GAS BUSINESS,3078711,
Fareham Borough Council,http://statistics.data.gov.uk/id/local-authority/24UE,HOUSING REVENUE ACCOUNT,BV06,OTHER COMMUNAL SERVICES,5034,DEPT of COMMUNITY and STREETSCENE,PREMISES RELATED EXPENDITURE,2,Utilities,37,AERIALS & TV OUTLETS,2540,22/05/2015,526568,43.42 ,Revenue,BRITISH GAS BUSINESS,3078711,
Fareham Borough Council,http://statistics.data.gov.uk/id/local-authority/24UE,OTHER REVENUE ACCOUNTS,RV,CONTRACT SERVICES D.S.O.,RV14,DEPT of STRATEGIC PLANNING and ENVIRONMENT,SUPPLIES & SERVICES,4,Local/Central Government,,SUB-CONTRACTORS CHARGES,4432,22/05/2015,526574,844.50 ,Revenue,SOUTHAMPTON CITY COUNCIL,,
Fareham Borough Council,http://statistics.data.gov.uk/id/local-authority/24UE,OTHER REVENUE ACCOUNTS,RV,CONTRACT SERVICES D.S.O.,RV14,DEPT of STRATEGIC PLANNING and ENVIRONMENT,SUPPLIES & SERVICES,4,Consultancy,15,GRANTS AND SUBSCRIPTIONS,4700,22/05/2015,526579,857.00 ,Revenue,BSI MANAGEMENT SYSTEMS,07805321,
Fareham Borough Council,http://statistics.data.gov.uk/id/local-authority/24UE,OTHER REVENUE ACCOUNTS,RV,CONTRACT SERVICES D.S.O.,RV14,DEPT of STRATEGIC PLANNING and ENVIRONMENT,SUPPLIES & SERVICES,4,Local/Central Government,98,SUB-CONTRACTORS CHARGES,4432,22/05/2015,526580,1359.00 ,Revenue,HART DISTRICT COUNCIL,,
Fareham Borough Council,http://statistics.data.gov.uk/id/local-authority/24UE,CENTRAL SERVICES,BV07,CENTRAL SERVICES TO THE PUBLIC,BV07B,DEPT of FINANCE and RESOURCES,PREMISES RELATED EXPENDITURE,2,Unclassified,98,RENTS - GENERAL PAYABLE,2200,22/05/2015,526600,500.00 ,Revenue,FAREHAM BAPTIST CHURCH,,
Fareham Borough Council,http://statistics.data.gov.uk/id/local-authority/24UE,HIGHWAYS ROADS AND TRANSPORT,BV12,PARKING SERVICES,BV12D,DEPT STREETSCENE,PREMISES RELATED EXPENDITURE,2,Utilities,37,SEWERAGE & ENV. CHARGES (SWS),2410,22/05/2015,526619,4027.41 ,Revenue,SOUTHERN WATER SERVICES PLC,02366670,
Fareham Borough Council,http://statistics.data.gov.uk/id/local-authority/24UE,HIGHWAYS ROADS AND TRANSPORT,BV12,PARKING SERVICES,BV12D,DEPT STREETSCENE,PREMISES RELATED EXPENDITURE,2,Utilities,37,SEWERAGE & ENV. CHARGES (SWS),2410,22/05/2015,526620,591.66 ,Revenue,SOUTHERN WATER SERVICES PLC,02366670,
Fareham Borough Council,http://statistics.data.gov.uk/id/local-authority/24UE,HIGHWAYS ROADS AND TRANSPORT,BV12,PARKING SERVICES,BV12D,DEPT STREETSCENE,PREMISES RELATED EXPENDITURE,2,Utilities,37,SEWERAGE & ENV. CHARGES (SWS),2410,22/05/2015,526623,544.41 ,Revenue,SOUTHERN WATER SERVICES PLC,02366670,
Fareham Borough Council,http://statistics.data.gov.uk/id/local-authority/24UE,HIGHWAYS ROADS AND TRANSPORT,BV12,PARKING SERVICES,BV12D,DEPT STREETSCENE,PREMISES RELATED EXPENDITURE,2,Utilities,37,SEWERAGE & ENV. CHARGES (SWS),2410,22/05/2015,526624,1039.41 ,Revenue,SOUTHERN WATER SERVICES PLC,02366670,
Fareham Borough Council,http://statistics.data.gov.uk/id/local-authority/24UE,ENVIRONMENT AND REGULATORY SER,BV03,STREET CLEANSING,BV03F,DEPT STREETSCENE,TRANSPORT RELATED EXPENDITURE,3,Unclassified,,VEHICLE LICENCES,3023,22/05/2015,526632,165.00 ,Revenue,POST OFFICE LTD,,
Fareham Borough Council,http://statistics.data.gov.uk/id/local-authority/24UE,ENVIRONMENT AND REGULATORY SER,BV03,STREET CLEANSING,BV03F,DEPT STREETSCENE,TRANSPORT RELATED EXPENDITURE,3,Unclassified,,VEHICLE LICENCES,3023,22/05/2015,526632,225.00 ,Revenue,POST OFFICE LTD,,
Fareham Borough Council,http://statistics.data.gov.uk/id/local-authority/24UE,HIGHWAYS ROADS AND TRANSPORT,BV12,PARKING SERVICES,BV12D,DEPT STREETSCENE,TRANSPORT RELATED EXPENDITURE,3,Unclassified,,VEHICLE LICENCES,3023,22/05/2015,526632,225.00 ,Revenue,POST OFFICE LTD,,
Fareham Borough Council,http://statistics.data.gov.uk/id/local-authority/24UE,ENVIRONMENT AND REGULATORY SER,BV03,WASTE COLLECTION,BV03G,DEPT STREETSCENE,TRANSPORT RELATED EXPENDITURE,3,Unclassified,,VEHICLE LICENCES,3023,22/05/2015,526632,650.00 ,Revenue,POST OFFICE LTD,,
Fareham Borough Council,http://statistics.data.gov.uk/id/local-authority/24UE,ENVIRONMENT AND REGULATORY SER,BV03,WASTE COLLECTION,BV03G,DEPT STREETSCENE,TRANSPORT RELATED EXPENDITURE,3,Unclassified,,VEHICLE LICENCES,3023,22/05/2015,526632,650.00 ,Revenue,POST OFFICE LTD,,
Fareham Borough Council,http://statistics.data.gov.uk/id/local-authority/24UE,OTHER REVENUE ACCOUNTS,RV,CONTRACT SERVICES D.S.O.,RV14,DEPT STREETSCENE,TRANSPORT RELATED EXPENDITURE,3,Unclassified,,VEHICLE LICENCES,3023,22/05/2015,526632,225.00 ,Revenue,POST OFFICE LTD,,
Fareham Borough Council,http://statistics.data.gov.uk/id/local-authority/24UE,OTHER REVENUE ACCOUNTS,RV,CONTRACT SERVICES D.S.O.,RV14,DEPT STREETSCENE,TRANSPORT RELATED EXPENDITURE,3,Vehicle Management,38,ROUTINE REPAIRS VEHICLES/PLANT,3010,22/05/2015,526635,153.00 ,Revenue,CARTERS OF SWANWICK LTD,00387507,
Fareham Borough Council,http://statistics.data.gov.uk/id/local-authority/24UE,OTHER REVENUE ACCOUNTS,RV,CONTRACT SERVICES D.S.O.,RV14,DEPT STREETSCENE,TRANSPORT RELATED EXPENDITURE,3,Vehicle Management,38,ROUTINE REPAIRS VEHICLES/PLANT,3010,22/05/2015,526635,153.00 ,Revenue,CARTERS OF SWANWICK LTD,00387507,
Fareham Borough Council,http://statistics.data.gov.uk/id/local-authority/24UE,OTHER REVENUE ACCOUNTS,RV,CONTRACT SERVICES D.S.O.,RV14,DEPT STREETSCENE,TRANSPORT RELATED EXPENDITURE,3,Vehicle Management,38,ROUTINE REPAIRS VEHICLES/PLANT,3010,22/05/2015,526635,243.00 ,Revenue,CARTERS OF SWANWICK LTD,00387507,
Fareham Borough Council,http://statistics.data.gov.uk/id/local-authority/24UE,OTHER REVENUE ACCOUNTS,RV,CONTRACT SERVICES D.S.O.,RV14,DEPT STREETSCENE,TRANSPORT RELATED EXPENDITURE,3,Vehicle Management,38,ROUTINE REPAIRS VEHICLES/PLANT,3010,22/05/2015,526640,3.62 ,Revenue,CARTERS OF SWANWICK LTD,00387507,
Fareham Borough Council,http://statistics.data.gov.uk/id/local-authority/24UE,OTHER REVENUE ACCOUNTS,RV,CONTRACT SERVICES D.S.O.,RV14,DEPT STREETSCENE,TRANSPORT RELATED EXPENDITURE,3,Vehicle Management,38,ROUTINE REPAIRS VEHICLES/PLANT,3010,22/05/2015,526640,2.32 ,Revenue,CARTERS OF SWANWICK LTD,00387507,
Fareham Borough Council,http://statistics.data.gov.uk/id/local-authority/24UE,OTHER REVENUE ACCOUNTS,RV,CONTRACT SERVICES D.S.O.,RV14,DEPT STREETSCENE,TRANSPORT RELATED EXPENDITURE,3,Vehicle Management,38,ROUTINE REPAIRS VEHICLES/PLANT,3010,22/05/2015,526640,1.09 ,Revenue,CARTERS OF SWANWICK LTD,00387507,
Fareham Borough Council,http://statistics.data.gov.uk/id/local-authority/24UE,OTHER REVENUE ACCOUNTS,RV,CONTRACT SERVICES D.S.O.,RV14,DEPT STREETSCENE,TRANSPORT RELATED EXPENDITURE,3,Vehicle Management,38,ROUTINE REPAIRS VEHICLES/PLANT,3010,22/05/2015,526640,4.28 ,Revenue,CARTERS OF SWANWICK LTD,00387507,
Fareham Borough Council,http://statistics.data.gov.uk/id/local-authority/24UE,OTHER REVENUE ACCOUNTS,RV,CONTRACT SERVICES D.S.O.,RV14,DEPT STREETSCENE,TRANSPORT RELATED EXPENDITURE,3,Vehicle Management,38,ROUTINE REPAIRS VEHICLES/PLANT,3010,22/05/2015,526640,1.43 ,Revenue,CARTERS OF SWANWICK LTD,00387507,
Fareham Borough Council,http://statistics.data.gov.uk/id/local-authority/24UE,OTHER REVENUE ACCOUNTS,RV,CONTRACT SERVICES D.S.O.,RV14,DEPT STREETSCENE,TRANSPORT RELATED EXPENDITURE,3,Vehicle Management,38,ROUTINE REPAIRS VEHICLES/PLANT,3010,22/05/2015,526640,0.68 ,Revenue,CARTERS OF SWANWICK LTD,00387507,
Fareham Borough Council,http://statistics.data.gov.uk/id/local-authority/24UE,OTHER REVENUE ACCOUNTS,RV,CONTRACT SERVICES D.S.O.,RV14,DEPT STREETSCENE,TRANSPORT RELATED EXPENDITURE,3,Vehicle Management,38,ROUTINE REPAIRS VEHICLES/PLANT,3010,22/05/2015,526640,0.44 ,Revenue,CARTERS OF SWANWICK LTD,00387507,
Fareham Borough Council,http://statistics.data.gov.uk/id/local-authority/24UE,OTHER REVENUE ACCOUNTS,RV,CONTRACT SERVICES D.S.O.,RV14,DEPT STREETSCENE,TRANSPORT RELATED EXPENDITURE,3,Vehicle Management,38,ROUTINE REPAIRS VEHICLES/PLANT,3010,22/05/2015,526640,0.44 ,Revenue,CARTERS OF SWANWICK LTD,00387507,
Fareham Borough Council,http://statistics.data.gov.uk/id/local-authority/24UE,OTHER REVENUE ACCOUNTS,RV,CONTRACT SERVICES D.S.O.,RV14,DEPT STREETSCENE,TRANSPORT RELATED EXPENDITURE,3,Vehicle Management,38,ROUTINE REPAIRS VEHICLES/PLANT,3010,22/05/2015,526640,0.50 ,Revenue,CARTERS OF SWANWICK LTD,00387507,
Fareham Borough Council,http://statistics.data.gov.uk/id/local-authority/24UE,OTHER REVENUE ACCOUNTS,RV,CONTRACT SERVICES D.S.O.,RV14,DEPT STREETSCENE,TRANSPORT RELATED EXPENDITURE,3,Vehicle Management,38,ROUTINE REPAIRS VEHICLES/PLANT,3010,22/05/2015,526640,15.12 ,Revenue,CARTERS OF SWANWICK LTD,00387507,
Fareham Borough Council,http://statistics.data.gov.uk/id/local-authority/24UE,OTHER REVENUE ACCOUNTS,RV,CONTRACT SERVICES D.S.O.,RV14,DEPT STREETSCENE,TRANSPORT RELATED EXPENDITURE,3,Vehicle Management,38,ROUTINE REPAIRS VEHICLES/PLANT,3010,22/05/2015,526640,355.72 ,Revenue,CARTERS OF SWANWICK LTD,00387507,
Fareham Borough Council,http://statistics.data.gov.uk/id/local-authority/24UE,OTHER REVENUE ACCOUNTS,RV,CONTRACT SERVICES D.S.O.,RV14,DEPT STREETSCENE,TRANSPORT RELATED EXPENDITURE,3,Vehicle Management,38,ROUTINE REPAIRS VEHICLES/PLANT,3010,22/05/2015,526640,51.96 ,Revenue,CARTERS OF SWANWICK LTD,00387507,
Fareham Borough Council,http://statistics.data.gov.uk/id/local-authority/24UE,OTHER REVENUE ACCOUNTS,RV,CONTRACT SERVICES D.S.O.,RV14,DEPT STREETSCENE,TRANSPORT RELATED EXPENDITURE,3,Vehicle Management,38,ROUTINE REPAIRS VEHICLES/PLANT,3010,22/05/2015,526640,18.14 ,Revenue,CARTERS OF SWANWICK LTD,00387507,
Fareham Borough Council,http://statistics.data.gov.uk/id/local-authority/24UE,OTHER REVENUE ACCOUNTS,RV,CONTRACT SERVICES D.S.O.,RV14,DEPT STREETSCENE,TRANSPORT RELATED EXPENDITURE,3,Vehicle Management,38,ROUTINE REPAIRS VEHICLES/PLANT,3010,22/05/2015,526640,0.34 ,Revenue,CARTERS OF SWANWICK LTD,00387507,
Fareham Borough Council,http://statistics.data.gov.uk/id/local-authority/24UE,OTHER REVENUE ACCOUNTS,RV,CONTRACT SERVICES D.S.O.,RV14,DEPT STREETSCENE,TRANSPORT RELATED EXPENDITURE,3,Vehicle Management,38,ROUTINE REPAIRS VEHICLES/PLANT,3010,22/05/2015,526640,18.14 ,Revenue,CARTERS OF SWANWICK LTD,00387507,
Fareham Borough Council,http://statistics.data.gov.uk/id/local-authority/24UE,OTHER REVENUE ACCOUNTS,RV,CONTRACT SERVICES D.S.O.,RV14,DEPT STREETSCENE,TRANSPORT RELATED EXPENDITURE,3,Vehicle Management,38,ROUTINE REPAIRS VEHICLES/PLANT,3010,22/05/2015,526640,3.49 ,Revenue,CARTERS OF SWANWICK LTD,00387507,
Fareham Borough Council,http://statistics.data.gov.uk/id/local-authority/24UE,OTHER REVENUE ACCOUNTS,RV,CONTRACT SERVICES D.S.O.,RV14,DEPT STREETSCENE,TRANSPORT RELATED EXPENDITURE,3,Vehicle Management,38,ROUTINE REPAIRS VEHICLES/PLANT,3010,22/05/2015,526640,1.69 ,Revenue,CARTERS OF SWANWICK LTD,00387507,
Fareham Borough Council,http://statistics.data.gov.uk/id/local-authority/24UE,OTHER REVENUE ACCOUNTS,RV,CONTRACT SERVICES D.S.O.,RV14,DEPT STREETSCENE,TRANSPORT RELATED EXPENDITURE,3,Vehicle Management,38,ROUTINE REPAIRS VEHICLES/PLANT,3010,22/05/2015,526640,5.06 ,Revenue,CARTERS OF SWANWICK LTD,00387507,
Fareham Borough Council,http://statistics.data.gov.uk/id/local-authority/24UE,OTHER REVENUE ACCOUNTS,RV,CONTRACT SERVICES D.S.O.,RV14,DEPT STREETSCENE,TRANSPORT RELATED EXPENDITURE,3,Vehicle Management,38,ROUTINE REPAIRS VEHICLES/PLANT,3010,22/05/2015,526640,0.64 ,Revenue,CARTERS OF SWANWICK LTD,00387507,
Fareham Borough Council,http://statistics.data.gov.uk/id/local-authority/24UE,OTHER REVENUE ACCOUNTS,RV,CONTRACT SERVICES D.S.O.,RV14,DEPT STREETSCENE,TRANSPORT RELATED EXPENDITURE,3,Vehicle Management,38,ROUTINE REPAIRS VEHICLES/PLANT,3010,22/05/2015,526640,288.90 ,Revenue,CARTERS OF SWANWICK LTD,00387507,
Fareham Borough Council,http://statistics.data.gov.uk/id/local-authority/24UE,CORPORATE & DEMOCRATIC CORE,BV07A,CORPORATE MANAGEMENT,BV07AB,DEPT of FINANCE and RESOURCES,EMPLOYEES RELATED EXPENDITURE,1,Human Resources,26,AGENCY WORKERS,1050,22/05/2015,526646,530.81 ,Revenue,FPR GROUP T/A FIRST PEOPLE RECRUITMENT LTD,02615736,
Fareham Borough Council,http://statistics.data.gov.uk/id/local-authority/24UE,OTHER REVENUE ACCOUNTS,RV,CONTRACT SERVICES D.S.O.,RV14,DEPT of STRATEGIC PLANNING and ENVIRONMENT,SUPPLIES & SERVICES,4,Consultancy,15,STRUCTURAL ENGINEERS FEES,4405,22/05/2015,526647,640.87 ,Revenue,RUCK CONSULTANCY LIMITED,9335936,
Fareham Borough Council,http://statistics.data.gov.uk/id/local-authority/24UE,OTHER REVENUE ACCOUNTS,RV,CONTRACT SERVICES D.S.O.,RV14,DEPT STREETSCENE,EMPLOYEES RELATED EXPENDITURE,1,Human Resources,26,AGENCY WORKERS,1050,29/05/2015,526947,808.08 ,Revenue,BUILDING RECRUITMENT COMPANY LTD,3750125,
Fareham Borough Council,http://statistics.data.gov.uk/id/local-authority/24UE,OTHER REVENUE ACCOUNTS,RV,CONTRACT SERVICES D.S.O.,RV14,DEPT STREETSCENE,EMPLOYEES RELATED EXPENDITURE,1,Human Resources,26,AGENCY WORKERS,1050,29/05/2015,526948,821.13 ,Revenue,BUILDING RECRUITMENT COMPANY LTD,3750125,
Fareham Borough Council,http://statistics.data.gov.uk/id/local-authority/24UE,OTHER REVENUE ACCOUNTS,RV,CONTRACT SERVICES D.S.O.,RV14,DEPT STREETSCENE,EMPLOYEES RELATED EXPENDITURE,1,Human Resources,26,AGENCY WORKERS,1050,29/05/2015,526949,820.68 ,Revenue,BUILDING RECRUITMENT COMPANY LTD,3750125,
Fareham Borough Council,http://statistics.data.gov.uk/id/local-authority/24UE,CAPITAL PROGRAMME - HOUSING SERVICES,CP,RENOVATION OF L.A. DWELLINGS,CP10,CAPITAL - IMPROVEMENTS WORK/MODERNIS'N,PREMISES RELATED EXPENDITURE,2,"Works - Construction, Repair & Maintenance",39,R & M OF BUILDINGS,2000,29/05/2015,526955,3299.99 ,Capital,LIBERTY GAS GROUP LTD,04242416,
Fareham Borough Council,http://statistics.data.gov.uk/id/local-authority/24UE,CAPITAL PROGRAMME - HOUSING SERVICES,CP,RENOVATION OF L.A. DWELLINGS,CP10,CAPITAL - IMPROVEMENTS WORK/MODERNIS'N,PREMISES RELATED EXPENDITURE,2,"Works - Construction, Repair & Maintenance",39,R & M OF BUILDINGS,2000,29/05/2015,526956,3299.99 ,Capital,LIBERTY GAS GROUP LTD,04242416,
Fareham Borough Council,http://statistics.data.gov.uk/id/local-authority/24UE,CAPITAL PROGRAMME - HOUSING SERVICES,CP,HOUSE RENOVATION GRANTS,CP11,CAPITAL - HOUSE RENOVATION GRANTS,SUPPLIES & SERVICES,4,"Works - Construction, Repair & Maintenance",39,GRANTS AND SUBSCRIPTIONS,4700,29/05/2015,526969,3195.71 ,Capital,JPC PROPERTY SERVICES LTD,4704385,
Fareham Borough Council,http://statistics.data.gov.uk/id/local-authority/24UE,CAPITAL PROGRAMME - HOUSING SERVICES,CP,HOUSE RENOVATION GRANTS,CP11,CAPITAL - HOUSE RENOVATION GRANTS,SUPPLIES & SERVICES,4,Unclassified,,GRANTS AND SUBSCRIPTIONS,4700,29/05/2015,526970,2801.02 ,Capital,AKP MAINTENANCE LTD,,
Fareham Borough Council,http://statistics.data.gov.uk/id/local-authority/24UE,OTHER REVENUE ACCOUNTS,RV,NON WORK GROUP HOLDING ACCOUNT,RV18,DEPT of FINANCE and RESOURCES,SUPPLIES & SERVICES,4,Information Communication Technology,27,FURNITURE & EQUIPT.-RENTS/LSES,4040,29/05/2015,526973,999.00 ,Revenue,VODAFONE LIMITED,01471587,
Fareham Borough Council,http://statistics.data.gov.uk/id/local-authority/24UE,OTHER REVENUE ACCOUNTS,RV,NON WORK GROUP HOLDING ACCOUNT,RV18,DEPT of FINANCE and RESOURCES,SUPPLIES & SERVICES,4,Mail Services?,30,STATIONERY,4320,29/05/2015,526974,4012.04 ,Revenue,PITNEY BOWES LTD,182037,
Fareham Borough Council,http://statistics.data.gov.uk/id/local-authority/24UE,OTHER REVENUE ACCOUNTS,RV,NON WORK GROUP HOLDING ACCOUNT,RV18,DEPT of FINANCE and RESOURCES,SUPPLIES & SERVICES,4,Information Communication Technology,27,SOFTWARE LICENCES,4530,29/05/2015,526975,24000.00 ,Revenue,NORTHGATE INFORMATION SOLUTIONS UK LTD,02762332,
Fareham Borough Council,http://statistics.data.gov.uk/id/local-authority/24UE,OTHER REVENUE ACCOUNTS,RV,NON WORK GROUP HOLDING ACCOUNT,RV18,DEPT of FINANCE and RESOURCES,SUPPLIES & SERVICES,4,Information Communication Technology,27,SOFTWARE LICENCES,4530,29/05/2015,526976,-24000.00 ,Revenue,NORTHGATE INFORMATION SOLUTIONS UK LTD,02762332,
Fareham Borough Council,http://statistics.data.gov.uk/id/local-authority/24UE,HOUSING REVENUE ACCOUNT,BV06,RESPONSIVE & VOID MAINTENANCE,5901,DEPT STREETSCENE,PREMISES RELATED EXPENDITURE,2,"Works - Construction, Repair & Maintenance",39,GENERAL REPAIRS,2018,29/05/2015,526979,4484.92 ,Revenue,L A KATTENHORN & PARTNERS LTD,1010528,
Fareham Borough Council,http://statistics.data.gov.uk/id/local-authority/24UE,CAPITAL PROGRAMME - HOUSING SERVICES,CP,RENOVATION OF L.A. DWELLINGS,CP10,CAPITAL - IMPROVEMENTS WORK/MODERNIS'N,PREMISES RELATED EXPENDITURE,2,Building Construction Materials,10,R & M OF BUILDINGS,2000,29/05/2015,526982,1440.00 ,Capital,INSTAGROUP (CREST SURVEYING LTD),01500228,
Fareham Borough Council,http://statistics.data.gov.uk/id/local-authority/24UE,CAPITAL PROGRAMME - HOUSING SERVICES,CP,ENABLING ROLE - HOUSING ASSOC.,CP11,CAPITAL - ENABLING ROLE - HOUSING ASSOC.,PREMISES RELATED EXPENDITURE,2,Unclassified,98,LAND/BUILDINGS ACQUISITIONS,2601,29/05/2015,526983,10500.00 ,Capital,H M REVENUE & CUSTOMS,,
Fareham Borough Council,http://statistics.data.gov.uk/id/local-authority/24UE,CAPITAL PROGRAMME - HOUSING SERVICES,CP,HOUSE RENOVATION GRANTS,CP11,CAPITAL - HOUSE RENOVATION GRANTS,SUPPLIES & SERVICES,4,Unclassified,,GRANTS AND SUBSCRIPTIONS,4700,29/05/2015,526984,1296.44 ,Capital,redacted personal data,,
Fareham Borough Council,http://statistics.data.gov.uk/id/local-authority/24UE,CULTURAL AND RELATED SERVICES,BV09,CULTURE AND HERITAGE,BV09A,DEPT of FINANCE and RESOURCES,PREMISES RELATED EXPENDITURE,2,Utilities,37,ELECTRICITY,2120,29/05/2015,527009,33.38 ,Revenue,EDF ENERGY,02366852,
Fareham Borough Council,http://statistics.data.gov.uk/id/local-authority/24UE,ENVIRONMENT AND REGULATORY SER,BV03,ENVIRONMENTAL HEALTH,BV03C,DEPT STREETSCENE,PREMISES RELATED EXPENDITURE,2,Utilities,37,ELECTRICITY,2120,29/05/2015,527009,139.24 ,Revenue,EDF ENERGY,02366852,
Fareham Borough Council,http://statistics.data.gov.uk/id/local-authority/24UE,HIGHWAYS ROADS AND TRANSPORT,BV12,PARKING SERVICES,BV12D,DEPT STREETSCENE,PREMISES RELATED EXPENDITURE,2,Utilities,37,ELECTRICITY,2120,29/05/2015,527009,55.02 ,Revenue,EDF ENERGY,02366852,
Fareham Borough Council,http://statistics.data.gov.uk/id/local-authority/24UE,HOUSING REVENUE ACCOUNT,BV06,COMMUNAL LIGHTING,5026,DEPT of COMMUNITY and STREETSCENE,PREMISES RELATED EXPENDITURE,2,Utilities,37,ELECTRICITY,2120,29/05/2015,527009,404.64 ,Revenue,EDF ENERGY,02366852,
Fareham Borough Council,http://statistics.data.gov.uk/id/local-authority/24UE,CAPITAL PROGRAMME - HOUSING SERVICES,CP,HOUSE RENOVATION GRANTS,CP11,CAPITAL - HOUSE RENOVATION GRANTS,SUPPLIES & SERVICES,4,"Works - Construction, Repair & Maintenance",39,GRANTS AND SUBSCRIPTIONS,4700,29/05/2015,527016,3624.00 ,Capital,JPC PROPERTY SERVICES LTD,4704385,
Fareham Borough Council,http://statistics.data.gov.uk/id/local-authority/24UE,CULTURAL AND RELATED SERVICES,BV09,RECREATION AND SPORT,BV09B,DEPT of COMMUNITY and STREETSCENE,THIRD PARTY PAYMENTS,5,Unclassified,,SOUTHAMPTON-LEGAL SERVICES,5160,29/05/2015,527018,4000.00 ,Revenue,HAMPSHIRE COUNTY COUNCIL,,
Fareham Borough Council,http://statistics.data.gov.uk/id/local-authority/24UE,GENERAL FUND HOUSING,BV05,HOMELESSNESS,BV05F,DEPT of COMMUNITY and STREETSCENE,SUPPLIES & SERVICES,4,Social Community Care Supplies & Services,32,BED & BREAKFAST EXPENSES,4943,29/05/2015,527027,770.00 ,Revenue,WESTCOTE BED AND BREAKFAST,,
Fareham Borough Council,http://statistics.data.gov.uk/id/local-authority/24UE,CULTURAL AND RELATED SERVICES,BV09,CULTURE AND HERITAGE,BV09A,DEPT of COMMUNITY and STREETSCENE,SUPPLIES & SERVICES,4,Art & Leisure Services,29,PROMOTER,4916,29/05/2015,527052,8526.75 ,Revenue,SALLY MORGAN ENTERPRISES LTD,06352108,
Fareham Borough Council,http://statistics.data.gov.uk/id/local-authority/24UE,OTHER REVENUE ACCOUNTS,RV,CONTRACT SERVICES D.S.O.,RV14,DEPT STREETSCENE,SUPPLIES & SERVICES,4,Environmental Services,18,TIPPING / INCINERATOR FEES,4425,29/05/2015,527059,1006.88 ,Revenue,VEOLIA ES HAMPSHIRE LIMITED,02817856,
Fareham Borough Council,http://statistics.data.gov.uk/id/local-authority/24UE,ENVIRONMENT AND REGULATORY SER,BV03,ENVIRONMENTAL HEALTH,BV03C,DEPT STREETSCENE,SUPPLIES & SERVICES,4,Local/Central Government,98,FURNITURE & EQUIPT. MAINT.,4030,29/05/2015,527060,14102.26 ,Revenue,GOSPORT BOROUGH COUNCIL,,
Fareham Borough Council,http://statistics.data.gov.uk/id/local-authority/24UE,GENERAL FUND HOUSING,BV05,HOMELESSNESS,BV05F,DEPT of COMMUNITY and STREETSCENE,SUPPLIES & SERVICES,4,Social Community Care Supplies & Services,32,GRANTS AND SUBSCRIPTIONS,4700,29/05/2015,527061,8750.00 ,Revenue,CITIZEN ADVICE BUREAU,7653014,
Fareham Borough Council,http://statistics.data.gov.uk/id/local-authority/24UE,CENTRAL SERVICES,BV07,CENTRAL SERVICES TO THE PUBLIC,BV07B,DEPT of FINANCE and RESOURCES,SUPPLIES & SERVICES,4,Social Community Care Supplies & Services,32,CONTRIBUTION TO RUNNING EXPENS,4703,29/05/2015,527061,27500.00 ,Revenue,CITIZEN ADVICE BUREAU,7653014,
Fareham Borough Council,http://statistics.data.gov.uk/id/local-authority/24UE,CENTRAL SERVICES,BV07,CENTRAL SERVICES TO THE PUBLIC,BV07B,DEPT of FINANCE and RESOURCES,SUPPLIES & SERVICES,4,Unclassified,,CONTRIBUTION TO RUNNING EXPENS,4703,29/05/2015,527062,4000.00 ,Revenue,RELATE SOLENT,,
Fareham Borough Council,http://statistics.data.gov.uk/id/local-authority/24UE,CAPITAL PROGRAMME - HOUSING SERVICES,CP,HOUSE RENOVATION GRANTS,CP11,CAPITAL - HOUSE RENOVATION GRANTS,SUPPLIES & SERVICES,4,"Works - Construction, Repair & Maintenance",39,GRANTS AND SUBSCRIPTIONS,4700,29/05/2015,527063,808.80 ,Capital,KEMP BUILDERS,,
Fareham Borough Council,http://statistics.data.gov.uk/id/local-authority/24UE,HOUSING REVENUE ACCOUNT,BV06,RESPONSIVE & VOID MAINTENANCE,5901,DEPT STREETSCENE,PREMISES RELATED EXPENDITURE,2,Environmental Services,18,SPECIAL REFUSE COLLECTIONS,2750,29/05/2015,527113,2548.40 ,Revenue,VEOLIA ES HAMPSHIRE LIMITED,02817856,
Fareham Borough Council,http://statistics.data.gov.uk/id/local-authority/24UE,CENTRAL SERVICES,BV07,CENTRAL SERVICES TO THE PUBLIC,BV07B,DEPT of FINANCE and RESOURCES,SUPPLIES & SERVICES,4,Building Construction Materials,10,GRANTS AND SUBSCRIPTIONS,4700,29/05/2015,527118,4190.00 ,Revenue,J D C OUTDOOR SERVICES,05941402,
Fareham Borough Council,http://statistics.data.gov.uk/id/local-authority/24UE,CENTRAL SERVICES,BV07,CENTRAL SERVICES TO THE PUBLIC,BV07B,DEPT of FINANCE and RESOURCES,SUPPLIES & SERVICES,4,Unclassified,,GRANTS AND SUBSCRIPTIONS,4700,29/05/2015,527119,2000.00 ,Revenue,FRIENDS OF BROOKFIELD COMMUNITY SCHOOL,,
Fareham Borough Council,http://statistics.data.gov.uk/id/local-authority/24UE,CULTURAL AND RELATED SERVICES,BV09,CULTURE AND HERITAGE,BV09A,DEPT of COMMUNITY and STREETSCENE,SUPPLIES & SERVICES,4,Art & Leisure Services,29,PROMOTER,4916,29/05/2015,527120,4407.70 ,Revenue,SINGALONGA PRODUCTIONS LTD,4033224,
Fareham Borough Council,http://statistics.data.gov.uk/id/local-authority/24UE,CULTURAL AND RELATED SERVICES,BV09,CULTURE AND HERITAGE,BV09A,DEPT of COMMUNITY and STREETSCENE,SUPPLIES & SERVICES,4,Art & Leisure Services,29,PROMOTER,4916,29/05/2015,527120,1652.64 ,Revenue,SINGALONGA PRODUCTIONS LTD,4033224,
Fareham Borough Council,http://statistics.data.gov.uk/id/local-authority/24UE,CULTURAL AND RELATED SERVICES,BV09,RECREATION AND SPORT,BV09B,DEPT of COMMUNITY and STREETSCENE,PREMISES RELATED EXPENDITURE,2,Environmental Services,18,R & M OF BUILDINGS,2000,29/05/2015,527121,325.55 ,Revenue,CLEARWATER TECHNOLOGY LTD,03659610,
Fareham Borough Council,http://statistics.data.gov.uk/id/local-authority/24UE,CULTURAL AND RELATED SERVICES,BV09,RECREATION AND SPORT,BV09B,DEPT of COMMUNITY and STREETSCENE,PREMISES RELATED EXPENDITURE,2,Environmental Services,18,R & M OF BUILDINGS,2000,29/05/2015,527121,38.17 ,Revenue,CLEARWATER TECHNOLOGY LTD,03659610,
Fareham Borough Council,http://statistics.data.gov.uk/id/local-authority/24UE,OTHER REVENUE ACCOUNTS,RV,NON WORK GROUP HOLDING ACCOUNT,RV18,DEPT of FINANCE and RESOURCES,PREMISES RELATED EXPENDITURE,2,Environmental Services,18,R & M OF FIXED PLANT,2040,29/05/2015,527121,774.84 ,Revenue,CLEARWATER TECHNOLOGY LTD,03659610,
Fareham Borough Council,http://statistics.data.gov.uk/id/local-authority/24UE,OTHER REVENUE ACCOUNTS,RV,NON WORK GROUP HOLDING ACCOUNT,RV18,DEPT of FINANCE and RESOURCES,PREMISES RELATED EXPENDITURE,2,Environmental Services,18,R & M OF FIXED PLANT,2040,29/05/2015,527121,38.17 ,Revenue,CLEARWATER TECHNOLOGY LTD,03659610,
Fareham Borough Council,http://statistics.data.gov.uk/id/local-authority/24UE,CULTURAL AND RELATED SERVICES,BV09,RECREATION AND SPORT,BV09B,DEPT of COMMUNITY and STREETSCENE,PREMISES RELATED EXPENDITURE,2,Environmental Services,18,R & M OF BUILDINGS,2000,29/05/2015,527123,293.55 ,Revenue,CLEARWATER TECHNOLOGY LTD,03659610,
Fareham Borough Council,http://statistics.data.gov.uk/id/local-authority/24UE,CULTURAL AND RELATED SERVICES,BV09,RECREATION AND SPORT,BV09B,DEPT of COMMUNITY and STREETSCENE,PREMISES RELATED EXPENDITURE,2,Environmental Services,18,R&M OF GROUNDS,2060,29/05/2015,527123,530.01 ,Revenue,CLEARWATER TECHNOLOGY LTD,03659610,
Fareham Borough Council,http://statistics.data.gov.uk/id/local-authority/24UE,CULTURAL AND RELATED SERVICES,BV09,CULTURE AND HERITAGE,BV09A,DEPT of COMMUNITY and STREETSCENE,PREMISES RELATED EXPENDITURE,2,Environmental Services,18,R & M OF BUILDINGS,2000,29/05/2015,527123,192.65 ,Revenue,CLEARWATER TECHNOLOGY LTD,03659610,
Fareham Borough Council,http://statistics.data.gov.uk/id/local-authority/24UE,CULTURAL AND RELATED SERVICES,BV09,RECREATION AND SPORT,BV09B,DEPT of COMMUNITY and STREETSCENE,PREMISES RELATED EXPENDITURE,2,Environmental Services,18,R & M OF BUILDINGS,2000,29/05/2015,527123,88.67 ,Revenue,CLEARWATER TECHNOLOGY LTD,03659610,
